Workbook

Sheet Cover
H13: =Legend!E84 -> [Enter Company Name]
H14: =Legend!E83 -> SPN Mini Grid Financial Model

Sheet Legend
A1: Legend
C4: Legend
C6: Style | E6: Design | G6: Comment
C8: Section_Header | E8: Section Header
C10: Header1 | E10: Header1
C12: Header2 | E12: Header2
C14: Assumption | E14: 100 | G14: A user driven input
C16: Flag | E16: =(E$5<=Inputs!$E$11)*1 -> 1 | G16: A flag for timing elements such as construction, operations, or loan period
C18: Unique_1st_Col | E18: 100 | G18: First column formula deviates from schedule formula
C20: Empty_Cell | G20: A cell that is left intentionally blank to avoid the risk of error
C22: InSheet | E22: 100 | G22: A link within the worksheet or an interim calculation step
C24: OffSheet | E24: 100 | G24: A link to another worksheet to minimize the number of inter-worksheet references
C26: Line_SubTotal | E26: 100 | G26: The sum of elements in the table immediately above
C28: Line_Total | E28: 100 | G28: The sum of elements above, including sub-totals
C30: Unit / Info | E30: NGN | G30: Explanatory text showing helpful information and the units/dimensions of the calculations
C32: Table_Header | E32: Qtr. | G32: Header of a table or of an off-sheet reference
C35: Additional Guidance & Definitions
C37: Dashboard Tab
C38: Area | E38: Terms | G38: Comment
C40: Financing | E40: Tenor | G40: Tenor must be longer than the construction period set in the input tab
E41: Tenor period | G41: This is an annual model so it can only use whole numbers. i.e. no partial year tenors
C43: Tax & Depreciation | E43: Tax depreciation toggle | G43: An on/off switch for tax depreciation. When turned on assets will depreciate at the tax depreciation rate for tax calculation purposes only
E44: NOLs periods | G44: The number of net operating loss carry forward years. Determined by the tax authority. Set to 0 for no NOLs
C46: Returns | E46: Returns period | G46: The number of years in which returns will be measured. Any cashflows beyond these will not be included in return outputs
E47: Project IRR & NPV | G47: These are calculated net of grants
C49: Consumer outputs | E49: Monthly ARPU | G49: The USD weighted average revenue per user, adjusted for inflation, over the life of the project
E50: Monthly consumption | G50: Weighted average consumption over the life of the project
C52: Operational outputs | E52: Levelized cost of electricity | G52: Time discounted cost per kWh of electricity calculated as operating costs and capital expenditures over consumption
E53: Levelized revenue | G53: Time discounted revenue per kWh
C55: Inputs Tab
C56: Area | E56: Terms | G56: Comment
C58: CAPEX | E58: CAPEX cost assumptions | G58: Detailed breakdown of unit costs and sizing assumptions of project CAPEX
E59: Project development costs | G59: Split up between dependent & non-dependent for illustrative purposes. Note project development costs included as capex
C61: Construction | E61: Max years | G61: This assigns all capex within the first x years as financeable. Included to allow financing of customer connections for multi years
E62: Construction schedule | G62: Duration of construction period
C64: Revenue | E64: Connection fee | G64: One time charge per new connection to the mini-grid
E65: Tariff | G65: Naira charged to customer per kWh
E66: Fixed charge | G66: Naira charged per customer on a yearly basis regardless of consumption
C68: Consumption | E68: Number of customers | G68: The total for each type of customer connections
E69: Consumption by tariff | G69: The total for each type of customer in kWh per month
C71: Tax and Depreciation | E71: Tax Depreciation | G71: The rate at which assets are depreciated for calculating income tax due in a given year. Not reflected in the income statement
E72: Reinvest flag | G72: Must enter 1 or 0. Do not enter Yes or No
C74: Macro-Economics | E74: General cost inflation (national) | G74: The expected national inflation rate (IMF, etc.)
E75: Depreciation | G75: Percentage that the Naira depreciates with regard to USD each year
E76: Exchange Rate | G76: Input the date at which starting levels (diesel cost, FX rates) were updated
C78: Names and Lists
C80: Name | E80: Value
C82: Entity Names
C83: Model Name | E83: SPN Mini Grid Financial Model
C84: Company Name | E84: [Enter Company Name]
C85: Contact Details | E85: [Enter Email Address]
C87: Tax depreciation toggle | E87: 1
E88: 0

Sheet Graphs (hidden)
B2: Overall project lifetime
B3: Income | C3: Investments & Reinvestment | D3: OPEX | E3: Taxes | F3: Investor_Profit Share | G3: Partner_Profit Share
A5: Revenue | B5: =SUM('FS (NGN)'!$D$8:$S$8) -> 1633981926
A6: Equity Injection | B6: =SUM('FS (NGN)'!D45:S45) -> 110868000
A7: Grants | B7: =SUM('FS (NGN)'!$D$46:$S$46) -> 130726849.3
A8: Investor | F8: =Inputs!#REF!*SUM('FS (NGN)'!$D$51:$S$51) -> 
A9: Non-Investor | C9: =-SUM('FS (NGN)'!$D$41:$S$41) -> 153468000 | D9: =SUM('FS (NGN)'!$D$9:$S$10) -> 996049314.8 | E9: =SUM('FS (NGN)'!$D$34:$S$34) -> 160104196.2 | G9: =Inputs!#REF!*SUM('FS (NGN)'!$D$51:$S$51) -> 
A10: TOTAL | B10: =SUM(B5:B9) -> 1875576776 | C10: 153468000 | D10: 996049314.8 | E10: 160104196.2
B11: =SUM(C11:G11) ->  | C11: =C10/$B10 -> 0.08182442968 | D11: =D10/$B10 -> 0.531062939 | E11: =E10/$B10 -> 0.08536264591 | F11: =F10/$B10 ->  | G11: =G10/$B10 -> 
E14: CAPEX value | F14: # of connections | G14: PV capacity | H14: Lives Impacted | I14: Genset
B16: Minigrids | C16: 36 | D16: =E16/C16 ->  | E16: =Inputs!#REF! ->  | F16: =Inputs!#REF! ->  | G16: =Inputs!#REF!*Inputs!#REF! ->  | H16: =5*F16 ->  | I16: =Inputs!#REF!*Inputs!#REF! -> 
B17: Productive | C17: 6 | D17: =E17/C17 ->  | E17: =Inputs!#REF! ->  | F17: =Inputs!#REF! ->  | G17: =Inputs!#REF!*Inputs!#REF! ->  | H17: =5*F17 ->  | I17: =Inputs!#REF!*Inputs!#REF! -> 
B18: Total | E18: =SUM(E16:E17) ->  | F18: =SUM(F16:F17) ->  | G18: =SUM(G16:G17) ->  | H18: =SUM(H16:H17) ->  | I18: =SUM(I16:I17) -> 

Sheet Dashboard
A1: Dashboard
A2: =Name_Model -> 
C4: Company Information
C6: Company name | D6: =Legend!E83 -> SPN Mini Grid Financial Model
C7: Project | D7: =Legend!E84 -> [Enter Company Name]
C8: Country | D8: Nigeria
C9: Contact details | D9: =Legend!E85 -> [Enter Email Address]
C11: Value Drivers | O11: Graphs
C13: Exchange Rate | J13: Revenue
C14: USD : NGN Exchange Rate | D14: # | E14: =ExRate -> 630 | J14: Year 0 Regular Tariff (NGN) | K14: NGN | L14: =Inputs!E107 -> 280
J15: Year 0 Regular Tariff (USD) | K15: USD | L15: =L14/ExRate -> 0.4444444444
C16: Customers | J16: Year 0 Anchor Tariff (NGN) | K16: NGN | L16: =Inputs!E108 -> 260
C17: Number of customers | D17: # | E17: =Inputs!E93 -> 334 | J17: Year 0 Anchor Tariff (USD) | K17: USD | L17: =L16/ExRate -> 0.4126984127
C19: Total Generation Assets (Size) | J19: Financing
C20: Solar PV | D20: kWp | E20: =Inputs!F36 -> 100 | J20: Grant Financing ($ per connection) | K20: USD | L20: =Inputs!E197 -> 600
C21: Battery | D21: kWh | E21: =Inputs!F37 -> 100 | J21: Debt Tenor | K21: years | L21: =Inputs!E202 -> 5
C22: Inverters | D22: kVA | E22: =Inputs!F38 -> 200 | J22: Debt Interest Rate | K22: % | L22: =Inputs!E203 -> 0.17
C23: Diesel Genset | D23: kVA | E23: =Inputs!F39 -> 100
C24: CCMPPT | D24: kWp | E24: =Inputs!F40 -> 100
C25: Distribution Box | D25: # | E25: =Inputs!F41 -> 1 | J25: Tax & Depreciation
C26: Balance of Systems | D26: # | E26: =Inputs!F42 -> 1 | J26: Tax Depreciation Toggle | K26: On or Off | L26: =Inputs!E182 -> 1
C28: Outputs
C30: Returns | J30: Consumption
J31: Avg. Monthly Consumption | K31: kWh/month | L31: =SUMPRODUCT('Graph calc'!F61:U61,'Graph calc'!F43:U43)/SUM('Graph calc'!F43:U43) -> 40.63843307
C32: Equity | E32: IRR | G32: Payback
C33: Project IRR (NGN) | D33: % | E33: ='FS (NGN)'!D85 -> 0.3144732068 | F33: years | G33: ='FS (NGN)'!D95 -> 2 | J33: Revenue & Cost | L33: NGN | M33: USD
C34: Equity IRR (NGN) | D34: % | E34: ='FS (NGN)'!D86 -> 0.3452927004 | J34: Avg. Revenue per kWh | K34: Revenue/kWh | L34: =SUMPRODUCT('Graph calc'!F64:U64,'Graph calc'!F63:U63)/SUM('Graph calc'!F63:U63) -> 687.1154687 | M34: =SUMPRODUCT('Graph calc'!F65:U65,'Graph calc'!F63:U63)/SUM('Graph calc'!F63:U63) -> 0.8510540826
C35: Project IRR (USD) | D35: % | E35: ='FS (NGN)'!D87 -> 0.2824128846 | J35: Avg. Cost per kWh | K35: Cost/kWh | L35: =SUMPRODUCT('Graph calc'!F68:U68,'Graph calc'!F63:U63)/SUM('Graph calc'!F63:U63) -> 418.8546279 | M35: =SUMPRODUCT('Graph calc'!F69:U69,'Graph calc'!F63:U63)/SUM('Graph calc'!F63:U63) -> 0.5224531998
C36: Equity IRR (USD) | D36: % | E36: ='FS (NGN)'!D88 -> 0.3124806833 | J36: Monthly ARPU (inflation adjusted) | K36: Revenue/month | L36: =SUMPRODUCT('Graph calc'!F49:U49,'Graph calc'!F43:U43)/SUM('Graph calc'!F43:U43) -> 9735.011744 | M36: =SUMPRODUCT('Graph calc'!F51:U51,'Graph calc'!F43:U43)/SUM('Graph calc'!F43:U43) -> 12.65799861
J37: Monthly ACPU (inflation adjusted) | K37: Cost/month | L37: =SUMPRODUCT('Graph calc'!F54:U54,'Graph calc'!F43:U43)/SUM('Graph calc'!F43:U43) -> 6169.172872 | M37: =SUMPRODUCT('Graph calc'!F56:U56,'Graph calc'!F43:U43)/SUM('Graph calc'!F43:U43) -> 8.106036717
C38: Funding
C39: Sources | E39: NGN | F39: USD | H39: % | J39: Operational
C40: =Inputs!C199 -> Debt | E40: =Inputs!E201 -> 30000000 | F40: =E40/ExRate -> 47619.04762 | G40: % | H40: =E40/$E$42 -> 0.2129653292 | J40: Average Operating Profit Margin | K40: % | L40: ='FS (NGN)'!C97 -> 0.2457299451
C41: Equity | E41: =Inputs!E207 -> 110868000 | F41: =E41/ExRate -> 175980.9524 | G41: % | H41: =E41/$E$42 -> 0.7870346708 | J41: Revenue : Cost per kWh | K41: Ratio | L41: =L34/L35 -> 1.640462879
C42: Total | E42: =SUM(E40+E41) -> 140868000 | F42: =E42/ExRate -> 223600 | G42: % | H42: =SUM(H40:H41) -> 1 | J42: Monthly ARPU : ACPU (inflation adjusted) | K42: Ratio | L42: =L36/L37 -> 1.578009232
C44: Uses | E44: NGN | F44: USD | J44: Checks
C45: CAPEX | E45: =CapEx -> 140868000 | F45: =CapEx/ExRate -> 223600 | J45: Model Balances | L45: ='FS (NGN)'!C70 -> 0
C46: Total | E46: =SUM(E45:E45) -> 140868000 | F46: =SUM(F45:F45) -> 223600 | J46: Sources = Uses | L46: =E46-E42 -> 0
J47: Min DSCR Threshold Met | L47: =IF('Operating Model'!D248>=Inputs!E204,0,1) -> 0
C49: Sensitivity Analysis
C51: IRR Sensitivity to System Size | E51: =Inputs!E217 -> System Size | F51: =Inputs!F217 -> System Size (kWp) | G51: =Inputs!G217 -> Project IRR | H51: =Inputs!H217 -> CAPEX (NGN) | I51: =Inputs!I217 -> CAPEX (USD) | J51: =Inputs!C258 -> Value Drivers Impact on IRR
E52: =Inputs!E218 -> 1 | F52: =Inputs!F218 -> 100 | G52: =Inputs!G218 -> 0.3144732068 | H52: =Inputs!H218 -> 140868000 | I52: =Inputs!I218 -> 223600
E53: =Inputs!E219 -> 1.1 | F53: =Inputs!F219 -> 110 | G53: =Inputs!G219 -> 0.289353977 | H53: =Inputs!H219 -> 149688000 | I53: =Inputs!I219 -> 237600
E54: =Inputs!E220 -> 1.2 | F54: =Inputs!F220 -> 120 | G54: =Inputs!G220 -> 0.2676568207 | H54: =Inputs!H220 -> 158508000 | I54: =Inputs!I220 -> 251600 | K54: =Inputs!E258 -> 0.2 | M54: =Inputs!F258 -> Base Case | N54: =Inputs!G258 -> Upside + 20% | O54: =Inputs!H258 -> Downside - 20%
E55: =Inputs!E221 -> 1.3 | F55: =Inputs!F221 -> 130 | G55: =Inputs!G221 -> 0.2487038932 | H55: =Inputs!H221 -> 167328000 | I55: =Inputs!I221 -> 265600
E56: =Inputs!E222 -> 1.4 | F56: =Inputs!F222 -> 140 | G56: =Inputs!G222 -> 0.2319813251 | H56: =Inputs!H222 -> 176148000 | I56: =Inputs!I222 -> 279600 | L56: =Inputs!E260 -> Exchange Rate | M56: =Inputs!F260 -> 630 | N56: =Inputs!G260 -> 504 | O56: =Inputs!H260 -> 756
E57: =Inputs!E223 -> 1.5 | F57: =Inputs!F223 -> 150 | G57: =Inputs!G223 -> 0.2168888026 | H57: =Inputs!H223 -> 184968000 | I57: =Inputs!I223 -> 293600 | K57: =Inputs!F261 -> 0.3144732068 | M57: =Inputs!F261 -> 0.3144732068 | N57: =Inputs!G261 -> 0.4114330982 | O57: =Inputs!H261 -> 0.2331513599
K59: =Inputs!E263 -> Regular Tariff | M59: =Inputs!F263 -> 280 | N59: =Inputs!G263 -> 336 | O59: =Inputs!H263 -> 224
C60: IRR Sensitivity to Regular Tariff and Exchange Rate | K60: =Inputs!E264 -> 0.3144732068 | M60: =Inputs!F264 -> 0.3144732068 | N60: =Inputs!G264 -> 0.3740213538 | O60: =Inputs!H264 -> 0.1994116276
E61: Exchange Rate:
C62: IRR: | D62: =Inputs!D227 -> 0.3144732068 | E62: =Inputs!E227 -> 550 | F62: =Inputs!F227 -> 600 | G62: =Inputs!G227 -> 650 | H62: =Inputs!H227 -> 700 | I62: =Inputs!I227 -> 750 | K62: =Inputs!E266 -> Generation Size | M62: =Inputs!F266 -> 1 | N62: =Inputs!G266 -> 0.8 | O62: =Inputs!H266 -> 1.2
C63: Regular Tariff: | D63: =Inputs!D228 -> 280 | E63: =Inputs!E228 -> 0.386895589 | F63: =Inputs!F228 -> 0.349016738 | G63: =Inputs!G228 -> 0.3140078367 | H63: =Inputs!H228 -> 0.2819404676 | I63: =Inputs!I228 -> 0.251073707 | K63: =Inputs!E267 -> 0.3144732068 | M63: =Inputs!F267 -> 0.3144732068 | N63: =Inputs!G267 -> 0.378924709 | O63: =Inputs!H267 -> 0.2676568207
D64: =Inputs!D229 -> 260 | E64: =Inputs!E229 -> 0.373935921 | F64: =Inputs!F229 -> 0.3357564484 | G64: =Inputs!G229 -> 0.3009223138 | H64: =Inputs!H229 -> 0.2685256158 | I64: =Inputs!I229 -> 0.2369195926
D65: =Inputs!D230 -> 240 | E65: =Inputs!E230 -> 0.360460939 | F65: =Inputs!F230 -> 0.3221639375 | G65: =Inputs!G230 -> 0.2874449327 | H65: =Inputs!H230 -> 0.2544237878 | I65: =Inputs!I230 -> 0.2220255741 | K65: =Inputs!E269 -> NEP Grant | M65: =Inputs!F269 -> 600 | N65: =Inputs!G269 -> 720 | O65: =Inputs!H269 -> 480
D66: =Inputs!D231 -> 220 | E66: =Inputs!E231 -> 0.3462445442 | F66: =Inputs!F231 -> 0.3081948762 | G66: =Inputs!G231 -> 0.2732987316 | H66: =Inputs!H231 -> 0.239438081 | I66: =Inputs!I231 -> 0.206385591 | K66: =Inputs!E270 -> 0.3144732068 | M66: =Inputs!F270 -> 0.3144732068 | N66: =Inputs!G270 -> 0.3783621423 | O66: =Inputs!H270 -> 0.2629594524
D67: =Inputs!D232 -> 200 | E67: =Inputs!E232 -> 0.3316658218 | F67: =Inputs!F232 -> 0.2937953559 | G67: =Inputs!G232 -> 0.2582614627 | H67: =Inputs!H232 -> 0.2235582504 | I67: =Inputs!I232 -> 0.1896970437
D68: =Inputs!D233 -> 180 | E68: =Inputs!E233 -> 0.3166741397 | F68: =Inputs!F233 -> 0.2788126756 | G68: =Inputs!G233 -> 0.2423289717 | H68: =Inputs!H233 -> 0.2068334374 | I68: =Inputs!I233 -> 0.1710496062
C70: IRR Sensitivity to Regular Tariff and Anchor Tariff
E71: Regular Tariff:
C72: IRR: | D72: =Inputs!D238 -> 0.3144732068 | E72: =Inputs!E238 -> 280 | F72: =Inputs!F238 -> 260 | G72: =Inputs!G238 -> 240 | H72: =Inputs!H238 -> 220 | I72: =Inputs!I238 -> 200
C73: Anchor Tariff: | D73: =Inputs!D239 -> 260 | E73: =Inputs!E239 -> 0.3144732068 | F73: =Inputs!F239 -> 0.2962148937 | G73: =Inputs!G239 -> 0.2770579985 | H73: =Inputs!H239 -> 0.2562172622 | I73: =Inputs!I239 -> 0.2335432368
D74: =Inputs!D240 -> 240 | E74: =Inputs!E240 -> 0.3009719577 | F74: =Inputs!F240 -> 0.2821374686 | G74: =Inputs!G240 -> 0.2616761306 | H74: =Inputs!H240 -> 0.2395575027 | I74: =Inputs!I240 -> 0.2154720335
D75: =Inputs!D241 -> 220 | E75: =Inputs!E241 -> 0.2870528859 | F75: =Inputs!F241 -> 0.2670571513 | G75: =Inputs!G241 -> 0.2454675659 | H75: =Inputs!H241 -> 0.221831402 | I75: =Inputs!I241 -> 0.1962453231
D76: =Inputs!D242 -> 200 | E76: =Inputs!E242 -> 0.272364628 | F76: =Inputs!F242 -> 0.2512592555 | G76: =Inputs!G242 -> 0.2280635171 | H76: =Inputs!H242 -> 0.2030330549 | I76: =Inputs!I242 -> 0.1745569796
D77: =Inputs!D243 -> 180 | E77: =Inputs!E243 -> 0.2567918084 | F77: =Inputs!F243 -> 0.2341771584 | G77: =Inputs!G243 -> 0.209661574 | H77: =Inputs!H243 -> 0.1823371545 | I77: =Inputs!I243 -> 0.1499648395
D78: =Inputs!D244 -> 160 | E78: =Inputs!E244 -> 0.2401802058 | F78: =Inputs!F244 -> 0.2161431924 | G78: =Inputs!G244 -> 0.189850548 | H78: =Inputs!H244 -> 0.1588139201 | I78: =Inputs!I244 -> 0.1210346184
C80: =Inputs!C247 -> IRR Sensitivity to System Size and Exchange Rate
E81: =Inputs!E248 -> Exchange Rate:
C82: =Inputs!C249 -> IRR: | D82: =Inputs!D249 -> 0.3144732068 | E82: =Inputs!E249 -> 550 | F82: =Inputs!F249 -> 600 | G82: =Inputs!G249 -> 650 | H82: =Inputs!H249 -> 700 | I82: =Inputs!I249 -> 750
C83: =Inputs!C250 -> System Size: | D83: =Inputs!D250 -> 1 | E83: =Inputs!E250 -> 0.373935921 | F83: =Inputs!F250 -> 0.3357564484 | G83: =Inputs!G250 -> 0.3009223138 | H83: =Inputs!H250 -> 0.2685256158 | I83: =Inputs!I250 -> 0.2369195926
D84: =Inputs!D251 -> 1.1 | E84: =Inputs!E251 -> 0.346179686 | F84: =Inputs!F251 -> 0.3095786865 | G84: =Inputs!G251 -> 0.2764584259 | H84: =Inputs!H251 -> 0.2452390287 | I84: =Inputs!I251 -> 0.2147475368
D85: =Inputs!D252 -> 1.2 | E85: =Inputs!E252 -> 0.3218218869 | F85: =Inputs!F252 -> 0.2869616521 | G85: =Inputs!G252 -> 0.2553303063 | H85: =Inputs!H252 -> 0.2251363226 | I85: =Inputs!I252 -> 0.1956112066
D86: =Inputs!D253 -> 1.3 | E86: =Inputs!E253 -> 0.3005428706 | F86: =Inputs!F253 -> 0.2672052086 | G86: =Inputs!G253 -> 0.2367598038 | H86: =Inputs!H253 -> 0.2074166582 | I86: =Inputs!I253 -> 0.1788962163
D87: =Inputs!D254 -> 1.4 | E87: =Inputs!E254 -> 0.2817758091 | F87: =Inputs!F254 -> 0.249776769 | G87: =Inputs!G254 -> 0.2202190559 | H87: =Inputs!H254 -> 0.1917038883 | I87: =Inputs!I254 -> 0.1641413541
D88: =Inputs!D255 -> 1.5 | E88: =Inputs!E255 -> 0.2650816945 | F88: =Inputs!F255 -> 0.2342659564 | G88: =Inputs!G255 -> 0.2054936331 | H88: =Inputs!H255 -> 0.1777080317 | I88: =Inputs!I255 -> 0.1509950304

Sheet Inputs
A1: Inputs
A2: =Name_Model -> 
A4: x | C4: Timing
C5: Start
C6: Model Start Date | D6: date | E6: 2022-01-01
C7: Model Start Year | D7: date | E7: =YEAR(E6) -> 2022
C8: Construction Schedule
C9: Start date | D9: date | E9: =E6 -> 2022-01-01
C10: Duration | D10: months | E10: 12
C11: End date | D11: date | E11: =EOMONTH(E9,E10-1) -> 2022-12-31
C12: Operations Schedule
C13: Start date | D13: date | E13: =E11+1 -> 2023-01-01
C14: Duration | D14: years | E14: 15
C15: Duration | D15: months | E15: =E14*12 -> 180
C16: End date | D16: date | E16: =EOMONTH(E13,E15-1) -> 2037-12-31
C18: Months/year | E18: 12
A21: x | C21: CAPEX
C22: CAPEX Cost Assumptions
C23: Unit Costs | E23: USD | F23: NGN
C24: Solar PV | D24: Cost/kWp | E24: 400 | F24: =E24*ExRate -> 252000
C25: Battery | D25: Cost/kWh | E25: 200 | F25: 126000
C26: Inverters | D26: Cost/kVA | E26: 200 | F26: 126000
C27: Diesel Genset | D27: Cost/kVA | E27: 250 | F27: 157500
C28: CCMPPT | D28: Cost/kWp | E28: 150 | F28: 94500
C29: Distribution Box | D29: Cost | E29: 1500 | F29: =E29*ExRate -> 945000
C30: Balance of Systems | D30: Cost | E30: 2100 | F30: 1323000
C31: Additional Distribution Costs | D31: Cost | E31: 25000 | F31: 15750000
C32: General Costs | D32: Cost | E32: 25000 | F32: 15750000
C33: Customer Connection | D33: Cost | E33: 30000 | F33: =E33*ExRate -> 18900000
B35: x | C35: Size Assumptions | F35: 1
C36: Solar PV | D36: kWp | E36: 100 | F36: =$F$35*E36 -> 100
C37: Battery | D37: kWh | E37: 100 | F37: =$F$35*E37 -> 100
C38: Inverters | D38: kVA | E38: 200 | F38: =$F$35*E38 -> 200
C39: Diesel Genset | D39: kVA | E39: 100 | F39: =$F$35*E39 -> 100
C40: CCMPPT | D40: kWp | E40: 100 | F40: 100
C41: Distribution Box | D41: # | E41: 1 | F41: =E41 -> 1
C42: Balance of Systems | D42: # | E42: 1 | F42: =E42 -> 1
C43: Additional Distribution Costs | D43: # | E43: 1 | F43: 1
C44: General Costs | D44: # | E44: 1 | F44: 1
C45: Customer Connection | D45: # | E45: 1 | F45: 1
B47: x | C47: Total Capital Expenditure
C48: Solar PV | D48: NGN | E48: =F36*F24 -> 25200000
C49: Battery | D49: NGN | E49: =F37*F25 -> 12600000
C50: Inverters | D50: NGN | E50: 25200000
C51: Diesel Genset | D51: NGN | E51: 15750000
C52: CCMPPT | D52: NGN | E52: 9450000
C53: Distribution Box | D53: NGN | E53: =F41*F29 -> 945000
C54: Balance of Systems | D54: NGN | E54: 1323000
C55: Additional Distribution Costs | D55: NGN | E55: 15750000
C56: General Costs | D56: NGN | E56: 15750000
C57: Customer Connection | D57: NGN | E57: =F45*F33 -> 18900000
C58: Total | E58: =SUM(E48:E57) -> 140868000
C60: Customer Connection Cost / Customer | D60: NGN/connection | E60: =E57/E93 -> 56586.82635
C62: Project Development Costs | E62: USD | F62: NGN
C63: Feasibility Study | D63: Cost | E63: 1050 | F63: =E63*ExRate -> 661500
C64: Environmental Impact Assessment | D64: Cost | E64: 1050 | F64: 661500
C65: Acquisition of Land Usage Rights | D65: Cost | E65: 1890 | F65: 1190700
C66: Set up of Village and Customer Relationship | D66: Cost | E66: 4200 | F66: 2646000
C67: Generation / Distribution License Acquisition | D67: Cost | E67: 3000 | F67: 1890000
C68: Acquisition of Capital incl. Due Diligence | D68: Cost | E68: 0 | F68: 0
C69: Company Foundation and Establishment | D69: Cost | E69: 0 | F69: 0
C70: Consultancy Cost and Fees | D70: Cost | E70: 2100 | F70: 1323000
C71: Total | E71: =SUM(E63:E70) -> 13290 | F71: =SUM(F63:F70) -> 8372700
C73: Ongoing CAPEX | E73: % Cost to Replace | F73: Cost to Replace
C74: Solar PV | D74: % initial capex | E74: 1 | F74: =E74*E48 -> 25200000
C75: Battery | D75: % initial capex | E75: 0.5 | F75: 6300000
C76: Inverters | D76: % initial capex | E76: 1 | F76: 25200000
C77: Diesel Genset | D77: % initial capex | E77: 1 | F77: 15750000
C78: CCMPPT | D78: % initial capex | E78: 1 | F78: 9450000
C79: Distribution Box | D79: % initial capex | E79: 1 | F79: 945000
C80: Balance of Systems | D80: % initial capex | E80: 1 | F80: =E80*E54 -> 1323000
C81: Additional Distribution Costs | D81: % initial capex | E81: 1 | F81: =E81*E55 -> 15750000
C82: General Costs | D82: % initial capex | E82: 1 | F82: 15750000
C83: Customer Connection | D83: % initial capex | E83: 1 | F83: 18900000
A85: x | C85: Consumption
C87: Connections
C88: Residential | D88: # | E88: 300
C89: Commercial | D89: # | E89: 25
C90: Public | D90: # | E90: 0
C91: Productive | D91: # | E91: 8
C92: Anchor | D92: # | E92: 1
C93: Total | D93: # | E93: =SUM(E88:E92) -> 334
C95: Annual Consumption Growth Rate | D95: % | E95: 0.01
C97: Monthly Consumption by Customer Type
C98: Residential | D98: kWh/month/customer | E98: 20
C99: Commercial | D99: kWh/month/customer | E99: 25
C100: Public | D100: kWh/month/customer | E100: 30
C101: Productive | D101: kWh/month/customer | E101: 80
C102: Anchor | D102: kWh/month/customer | E102: 5400
A104: x | C104: Revenue
C106: Connection Fee | D106: NGN/Connection | E106: 10000
C107: Regular Tariff | D107: NGN/kWh | E107: 280
C108: Anchor Tariff | D108: NGN/kWh | E108: 260
C109: Fixed Charge | D109: NGN/customer/year | E109: 3000
A111: x | C111: Operating Costs
C113: Technical Performance
C114: Technical Uptime | D114: % | E114: 0.95
C115: Collection Rate | D115: % | E115: 0.97
C116: Percentage of Sales from Production | D116: % | E116: =E114*E115 -> 0.9215
C118: Overhead Costs
C119: Annual Costs | E119: USD | F119: NGN
C120: Salary Managing Director | D120: Cost | E120: 15000 | F120: =E120*ExRate -> 9450000
C121: Management and Technical Staff | D121: Cost | E121: 4000 | F121: 2520000
C122: Accounting | D122: Cost | E122: 1000 | F122: 630000
C123: Travel and Vehicle Costs | D123: Cost | E123: 1000 | F123: 630000
C124: Office Costs | D124: Cost | E124: 1000 | F124: 630000
C125: Company Insurance | D125: Cost | E125: 500 | F125: 315000
C126: Other | E126: 500 | F126: 315000
C127: Total | E127: =SUM(E120:E126) -> 23000 | F127: =SUM(F120:F126) -> 14490000
C129: Operational Costs | E129: USD | F129: NGN
C130: Generator O&M | D130: Cost | E130: 5000 | F130: =E130*ExRate -> 3150000
C131: Other Operating Costs | D131: Cost | E131: 4000 | F131: =E131*ExRate -> 2520000
C133: Collection Fees | D133: % | E133: 0.075
C135: Diesel Consumption | D135: L/year | E135: 800
C136: Diesel Fuel Cost | D136: NGN/L | E136: 700
A138: x | C138: Depreciation
I139: Assumptions are not validated - seek local tax advice
C140: Depreciation of Generation Assets | E140: Accounting Depreciation | I140: Tax Depreciation
C141: Initial CAPEX Depreciation | E141: Asset Life | G141: SL Deprec | I141: Asset Life | J141: SL Deprec
C142: Solar PV | D142: years | E142: 20 | G142: =1/E142 -> 0.05 | I142: 10 | J142: =1/I142 -> 0.1
C143: Battery | D143: years | E143: 5 | G143: 0.2 | I143: 5 | J143: =1/I143 -> 0.2
C144: Inverters | D144: years | E144: 20 | G144: 0.05 | I144: 10 | J144: 0.1
C145: Diesel Genset | D145: years | E145: 20 | G145: 0.05 | I145: 10 | J145: 0.1
C146: CCMPPT | D146: years | E146: 20 | G146: 0.05 | I146: 10 | J146: 0.1
C147: Distribution Box | D147: years | E147: 20 | G147: 0.05 | I147: 10 | J147: 0.1
C148: Balance of Systems | D148: years | E148: 20 | G148: 0.05 | I148: 10 | J148: 0.1
C150: Ongoing CAPEX Flag | E150: Reinvest? | G150: Reinvest Year
C151: Solar PV | D151: Yes [1] or No [0] | E151: 1 | G151: =IF(E151=1,E142,"") -> 20
C152: Battery | D152: Yes [1] or No [0] | E152: 1 | G152: 5
C153: Inverters | D153: Yes [1] or No [0] | E153: 1 | G153: 20
C154: Diesel Genset | D154: Yes [1] or No [0] | E154: 1 | G154: 20
C155: CCMPPT | D155: Yes [1] or No [0] | E155: 1 | G155: 20
C156: Distribution Box | E156: 1 | G156: =IF(E156=1,E147,"") -> 20
C157: Balance of Systems | E157: 1 | G157: =IF(E157=1,E148,"") -> 20
I158: Assumptions are not validated - seek local tax advice
C159: Depreciation of Distribution, Connection, and General Costs | E159: Accounting Depreciation | I159: Tax Depreciation
C160: Initial CAPEX Depreciation | E160: Asset Life | G160: SL Deprec | I160: Asset Life | J160: SL Deprec
C161: Distribution CAPEX | D161: years | E161: 15 | G161: =1/E161 -> 0.06666666667 | I161: 10 | J161: =1/I161 -> 0.1
C162: General Cost CAPEX | D162: years | E162: 15 | G162: =1/E162 -> 0.06666666667 | I162: 10 | J162: =1/I162 -> 0.1
C163: Connection CAPEX | D163: years | E163: 15 | G163: =1/E163 -> 0.06666666667 | I163: 10 | J163: =1/I163 -> 0.1
C165: Ongoing CAPEX Flag (ex connections) | E165: Reinvest? | G165: Reinvest Year
C166: Distribution CAPEX | D166: Yes [1] or No [0] | E166: 1 | G166: =IF(E166=1,E161,"") -> 15
C167: General Cost CAPEX | D167: Yes [1] or No [0] | E167: 1 | G167: =IF(E167=1,E162,"") -> 15
C168: Connection CAPEX | D168: Yes [1] or No [0] | E168: 1 | G168: =IF(E168=1,E163,"") -> 15
C170: % of CAPEX to Depreciate | D170: % | E170: 1
A172: x | C172: Tax
C174: Tax | G174: Notes
C175: Income Tax | D175: % | E175: 0.3 | G175: % of EBT
C176: Value Added Tax (VAT) | D176: % | E176: 0.075 | G176: % of Revenues
C177: Regulator Tax | D177: % | E177: 0 | G177: % of EBT
C178: Tertiary Education Trust Fund Contribution | D178: % | E178: 0.02 | G178: % of EBT
C179: Communal Tax | D179: % | E179: 0 | G179: % of EBT
B180: x | C180: Local Tax | D180: NGN/year | E180: 0 | G180: Fixed fee
C182: Tax Depreciation Toggle | D182: On or Off | E182: 1
A184: x | C184: Macro-economics
C186: General Cost Inflation (National Rate) | D186: %/year | E186: 0.12
C187: Depreciation (NGN/USD) | D187: %/year | E187: 0.025
C188: Exchange Rate | E188: 630
A190: x | C190: Financing
C192: Total CAPEX (USD) | D192: $ | E192: =E193/ExRate -> 223600
C193: Total CAPEX (NGN) | D193: NGN | E193: =E58 -> 140868000
C196: NEP Performance-Based Grant
C197: Grant per Connection | D197: $ | E197: 600
C199: Debt
C200: Debt Facility (USD) | D200: $ | E200: =E201/ExRate -> 47619.04762
C201: Debt Facility (NGN) | D201: NGN | E201: 30000000
C202: Tenor | D202: years | E202: 5
C203: Rate | D203: % | E203: 0.17
C204: Target DSCR | D204: x | E204: 1.5
C206: Equity
C207: Equity Investment Requirement | D207: NGN | E207: =E193-E201 -> 110868000
C208: Equity (NGN) | D208: NGN | E208: =E207 -> 110868000
C209: Equity (USD) | D209: $ | E209: =E208/ExRate -> 175980.9524
C210: Leverage | D210: % | E210: =E201/E193 -> 0.2129653292
C212: Payout ratio | D212: % | E212: 1
A214: x | C214: Sensitivity Analysis
C216: IRR Sensitivity to System Size
E217: System Size | F217: System Size (kWp) | G217: Project IRR | H217: CAPEX (NGN) | I217: CAPEX (USD)
E218: 1 | F218: =F36 -> 100 | G218: ='FS (NGN)'!D85 -> 0.3144732068 | H218: =CapEx -> 140868000 | I218: =E192 -> 223600
E219: 1.1 | F219: 110 | G219: 0.289353977 | H219: 149688000 | I219: 237600
E220: 1.2 | F220: 120 | G220: 0.2676568207 | H220: 158508000 | I220: 251600
E221: 1.3 | F221: 130 | G221: 0.2487038932 | H221: 167328000 | I221: 265600
E222: 1.4 | F222: 140 | G222: 0.2319813251 | H222: 176148000 | I222: 279600
E223: 1.5 | F223: 150 | G223: 0.2168888026 | H223: 184968000 | I223: 293600
C225: IRR Sensitivity to Regular Tariff and Exchange Rate
E226: Exchange Rate:
C227: IRR: | D227: ='FS (NGN)'!D85 -> 0.3144732068 | E227: 550 | F227: 600 | G227: 650 | H227: 700 | I227: 750
C228: Regular Tariff: | D228: 280 | E228: 0.386895589 | F228: 0.349016738 | G228: 0.3140078367 | H228: 0.2819404676 | I228: 0.251073707
D229: 260 | E229: 0.373935921 | F229: 0.3357564484 | G229: 0.3009223138 | H229: 0.2685256158 | I229: 0.2369195926
D230: 240 | E230: 0.360460939 | F230: 0.3221639375 | G230: 0.2874449327 | H230: 0.2544237878 | I230: 0.2220255741
D231: 220 | E231: 0.3462445442 | F231: 0.3081948762 | G231: 0.2732987316 | H231: 0.239438081 | I231: 0.206385591
D232: 200 | E232: 0.3316658218 | F232: 0.2937953559 | G232: 0.2582614627 | H232: 0.2235582504 | I232: 0.1896970437
D233: 180 | E233: 0.3166741397 | F233: 0.2788126756 | G233: 0.2423289717 | H233: 0.2068334374 | I233: 0.1710496062
D234: 160 | E234: 0.3012073495 | F234: 0.2627026097 | G234: 0.2253224944 | H234: 0.1888953109 | I234: 0.1502947513
C236: IRR Sensitivity to Regular Tariff and Anchor Tariff
E237: Regular Tariff
C238: IRR: | D238: ='FS (NGN)'!D85 -> 0.3144732068 | E238: 280 | F238: 260 | G238: 240 | H238: 220 | I238: 200
C239: Anchor Tariff | D239: 260 | E239: 0.3144732068 | F239: 0.2962148937 | G239: 0.2770579985 | H239: 0.2562172622 | I239: 0.2335432368
D240: 240 | E240: 0.3009719577 | F240: 0.2821374686 | G240: 0.2616761306 | H240: 0.2395575027 | I240: 0.2154720335
D241: 220 | E241: 0.2870528859 | F241: 0.2670571513 | G241: 0.2454675659 | H241: 0.221831402 | I241: 0.1962453231
... 22 more rows

Sheet FS (NGN)
A1: Mini-grid Model Financial Statements (NGN)
A2: =Name_Model -> 
B3: Start date | D3: =Inputs!E6 -> 2022-01-01 | E3: =D4+1 -> 2023-01-01 | F3: =E4+1 -> 2024-01-01 | G3: 2025-01-01 | H3: 2026-01-01 | I3: 2027-01-01 | J3: 2028-01-01 | K3: 2029-01-01 | L3: 2030-01-01 | M3: 2031-01-01 | N3: 2032-01-01 | O3: 2033-01-01 | P3: 2034-01-01 | Q3: 2035-01-01 | R3: 2036-01-01 | S3: 2037-01-01
B4: End date | D4: =EOMONTH(D3,12-1) -> 2022-12-31 | E4: =EOMONTH(E3,12-1) -> 2023-12-31 | F4: =EOMONTH(F3,12-1) -> 2024-12-31 | G4: 2025-12-31 | H4: 2026-12-31 | I4: 2027-12-31 | J4: 2028-12-31 | K4: 2029-12-31 | L4: 2030-12-31 | M4: 2031-12-31 | N4: 2032-12-31 | O4: 2033-12-31 | P4: 2034-12-31 | Q4: 2035-12-31 | R4: 2036-12-31 | S4: 2037-12-31
B5: Period | E5: =COUNT($E$4:E4) -> 1 | F5: =COUNT($E$4:F4) -> 2 | G5: =COUNT($E$4:G4) -> 3 | H5: =COUNT($E$4:H4) -> 4 | I5: =COUNT($E$4:I4) -> 5 | J5: =COUNT($E$4:J4) -> 6 | K5: =COUNT($E$4:K4) -> 7 | L5: =COUNT($E$4:L4) -> 8 | M5: =COUNT($E$4:M4) -> 9 | N5: =COUNT($E$4:N4) -> 10 | O5: =COUNT($E$4:O4) -> 11 | P5: =COUNT($E$4:P4) -> 12 | Q5: =COUNT($E$4:Q4) -> 13 | R5: =COUNT($E$4:R4) -> 14 | S5: =COUNT($E$4:S4) -> 15
A7: x | B7: Income Statement
B8: Revenue | D8: =SUM(Start:End!F21) -> 0 | E8: =SUM(Start:End!G21) -> 35009644.26 | F8: =SUM(Start:End!H21) -> 41690297.12 | G8: =SUM(Start:End!I21) -> 46792345.24 | H8: =SUM(Start:End!J21) -> 59097679.67 | I8: =SUM(Start:End!K21) -> 66464708.7 | J8: =SUM(Start:End!L21) -> 75138557.28 | K8: =SUM(Start:End!M21) -> 84937037.71 | L8: =SUM(Start:End!N21) -> 96005158.21 | M8: =SUM(Start:End!O21) -> 108506534.3 | N8: =SUM(Start:End!P21) -> 122625766.4 | O8: =SUM(Start:End!Q21) -> 138571120 | P8: =SUM(Start:End!R21) -> 156577547.6 | Q8: =SUM(Start:End!S21) -> 176910093.6 | R8: =SUM(Start:End!T21) -> 199867733.9 | S8: =SUM(Start:End!U21) -> 225787702.6
B9: Operating Costs | D9: =SUM(Start:End!F30) -> 0 | E9: =SUM(Start:End!G30) -> 17976023.32 | F9: =SUM(Start:End!H30) -> 10941684.28 | G9: =SUM(Start:End!I30) -> 12262127.33 | H9: =SUM(Start:End!J30) -> 14235351.59 | I9: =SUM(Start:End!K30) -> 15964241.84 | J9: =SUM(Start:End!L30) -> 17932307.12 | K9: =SUM(Start:End!M30) -> 20142823 | L9: =SUM(Start:End!N30) -> 22625637.45 | M9: =SUM(Start:End!O30) -> 25414270.73 | N9: =SUM(Start:End!P30) -> 28546366.82 | O9: =SUM(Start:End!Q30) -> 32064200.46 | P9: =SUM(Start:End!R30) -> 36015246.5 | Q9: =SUM(Start:End!S30) -> 40452819.1 | R9: =SUM(Start:End!T30) -> 45436789.58 | S9: =SUM(Start:End!U30) -> 51034392.37
B10: Overhead Costs | D10: =SUM(Start:End!F40) -> 0 | E10: =SUM(Start:End!G40) -> 16228800 | F10: =SUM(Start:End!H40) -> 18176256 | G10: =SUM(Start:End!I40) -> 20357406.72 | H10: =SUM(Start:End!J40) -> 22800295.53 | I10: =SUM(Start:End!K40) -> 25536330.99 | J10: =SUM(Start:End!L40) -> 28600690.71 | K10: =SUM(Start:End!M40) -> 32032773.59 | L10: =SUM(Start:End!N40) -> 35876706.42 | M10: =SUM(Start:End!O40) -> 40181911.2 | N10: =SUM(Start:End!P40) -> 45003740.54 | O10: =SUM(Start:End!Q40) -> 50404189.4 | P10: =SUM(Start:End!R40) -> 56452692.13 | Q10: =SUM(Start:End!S40) -> 63227015.19 | R10: =SUM(Start:End!T40) -> 70814257.01 | S10: =SUM(Start:End!U40) -> 79311967.85
B11: EBITDA | D11: =SUM(Start:End!F42) -> 0 | E11: =SUM(Start:End!G42) -> 804820.9389 | F11: =SUM(Start:End!H42) -> 12572356.83 | G11: =SUM(Start:End!I42) -> 14172811.18 | H11: =SUM(Start:End!J42) -> 22062032.55 | I11: =SUM(Start:End!K42) -> 24964135.87 | J11: =SUM(Start:End!L42) -> 28605559.44 | K11: =SUM(Start:End!M42) -> 32761441.12 | L11: =SUM(Start:End!N42) -> 37502814.33 | M11: =SUM(Start:End!O42) -> 42910352.37 | N11: =SUM(Start:End!P42) -> 49075659.02 | O11: =SUM(Start:End!Q42) -> 56102730.18 | P11: =SUM(Start:End!R42) -> 64109608.93 | Q11: =SUM(Start:End!S42) -> 73230259.26 | R11: =SUM(Start:End!T42) -> 83616687.31 | S11: =SUM(Start:End!U42) -> 95441342.36
B13: Depreciation | D13: =SUM(Start:End!F44) -> 0 | E13: =SUM(Start:End!G44) -> 9773400 | F13: =SUM(Start:End!H44) -> 9773400 | G13: =SUM(Start:End!I44) -> 9773400 | H13: =SUM(Start:End!J44) -> 9773400 | I13: =SUM(Start:End!K44) -> 9773400 | J13: =SUM(Start:End!L44) -> 7253400 | K13: =SUM(Start:End!M44) -> 8513400 | L13: =SUM(Start:End!N44) -> 8513400 | M13: =SUM(Start:End!O44) -> 8513400 | N13: =SUM(Start:End!P44) -> 8513400 | O13: =SUM(Start:End!Q44) -> 8513400 | P13: =SUM(Start:End!R44) -> 8513400 | Q13: =SUM(Start:End!S44) -> 8513400 | R13: =SUM(Start:End!T44) -> 8513400 | S13: =SUM(Start:End!U44) -> 8513400
B15: EBIT | D15: =SUM(Start:End!F46) -> 0 | E15: =SUM(Start:End!G46) -> -8968579.061 | F15: =SUM(Start:End!H46) -> 2798956.833 | G15: =SUM(Start:End!I46) -> 4399411.185 | H15: =SUM(Start:End!J46) -> 12288632.55 | I15: =SUM(Start:End!K46) -> 15190735.87 | J15: =SUM(Start:End!L46) -> 21352159.44 | K15: =SUM(Start:End!M46) -> 24248041.12 | L15: =SUM(Start:End!N46) -> 28989414.33 | M15: =SUM(Start:End!O46) -> 34396952.37 | N15: =SUM(Start:End!P46) -> 40562259.02 | O15: =SUM(Start:End!Q46) -> 47589330.18 | P15: =SUM(Start:End!R46) -> 55596208.93 | Q15: =SUM(Start:End!S46) -> 64716859.26 | R15: =SUM(Start:End!T46) -> 75103287.31 | S15: =SUM(Start:End!U46) -> 86927942.36
B17: Interest Expense | D17: =SUM(Start:End!F47) -> 0 | E17: =SUM(Start:End!G47) -> 0 | F17: =SUM(Start:End!H47) -> 0 | G17: =SUM(Start:End!I47) -> 0 | H17: =SUM(Start:End!J47) -> 0 | I17: =SUM(Start:End!K47) -> 0 | J17: =SUM(Start:End!L47) -> 0 | K17: =SUM(Start:End!M47) -> 0 | L17: =SUM(Start:End!N47) -> 0 | M17: =SUM(Start:End!O47) -> 0 | N17: =SUM(Start:End!P47) -> 0 | O17: =SUM(Start:End!Q47) -> 0 | P17: =SUM(Start:End!R47) -> 0 | Q17: =SUM(Start:End!S47) -> 0 | R17: =SUM(Start:End!T47) -> 0 | S17: =SUM(Start:End!U47) -> 0
B19: EBT | D19: =SUM(Start:End!F50) -> 0 | E19: =SUM(Start:End!G50) -> -14068579.06 | F19: =SUM(Start:End!H50) -> -1573967.459 | G19: =SUM(Start:End!I50) -> 877165.4717 | H19: =SUM(Start:End!J50) -> 9761680.776 | I19: =SUM(Start:End!K50) -> 13828278 | J19: =SUM(Start:End!L50) -> 21352159.44 | K19: =SUM(Start:End!M50) -> 24248041.12 | L19: =SUM(Start:End!N50) -> 28989414.33 | M19: =SUM(Start:End!O50) -> 34396952.37 | N19: =SUM(Start:End!P50) -> 40562259.02 | O19: =SUM(Start:End!Q50) -> 47589330.18 | P19: =SUM(Start:End!R50) -> 55596208.93 | Q19: =SUM(Start:End!S50) -> 64716859.26 | R19: =SUM(Start:End!T50) -> 75103287.31 | S19: =SUM(Start:End!U50) -> 86927942.36
B21: Income Tax Payable | C21: =Inputs!E175 -> 0.3 | D21: =SUM(Start:End!F52) -> 0 | E21: =SUM(Start:End!G52) -> 0 | F21: =SUM(Start:End!H52) -> 0 | G21: =SUM(Start:End!I52) -> 0 | H21: =SUM(Start:End!J52) -> 1256484.233 | I21: =SUM(Start:End!K52) -> 2476463.4 | J21: =SUM(Start:End!L52) -> 4733627.833 | K21: =SUM(Start:End!M52) -> 5602392.335 | L21: =SUM(Start:End!N52) -> 7024804.3 | M21: =SUM(Start:End!O52) -> 8647065.712 | N21: =SUM(Start:End!P52) -> 10496657.7 | O21: =SUM(Start:End!Q52) -> 16452819.05 | P21: =SUM(Start:End!R52) -> 18854882.68 | Q21: =SUM(Start:End!S52) -> 21591077.78 | R21: =SUM(Start:End!T52) -> 24707006.19 | S21: =SUM(Start:End!U52) -> 28254402.71
B22: Regulator Tax | C22: =Inputs!E177 -> 0 | D22: =SUM(Start:End!F53) -> 0 | E22: =SUM(Start:End!G53) -> 0 | F22: =SUM(Start:End!H53) -> 0 | G22: =SUM(Start:End!I53) -> 0 | H22: =SUM(Start:End!J53) -> 0 | I22: =SUM(Start:End!K53) -> 0 | J22: =SUM(Start:End!L53) -> 0 | K22: =SUM(Start:End!M53) -> 0 | L22: =SUM(Start:End!N53) -> 0 | M22: =SUM(Start:End!O53) -> 0 | N22: =SUM(Start:End!P53) -> 0 | O22: =SUM(Start:End!Q53) -> 0 | P22: =SUM(Start:End!R53) -> 0 | Q22: =SUM(Start:End!S53) -> 0 | R22: =SUM(Start:End!T53) -> 0 | S22: =SUM(Start:End!U53) -> 0
B23: Tertiary Education Trust Fund Contribution | C23: =Inputs!E178 -> 0.02 | D23: =SUM(Start:End!F54) -> 0 | E23: =SUM(Start:End!G54) -> 0 | F23: =SUM(Start:End!H54) -> 0 | G23: =SUM(Start:End!I54) -> 0 | H23: =SUM(Start:End!J54) -> 83765.61551 | I23: =SUM(Start:End!K54) -> 165097.56 | J23: =SUM(Start:End!L54) -> 315575.1889 | K23: =SUM(Start:End!M54) -> 373492.8223 | L23: =SUM(Start:End!N54) -> 468320.2867 | M23: =SUM(Start:End!O54) -> 576471.0475 | N23: =SUM(Start:End!P54) -> 699777.1803 | O23: =SUM(Start:End!Q54) -> 1096854.604 | P23: =SUM(Start:End!R54) -> 1256992.179 | Q23: =SUM(Start:End!S54) -> 1439405.185 | R23: =SUM(Start:End!T54) -> 1647133.746 | S23: =SUM(Start:End!U54) -> 1883626.847
B24: Communal Tax | C24: =Inputs!E179 -> 0 | D24: =SUM(Start:End!F55) -> 0 | E24: =SUM(Start:End!G55) -> 0 | F24: =SUM(Start:End!H55) -> 0 | G24: =SUM(Start:End!I55) -> 0 | H24: =SUM(Start:End!J55) -> 0 | I24: =SUM(Start:End!K55) -> 0 | J24: =SUM(Start:End!L55) -> 0 | K24: =SUM(Start:End!M55) -> 0 | L24: =SUM(Start:End!N55) -> 0 | M24: =SUM(Start:End!O55) -> 0 | N24: =SUM(Start:End!P55) -> 0 | O24: =SUM(Start:End!Q55) -> 0 | P24: =SUM(Start:End!R55) -> 0 | Q24: =SUM(Start:End!S55) -> 0 | R24: =SUM(Start:End!T55) -> 0 | S24: =SUM(Start:End!U55) -> 0
B25: Local Tax | C25: =Inputs!E180 -> 0 | D25: =SUM(Start:End!F56) -> 0 | E25: =SUM(Start:End!G56) -> 0 | F25: =SUM(Start:End!H56) -> 0 | G25: =SUM(Start:End!I56) -> 0 | H25: =SUM(Start:End!J56) -> 0 | I25: =SUM(Start:End!K56) -> 0 | J25: =SUM(Start:End!L56) -> 0 | K25: =SUM(Start:End!M56) -> 0 | L25: =SUM(Start:End!N56) -> 0 | M25: =SUM(Start:End!O56) -> 0 | N25: =SUM(Start:End!P56) -> 0 | O25: =SUM(Start:End!Q56) -> 0 | P25: =SUM(Start:End!R56) -> 0 | Q25: =SUM(Start:End!S56) -> 0 | R25: =SUM(Start:End!T56) -> 0 | S25: =SUM(Start:End!U56) -> 0
B27: Net Income | D27: =D19-SUM(D21:D25) -> 0 | E27: =E19-SUM(E21:E25) -> -14068579.06 | F27: =F19-SUM(F21:F25) -> -1573967.459 | G27: 877165.4717 | H27: 8421430.927 | I27: 11186717.04 | J27: 16302956.42 | K27: 18272155.96 | L27: 21496289.75 | M27: 25173415.61 | N27: 29365824.13 | O27: 30039656.52 | P27: 35484334.07 | Q27: 41686376.3 | R27: 48749147.37 | S27: 56789912.8
A29: x | B29: Cash Flow Statement
A31: x | B31: Operating Cash Flow
B32: EBITDA | D32: =D11 -> 0 | E32: =E11 -> 804820.9389 | F32: 12572356.83 | G32: 14172811.18 | H32: 22062032.55 | I32: 24964135.87 | J32: 28605559.44 | K32: 32761441.12 | L32: 37502814.33 | M32: 42910352.37 | N32: 49075659.02 | O32: 56102730.18 | P32: 64109608.93 | Q32: 73230259.26 | R32: 83616687.31 | S32: 95441342.36
B33: Gross Profit | D33: =D32 -> 0 | E33: =E32 -> 804820.9389 | F33: 12572356.83 | G33: 14172811.18 | H33: 22062032.55 | I33: 24964135.87 | J33: 28605559.44 | K33: 32761441.12 | L33: 37502814.33 | M33: 42910352.37 | N33: 49075659.02 | O33: 56102730.18 | P33: 64109608.93 | Q33: 73230259.26 | R33: 83616687.31 | S33: 95441342.36
B34: Tax Paid | D34: =SUM(D21:D25) -> 0 | E34: 0 | F34: 0 | G34: 0 | H34: 1340249.848 | I34: 2641560.96 | J34: 5049203.022 | K34: 5975885.157 | L34: 7493124.587 | M34: 9223536.759 | N34: 11196434.88 | O34: 17549673.66 | P34: 20111874.86 | Q34: 23030482.96 | R34: 26354139.94 | S34: 30138029.55
A35: x | B35: Total Operating Cash Flow | D35: =D33-D34 -> 0 | E35: =E33-E34 -> 804820.9389 | F35: =F33-F34 -> 12572356.83 | G35: 14172811.18 | H35: 20721782.7 | I35: 22322574.91 | J35: 23556356.42 | K35: =K33-K34 -> 26785555.96 | L35: 30009689.75 | M35: 33686815.61 | N35: 37879224.13 | O35: 38553056.52 | P35: 43997734.07 | Q35: 50199776.3 | R35: 57262547.37 | S35: 65303312.8
A37: x | B37: Investing Cash Flow
B38: Initial CAPEX | D38: =-SUM(Start:End!F116) -> -140868000 | E38: =-SUM(Start:End!G116) -> 0 | F38: =-SUM(Start:End!H116) -> 0 | G38: =-SUM(Start:End!I116) -> 0 | H38: =-SUM(Start:End!J116) -> 0 | I38: =-SUM(Start:End!K116) -> 0 | J38: =-SUM(Start:End!L116) -> 0 | K38: =-SUM(Start:End!M116) -> 0 | L38: =-SUM(Start:End!N116) -> 0 | M38: =-SUM(Start:End!O116) -> 0 | N38: =-SUM(Start:End!P116) -> 0 | O38: =-SUM(Start:End!Q116) -> 0 | P38: =-SUM(Start:End!R116) -> 0 | Q38: =-SUM(Start:End!S116) -> 0 | R38: =-SUM(Start:End!T116) -> 0 | S38: =-SUM(Start:End!U116) -> 0
B39: Ongoing CAPEX | D39: =-SUM(Start:End!F200)-SUM(Start:End!F206) -> 0 | E39: =-SUM(Start:End!G200)-SUM(Start:End!G206) -> 0 | F39: =-SUM(Start:End!H200)-SUM(Start:End!H206) -> 0 | G39: =-SUM(Start:End!I200)-SUM(Start:End!I206) -> 0 | H39: =-SUM(Start:End!J200)-SUM(Start:End!J206) -> 0 | I39: =-SUM(Start:End!K200)-SUM(Start:End!K206) -> 0 | J39: =-SUM(Start:End!L200)-SUM(Start:End!L206) -> -6300000 | K39: =-SUM(Start:End!M200)-SUM(Start:End!M206) -> 0 | L39: =-SUM(Start:End!N200)-SUM(Start:End!N206) -> 0 | M39: =-SUM(Start:End!O200)-SUM(Start:End!O206) -> 0 | N39: =-SUM(Start:End!P200)-SUM(Start:End!P206) -> 0 | O39: =-SUM(Start:End!Q200)-SUM(Start:End!Q206) -> -6300000 | P39: =-SUM(Start:End!R200)-SUM(Start:End!R206) -> 0 | Q39: =-SUM(Start:End!S200)-SUM(Start:End!S206) -> 0 | R39: =-SUM(Start:End!T200)-SUM(Start:End!T206) -> 0 | S39: =-SUM(Start:End!U200)-SUM(Start:End!U206) -> 0
B40: Total CAPEX | D40: =SUM(D38:D39) -> -140868000 | E40: =SUM(E38:E39) -> 0 | F40: 0 | G40: 0 | H40: 0 | I40: 0 | J40: -6300000 | K40: 0 | L40: 0 | M40: 0 | N40: 0 | O40: -6300000 | P40: 0 | Q40: 0 | R40: 0 | S40: 0
B41: Total Investing Cashflows | D41: =D40 -> -140868000 | E41: =E40 -> 0 | F41: 0 | G41: 0 | H41: 0 | I41: 0 | J41: -6300000 | K41: 0 | L41: 0 | M41: 0 | N41: 0 | O41: -6300000 | P41: 0 | Q41: 0 | R41: 0 | S41: 0
A43: x | B43: Financing Cash Flow
B44: Debt | D44: ='Operating Model'!D236 -> 30000000
B45: Equity (NGN) | D45: =Inputs!E208 -> 110868000
B46: Grant Funding | D46: ='Operating Model'!F224 -> 0 | E46: ='Operating Model'!G224 -> 103526640 | F46: ='Operating Model'!H224 -> 13264350.75 | G46: ='Operating Model'!I224 -> 0 | H46: ='Operating Model'!J224 -> 13935858.51 | I46: ='Operating Model'!K224 -> 0 | J46: ='Operating Model'!L224 -> 0 | K46: ='Operating Model'!M224 -> 0 | L46: ='Operating Model'!N224 -> 0 | M46: ='Operating Model'!O224 -> 0 | N46: ='Operating Model'!P224 -> 0 | O46: ='Operating Model'!Q224 -> 0 | P46: ='Operating Model'!R224 -> 0 | Q46: ='Operating Model'!S224 -> 0 | R46: ='Operating Model'!T224 -> 0 | S46: ='Operating Model'!U224 -> 0
B47: Debt Principal Payments | D47: =-'Operating Model'!F242 -> 0 | E47: =-'Operating Model'!G242 -> -4276915.93 | F47: =-'Operating Model'!H242 -> -5003991.639 | G47: =-'Operating Model'!I242 -> -5854670.217 | H47: =-'Operating Model'!J242 -> -6849964.154 | I47: =-'Operating Model'!K242 -> -8014458.06 | J47: =-'Operating Model'!L242 -> 0 | K47: =-'Operating Model'!M242 -> 0 | L47: =-'Operating Model'!N242 -> 0 | M47: =-'Operating Model'!O242 -> 0 | N47: =-'Operating Model'!P242 -> 0 | O47: =-'Operating Model'!Q242 -> 0 | P47: =-'Operating Model'!R242 -> 0 | Q47: =-'Operating Model'!S242 -> 0 | R47: =-'Operating Model'!T242 -> 0 | S47: =-'Operating Model'!U242 -> 0
B48: Debt Interest Payments | D48: ='Operating Model'!F245 -> 0 | E48: ='Operating Model'!G245 -> -5100000 | F48: ='Operating Model'!H245 -> -4372924.292 | G48: ='Operating Model'!I245 -> -3522245.713 | H48: ='Operating Model'!J245 -> -2526951.776 | I48: ='Operating Model'!K245 -> -1362457.87 | J48: ='Operating Model'!L245 -> 0 | K48: ='Operating Model'!M245 -> 0 | L48: ='Operating Model'!N245 -> 0 | M48: ='Operating Model'!O245 -> 0 | N48: ='Operating Model'!P245 -> 0 | O48: ='Operating Model'!Q245 -> 0 | P48: ='Operating Model'!R245 -> 0 | Q48: ='Operating Model'!S245 -> 0 | R48: ='Operating Model'!T245 -> 0 | S48: ='Operating Model'!U245 -> 0
B49: Total Financing Cash Flow | D49: =SUM(D44:D48) -> 140868000 | E49: =SUM(E44:E48) -> 94149724.07 | F49: =SUM(F44:F48) -> 3887434.82 | G49: -9376915.93 | H49: 4558942.576 | I49: -9376915.93 | J49: 0 | K49: 0 | L49: 0 | M49: 0 | N49: 0 | O49: 0 | P49: 0 | Q49: 0 | R49: 0 | S49: 0
B51: Free Cash Flow / Net Change in Cash | D51: =D35+D41+D49 -> 0 | E51: =E35+E41+E49 -> 94954545.01 | F51: =F35+F41+F49 -> 16459791.65 | G51: 4795895.255 | H51: 25280725.28 | I51: 12945658.98 | J51: 17256356.42 | K51: 26785555.96 | L51: 30009689.75 | M51: 33686815.61 | N51: 37879224.13 | O51: 32253056.52 | P51: 43997734.07 | Q51: 50199776.3 | R51: 57262547.37 | S51: 65303312.8
B53: Cash Available for Distribution to Equity Financiers | D53: =D51*Inputs!$E$212 -> 0 | E53: =E51*Inputs!$E$212 -> 94954545.01 | F53: =F51*Inputs!$E$212 -> 16459791.65 | G53: =G51*Inputs!$E$212 -> 4795895.255 | H53: =H51*Inputs!$E$212 -> 25280725.28 | I53: =I51*Inputs!$E$212 -> 12945658.98 | J53: =J51*Inputs!$E$212 -> 17256356.42 | K53: =K51*Inputs!$E$212 -> 26785555.96 | L53: =L51*Inputs!$E$212 -> 30009689.75 | M53: =M51*Inputs!$E$212 -> 33686815.61 | N53: =N51*Inputs!$E$212 -> 37879224.13 | O53: =O51*Inputs!$E$212 -> 32253056.52 | P53: =P51*Inputs!$E$212 -> 43997734.07 | Q53: =Q51*Inputs!$E$212 -> 50199776.3 | R53: =R51*Inputs!$E$212 -> 57262547.37 | S53: =S51*Inputs!$E$212 -> 65303312.8
B54: Cumulative Cash Flows | D54: =SUM($D$53:D53) -> 0 | E54: =SUM($D$53:E53) -> 94954545.01 | F54: =SUM($D$53:F53) -> 111414336.7 | G54: =SUM($D$53:G53) -> 116210231.9 | H54: =SUM($D$53:H53) -> 141490957.2 | I54: =SUM($D$53:I53) -> 154436616.2 | J54: =SUM($D$53:J53) -> 171692972.6 | K54: =SUM($D$53:K53) -> 198478528.6 | L54: =SUM($D$53:L53) -> 228488218.3 | M54: =SUM($D$53:M53) -> 262175033.9 | N54: =SUM($D$53:N53) -> 300054258 | O54: =SUM($D$53:O53) -> 332307314.6 | P54: =SUM($D$53:P53) -> 376305048.6 | Q54: =SUM($D$53:Q53) -> 426504824.9 | R54: =SUM($D$53:R53) -> 483767372.3 | S54: =SUM($D$53:S53) -> 549070685.1
A56: x | B56: Balance Sheet
B58: Non-current Assets | D58: =D76 -> 140868000 | E58: =E76 -> 131094600 | F58: =F76 -> 121321200 | G58: 111547800 | H58: 101774400 | I58: 92001000 | J58: 91047600 | K58: 82534200 | L58: 74020800 | M58: 65507400 | N58: 56994000 | O58: 54780600 | P58: 46267200 | Q58: 37753800 | R58: 29240400 | S58: 20727000
B59: Total asset | D59: =D58 -> 140868000 | E59: =E58 -> 131094600 | F59: 121321200 | G59: 111547800 | H59: 101774400 | I59: 92001000 | J59: 91047600 | K59: 82534200 | L59: 74020800 | M59: 65507400 | N59: 56994000 | O59: 54780600 | P59: 46267200 | Q59: 37753800 | R59: 29240400 | S59: 20727000
B61: Debt | D61: =-'Operating Model'!F243 -> 30000000 | E61: =-'Operating Model'!G243 -> 25723084.07 | F61: =-'Operating Model'!H243 -> 20719092.43 | G61: =-'Operating Model'!I243 -> 14864422.21 | H61: =-'Operating Model'!J243 -> 8014458.06 | I61: =-'Operating Model'!K243 -> 0 | J61: =-'Operating Model'!L243 -> 0 | K61: =-'Operating Model'!M243 -> 0 | L61: =-'Operating Model'!N243 -> 0 | M61: =-'Operating Model'!O243 -> 0 | N61: =-'Operating Model'!P243 -> 0 | O61: =-'Operating Model'!Q243 -> 0 | P61: =-'Operating Model'!R243 -> 0 | Q61: =-'Operating Model'!S243 -> 0 | R61: =-'Operating Model'!T243 -> 0 | S61: =-'Operating Model'!U243 -> 0
B62: Total Liabilities | D62: =D61 -> 30000000 | E62: =E61 -> 25723084.07 | F62: 20719092.43 | G62: 14864422.21 | H62: 8014458.06 | I62: 0 | J62: 0 | K62: 0 | L62: 0 | M62: 0 | N62: 0 | O62: 0 | P62: 0 | Q62: 0 | R62: 0 | S62: 0
B64: Net Assets | D64: =D59-D62 -> 110868000 | E64: =E59-E62 -> 105371515.9 | F64: 100602107.6 | G64: 96683377.79 | H64: 93759941.94 | I64: 92001000 | J64: 91047600 | K64: 82534200 | L64: 74020800 | M64: 65507400 | N64: 56994000 | O64: 54780600 | P64: 46267200 | Q64: 37753800 | R64: 29240400 | S64: 20727000
B66: Grants | D66: =SUM($D$46:D$46) -> 0 | E66: =SUM($D$46:E$46) -> 103526640 | F66: =SUM($D$46:F$46) -> 116790990.7 | G66: =SUM($D$46:G$46) -> 116790990.7 | H66: =SUM($D$46:H$46) -> 130726849.3 | I66: =SUM($D$46:I$46) -> 130726849.3 | J66: =SUM($D$46:J$46) -> 130726849.3 | K66: =SUM($D$46:K$46) -> 130726849.3 | L66: =SUM($D$46:L$46) -> 130726849.3 | M66: =SUM($D$46:M$46) -> 130726849.3 | N66: =SUM($D$46:N$46) -> 130726849.3 | O66: =SUM($D$46:O$46) -> 130726849.3 | P66: =SUM($D$46:P$46) -> 130726849.3 | Q66: =SUM($D$46:Q$46) -> 130726849.3 | R66: =SUM($D$46:R$46) -> 130726849.3 | S66: =SUM($D$46:S$46) -> 130726849.3
B67: Retained Earnings | D67: =SUM(D45:D45) -> 110868000 | E67: =D67+E27 -> 96799420.94 | F67: 95225453.48 | G67: 96102618.95 | H67: 104524049.9 | I67: 115710766.9 | J67: 132013723.3 | K67: 150285879.3 | L67: 171782169 | M67: 196955584.7 | N67: 226321408.8 | O67: 256361065.3 | P67: 291845399.4 | Q67: 333531775.7 | R67: 382280923.1 | S67: 439070835.9
B68: Cumulative Distributions | D68: =-D53 -> 0 | E68: =-SUM($D$53:E$53) -> -94954545.01 | F68: =-SUM($D$53:F$53) -> -111414336.7 | G68: =-SUM($D$53:G$53) -> -116210231.9 | H68: =-SUM($D$53:H$53) -> -141490957.2 | I68: =-SUM($D$53:I$53) -> -154436616.2 | J68: =-SUM($D$53:J$53) -> -171692972.6 | K68: =-SUM($D$53:K$53) -> -198478528.6 | L68: =-SUM($D$53:L$53) -> -228488218.3 | M68: =-SUM($D$53:M$53) -> -262175033.9 | N68: =-SUM($D$53:N$53) -> -300054258 | O68: =-SUM($D$53:O$53) -> -332307314.6 | P68: =-SUM($D$53:P$53) -> -376305048.6 | Q68: =-SUM($D$53:Q$53) -> -426504824.9 | R68: =-SUM($D$53:R$53) -> -483767372.3 | S68: =-SUM($D$53:S$53) -> -549070685.1
B69: Equity | D69: =SUM(D66:D68) -> 110868000 | E69: =SUM(E66:E68) -> 105371515.9 | F69: 100602107.6 | G69: 96683377.79 | H69: 93759941.94 | I69: 92001000 | J69: 91047600 | K69: 82534200 | L69: 74020800 | M69: 65507400 | N69: 56994000 | O69: 54780600 | P69: 46267200 | Q69: 37753800 | R69: 29240400 | S69: 20727000
B70: Check | C70: =IF(SUM(D70:S70)<>0,1,0) -> 0 | D70: =IF(ROUND(D64-D69,0) =0,"ok",D64-D69) -> ok | E70: =IF(ROUND(E64-E69,0) =0,"ok",E64-E69) -> ok | F70: ok | G70: ok | H70: ok | I70: ok | J70: ok | K70: ok | L70: ok | M70: ok | N70: ok | O70: ok | P70: ok | Q70: ok | R70: ok | S70: ok
B72: Non-current Assets
B73: Beginning Balance | E73: =D76 -> 140868000 | F73: =E76 -> 131094600 | G73: 121321200 | H73: 111547800 | I73: 101774400 | J73: 92001000 | K73: 91047600 | L73: 82534200 | M73: 74020800 | N73: 65507400 | O73: 56994000 | P73: 54780600 | Q73: 46267200 | R73: 37753800 | S73: 29240400
B74: CAPEX | D74: =-D40 -> 140868000 | E74: 0 | F74: 0 | G74: 0 | H74: 0 | I74: 0 | J74: 6300000 | K74: 0 | L74: 0 | M74: 0 | N74: 0 | O74: 6300000 | P74: 0 | Q74: 0 | R74: 0 | S74: 0
B75: Depreciation | E75: =-E13 -> -9773400 | F75: -9773400 | G75: -9773400 | H75: -9773400 | I75: -9773400 | J75: -7253400 | K75: -8513400 | L75: -8513400 | M75: -8513400 | N75: -8513400 | O75: -8513400 | P75: -8513400 | Q75: -8513400 | R75: -8513400 | S75: -8513400
B76: Closing Balance | D76: =SUM(D73:D75) -> 140868000 | E76: =SUM(E73:E75) -> 131094600 | F76: =SUM(F73:F75) -> 121321200 | G76: 111547800 | H76: 101774400 | I76: 92001000 | J76: 91047600 | K76: 82534200 | L76: 74020800 | M76: 65507400 | N76: 56994000 | O76: 54780600 | P76: 46267200 | Q76: 37753800 | R76: 29240400 | S76: 20727000
A78: x | B78: Performance and Returns Analysis
B80: Project IRR Cash Flows (NGN) | D80: =-CapEx -> -140868000 | E80: =E35+E41+E46 -> 104331460.9 | F80: =F35+F41+F46 -> 25836707.58 | G80: 14172811.18 | H80: 34657641.21 | I80: 22322574.91 | J80: 17256356.42 | K80: 26785555.96 | L80: 30009689.75 | M80: 33686815.61 | N80: 37879224.13 | O80: 32253056.52 | P80: 43997734.07 | Q80: 50199776.3 | R80: 57262547.37 | S80: 65303312.8
B81: Equity IRR Cash Flows (NGN) | C81: =Inputs!E212 -> 1 | D81: =-D45 -> -110868000 | E81: =(E53)*$C$81 -> 94954545.01 | F81: =(F53)*$C$81 -> 16459791.65 | G81: 4795895.255 | H81: 25280725.28 | I81: 12945658.98 | J81: 17256356.42 | K81: 26785555.96 | L81: 30009689.75 | M81: 33686815.61 | N81: 37879224.13 | O81: 32253056.52 | P81: 43997734.07 | Q81: 50199776.3 | R81: 57262547.37 | S81: 65303312.8
B82: Project IRR Cash Flows (USD) | D82: =D80/'Operating Model'!F7 -> -223600 | E82: =E80/'Operating Model'!G7 -> 161566.3352 | F82: =F80/'Operating Model'!H7 -> 39034.52417 | G82: =G80/'Operating Model'!I7 -> 20890.2605 | H82: =H80/'Operating Model'!J7 -> 49838.27365 | I82: =I80/'Operating Model'!K7 -> 31317.30721 | J82: =J80/'Operating Model'!L7 -> 23619.20962 | K82: =K80/'Operating Model'!M7 -> 35767.8683 | L82: =L80/'Operating Model'!N7 -> 39095.79357 | M82: =M80/'Operating Model'!O7 -> 42815.85505 | N82: =N80/'Operating Model'!P7 -> 46970.14182 | O82: =O80/'Operating Model'!Q7 -> 39018.25196 | P82: =P80/'Operating Model'!R7 -> 51928.21285 | Q82: =Q80/'Operating Model'!S7 -> 57803.08029 | R82: =R80/'Operating Model'!T7 -> 64327.40012 | S82: =S80/'Operating Model'!U7 -> 71570.93371
B83: Equity IRR Cash Flows (USD) | D83: =D81/'Operating Model'!F7 -> -175980.9524 | E83: =E81/'Operating Model'!G7 -> 147045.3659 | F83: =F81/'Operating Model'!H7 -> 24867.72485 | G83: =G81/'Operating Model'!I7 -> 7068.99287 | H83: =H81/'Operating Model'!J7 -> 36354.11011 | I83: =I81/'Operating Model'!K7 -> 18162.02571 | J83: =J81/'Operating Model'!L7 -> 23619.20962 | K83: =K81/'Operating Model'!M7 -> 35767.8683 | L83: =L81/'Operating Model'!N7 -> 39095.79357 | M83: =M81/'Operating Model'!O7 -> 42815.85505 | N83: =N81/'Operating Model'!P7 -> 46970.14182 | O83: =O81/'Operating Model'!Q7 -> 39018.25196 | P83: =P81/'Operating Model'!R7 -> 51928.21285 | Q83: =Q81/'Operating Model'!S7 -> 57803.08029 | R83: =R81/'Operating Model'!T7 -> 64327.40012 | S83: =S81/'Operating Model'!U7 -> 71570.93371
B85: Project IRR (NGN) | D85: =IRR(D80:S80) -> 0.3144732068
B86: Equity IRR (NGN) | D86: =IRR(D81:S81) -> 0.3452927004
B87: Project IRR (USD) | D87: =IRR(D82:S82) -> 0.2824128846
B88: Equity IRR (USD) | D88: =IRR(D83:S83) -> 0.3124806833
B90: Equity Payback Analysis
B91: Equity Investment (beginning of year) | D91: =D81 -> -110868000 | E91: =IF(D93<0,D93,0) -> -110868000 | F91: =IF(E93<0,E93,0) -> -15913454.99 | G91: 0 | H91: 0 | I91: 0 | J91: 0 | K91: 0 | L91: 0 | M91: 0 | N91: 0 | O91: 0 | P91: 0 | Q91: 0 | R91: 0 | S91: 0
B92: Cash Distributions to Equity | D92: =IF(D5>0,D81,0) -> 0 | E92: =IF(E5>0,E81,0) -> 94954545.01 | F92: =IF(F5>0,F81,0) -> 16459791.65 | G92: 4795895.255 | H92: 25280725.28 | I92: 12945658.98 | J92: 17256356.42 | K92: 26785555.96 | L92: 30009689.75 | M92: 33686815.61 | N92: 37879224.13 | O92: 32253056.52 | P92: 43997734.07 | Q92: 50199776.3 | R92: 57262547.37 | S92: 65303312.8
B93: Equity Investment (end of year) | D93: =SUM(D91:D92) -> -110868000 | E93: =SUM(E91:E92) -> -15913454.99 | F93: =SUM(F91:F92) -> 546336.6608 | G93: 4795895.255 | H93: 25280725.28 | I93: 12945658.98 | J93: 17256356.42 | K93: 26785555.96 | L93: 30009689.75 | M93: 33686815.61 | N93: 37879224.13 | O93: 32253056.52 | P93: 43997734.07 | Q93: 50199776.3 | R93: 57262547.37 | S93: 65303312.8
B94: Payback Years | D94: =IF(D93<=0,1,0) -> 1 | E94: =IF(E93<=0,1,0) -> 1 | F94: 0 | G94: 0 | H94: 0 | I94: 0 | J94: 0 | K94: 0 | L94: 0 | M94: 0 | N94: 0 | O94: 0 | P94: 0 | Q94: 0 | R94: 0 | S94: 0
B95: Payback (years) | D95: =SUM(D94:S94) -> 2
B97: Operating Profit Margin | C97: =AVERAGE(E97:S97) -> 0.2457299451 | D97: =IFERROR(D15/D8,"") ->  | E97: =IFERROR(E15/E8,"") -> -0.2561745271 | F97: =IFERROR(F15/F8,"") -> 0.06713688859 | G97: 0.0940198907 | H97: 0.2079376487 | I97: 0.2285534108 | J97: 0.2841704741 | K97: 0.2854825383 | L97: 0.3019568414 | M97: 0.3170035113 | N97: 0.3307808809 | O97: 0.3434289206 | P97: 0.3550713994 | Q97: 0.3658177889 | R97: 0.3757649414 | S97: 0.3849985688
B98: Debt Service Coverage Ratio (DSCR) | D98: ='Operating Model'!F247 ->  | E98: ='Operating Model'!G247 -> 11.12641531 | F98: ='Operating Model'!H247 -> 2.755352375 | G98: ='Operating Model'!I247 -> 1.511457636 | H98: ='Operating Model'!J247 -> 3.696059714 | I98: ='Operating Model'!K247 -> 2.380588146 | J98: ='Operating Model'!L247 ->  | K98: ='Operating Model'!M247 ->  | L98: ='Operating Model'!N247 ->  | M98: ='Operating Model'!O247 ->  | N98: ='Operating Model'!P247 ->  | O98: ='Operating Model'!Q247 ->  | P98: ='Operating Model'!R247 ->  | Q98: ='Operating Model'!S247 ->  | R98: ='Operating Model'!T247 ->  | S98: ='Operating Model'!U247 -> 

Sheet FS (USD) (hidden)
A1: Mini-grid Model Financial Statements (NGN)
A2: =Name_Model -> 
B3: ='FS (NGN)'!B3 -> Start date | D3: ='FS (NGN)'!D3 -> 2022-01-01 | E3: ='FS (NGN)'!E3 -> 2023-01-01 | F3: ='FS (NGN)'!F3 -> 2024-01-01 | G3: ='FS (NGN)'!G3 -> 2025-01-01 | H3: ='FS (NGN)'!H3 -> 2026-01-01 | I3: ='FS (NGN)'!I3 -> 2027-01-01 | J3: ='FS (NGN)'!J3 -> 2028-01-01 | K3: ='FS (NGN)'!K3 -> 2029-01-01 | L3: ='FS (NGN)'!L3 -> 2030-01-01 | M3: ='FS (NGN)'!M3 -> 2031-01-01 | N3: ='FS (NGN)'!N3 -> 2032-01-01 | O3: ='FS (NGN)'!O3 -> 2033-01-01 | P3: ='FS (NGN)'!P3 -> 2034-01-01 | Q3: ='FS (NGN)'!Q3 -> 2035-01-01 | R3: ='FS (NGN)'!R3 -> 2036-01-01 | S3: ='FS (NGN)'!S3 -> 2037-01-01
B4: ='FS (NGN)'!B4 -> End date | D4: ='FS (NGN)'!D4 -> 2022-12-31 | E4: ='FS (NGN)'!E4 -> 2023-12-31 | F4: ='FS (NGN)'!F4 -> 2024-12-31 | G4: ='FS (NGN)'!G4 -> 2025-12-31 | H4: ='FS (NGN)'!H4 -> 2026-12-31 | I4: ='FS (NGN)'!I4 -> 2027-12-31 | J4: ='FS (NGN)'!J4 -> 2028-12-31 | K4: ='FS (NGN)'!K4 -> 2029-12-31 | L4: ='FS (NGN)'!L4 -> 2030-12-31 | M4: ='FS (NGN)'!M4 -> 2031-12-31 | N4: ='FS (NGN)'!N4 -> 2032-12-31 | O4: ='FS (NGN)'!O4 -> 2033-12-31 | P4: ='FS (NGN)'!P4 -> 2034-12-31 | Q4: ='FS (NGN)'!Q4 -> 2035-12-31 | R4: ='FS (NGN)'!R4 -> 2036-12-31 | S4: ='FS (NGN)'!S4 -> 2037-12-31
B5: ='FS (NGN)'!B5 -> Period | D5: ='FS (NGN)'!D5 -> 0 | E5: ='FS (NGN)'!E5 -> 1 | F5: ='FS (NGN)'!F5 -> 2 | G5: ='FS (NGN)'!G5 -> 3 | H5: ='FS (NGN)'!H5 -> 4 | I5: ='FS (NGN)'!I5 -> 5 | J5: ='FS (NGN)'!J5 -> 6 | K5: ='FS (NGN)'!K5 -> 7 | L5: ='FS (NGN)'!L5 -> 8 | M5: ='FS (NGN)'!M5 -> 9 | N5: ='FS (NGN)'!N5 -> 10 | O5: ='FS (NGN)'!O5 -> 11 | P5: ='FS (NGN)'!P5 -> 12 | Q5: ='FS (NGN)'!Q5 -> 13 | R5: ='FS (NGN)'!R5 -> 14 | S5: ='FS (NGN)'!S5 -> 15
B6: Depreciation rate | D6: =ExRate -> 630 | E6: =D6*(1+Inputs!$E$187) -> 645.75 | F6: =E6*(1+Inputs!$E$187) -> 661.89375 | G6: =F6*(1+Inputs!$E$187) -> 678.4410937 | H6: =G6*(1+Inputs!$E$187) -> 695.4021211 | I6: =H6*(1+Inputs!$E$187) -> 712.7871741 | J6: =I6*(1+Inputs!$E$187) -> 730.6068535 | K6: =J6*(1+Inputs!$E$187) -> 748.8720248 | L6: =K6*(1+Inputs!$E$187) -> 767.5938254 | M6: =L6*(1+Inputs!$E$187) -> 786.7836711 | N6: =M6*(1+Inputs!$E$187) -> 806.4532628 | O6: =N6*(1+Inputs!$E$187) -> 826.6145944 | P6: =O6*(1+Inputs!$E$187) -> 847.2799593 | Q6: =P6*(1+Inputs!$E$187) -> 868.4619583 | R6: =Q6*(1+Inputs!$E$187) -> 890.1735072 | S6: =R6*(1+Inputs!$E$187) -> 912.4278449
A8: x | B8: ='FS (NGN)'!B7 -> Income Statement
B9: ='FS (NGN)'!B8 -> Revenue | D9: ='FS (NGN)'!D8/'Operating Model'!F7 -> 0 | E9: ='FS (NGN)'!E8/'Operating Model'!G7 -> 54215.47698 | F9: ='FS (NGN)'!F8/'Operating Model'!H7 -> 62986.38885 | G9: ='FS (NGN)'!G8/'Operating Model'!I7 -> 68970.38766 | H9: ='FS (NGN)'!H8/'Operating Model'!J7 -> 84983.4619 | I9: ='FS (NGN)'!I8/'Operating Model'!K7 -> 93246.21866 | J9: ='FS (NGN)'!J8/'Operating Model'!L7 -> 102844.0356 | K9: ='FS (NGN)'!K8/'Operating Model'!M7 -> 113419.9635 | L9: ='FS (NGN)'!L8/'Operating Model'!N7 -> 125072.8641 | M9: ='FS (NGN)'!M8/'Operating Model'!O7 -> 137911.5229 | N9: ='FS (NGN)'!N8/'Operating Model'!P7 -> 152055.6392 | O9: ='FS (NGN)'!O8/'Operating Model'!Q7 -> 167636.9144 | P9: ='FS (NGN)'!P8/'Operating Model'!R7 -> 184800.2491 | Q9: ='FS (NGN)'!Q8/'Operating Model'!S7 -> 203705.058 | R9: ='FS (NGN)'!R8/'Operating Model'!T7 -> 224526.7156 | S9: ='FS (NGN)'!S8/'Operating Model'!U7 -> 247458.1457
B10: ='FS (NGN)'!B9 -> Operating Costs | D10: ='FS (NGN)'!D9/D6 -> 0 | E10: ='FS (NGN)'!E9/E6 -> 27837.43449 | F10: ='FS (NGN)'!F9/F6 -> 16530.87717 | G10: ='FS (NGN)'!G9/G6 -> 18073.97495 | H10: ='FS (NGN)'!H9/H6 -> 20470.67611 | I10: ='FS (NGN)'!I9/I6 -> 22396.92635 | J10: ='FS (NGN)'!J9/J6 -> 24544.40037 | K10: ='FS (NGN)'!K9/K6 -> 26897.55035 | L10: ='FS (NGN)'!L9/L6 -> 29476.05453 | M10: ='FS (NGN)'!M9/M6 -> 32301.47201 | N10: ='FS (NGN)'!N9/N6 -> 35397.42243 | O10: ='FS (NGN)'!O9/O6 -> 38789.78266 | P10: ='FS (NGN)'!P9/P6 -> 42506.90236 | Q10: ='FS (NGN)'!Q9/Q6 -> 46579.84005 | R10: ='FS (NGN)'!R9/R6 -> 51042.6217 | S10: ='FS (NGN)'!S9/S6 -> 55932.52405
B11: ='FS (NGN)'!B10 -> Overhead Costs | D11: ='FS (NGN)'!D10/D6 -> 0 | E11: ='FS (NGN)'!E10/E6 -> 25131.70732 | F11: ='FS (NGN)'!F10/F6 -> 27460.98751 | G11: ='FS (NGN)'!G10/G6 -> 30006.1522 | H11: ='FS (NGN)'!H10/H6 -> 32787.21021 | I11: ='FS (NGN)'!I10/I6 -> 35826.02482 | J11: ='FS (NGN)'!J10/J6 -> 39146.48565 | K11: ='FS (NGN)'!K10/K6 -> 42774.69652 | L11: ='FS (NGN)'!L10/L6 -> 46739.18059 | M11: ='FS (NGN)'!M10/M6 -> 51071.10464 | N11: ='FS (NGN)'!N10/N6 -> 55804.5241 | O11: ='FS (NGN)'!O10/O6 -> 60976.65072 | P11: ='FS (NGN)'!P10/P6 -> 66628.14518 | Q11: ='FS (NGN)'!Q10/Q6 -> 72803.43668 | R11: ='FS (NGN)'!R10/R6 -> 79551.07228 | S11: ='FS (NGN)'!S10/S6 -> 86924.09849
B12: ='FS (NGN)'!B11 -> EBITDA | D12: ='FS (NGN)'!D11/D6 -> 0 | E12: ='FS (NGN)'!E11/E6 -> 1246.335174 | F12: ='FS (NGN)'!F11/F6 -> 18994.52417 | G12: ='FS (NGN)'!G11/G6 -> 20890.2605 | H12: ='FS (NGN)'!H11/H6 -> 31725.57558 | I12: ='FS (NGN)'!I11/I6 -> 35023.2675 | J12: ='FS (NGN)'!J11/J6 -> 39153.14961 | K12: ='FS (NGN)'!K11/K6 -> 43747.71661 | L12: ='FS (NGN)'!L11/L6 -> 48857.62899 | M12: ='FS (NGN)'!M11/M6 -> 54538.94628 | N12: ='FS (NGN)'!N11/N6 -> 60853.69268 | O12: ='FS (NGN)'!O11/O6 -> 67870.48106 | P12: ='FS (NGN)'!P11/P6 -> 75665.2016 | Q12: ='FS (NGN)'!Q11/Q6 -> 84321.78124 | R12: ='FS (NGN)'!R11/R6 -> 93933.02163 | S12: ='FS (NGN)'!S11/S6 -> 104601.5232
B14: ='FS (NGN)'!B13 -> Depreciation | D14: ='FS (NGN)'!D13/D6 -> 0 | E14: ='FS (NGN)'!E13/E6 -> 15134.95935 | F14: ='FS (NGN)'!F13/F6 -> 14765.814 | G14: ='FS (NGN)'!G13/G6 -> 14405.67219 | H14: ='FS (NGN)'!H13/H6 -> 14054.31434 | I14: ='FS (NGN)'!I13/I6 -> 13711.52618 | J14: ='FS (NGN)'!J13/J6 -> 9927.91125 | K14: ='FS (NGN)'!K13/K6 -> 11368.29754 | L14: ='FS (NGN)'!L13/L6 -> 11091.02199 | M14: ='FS (NGN)'!M13/M6 -> 10820.50926 | N14: ='FS (NGN)'!N13/N6 -> 10556.5944 | O14: ='FS (NGN)'!O13/O6 -> 10299.11649 | P14: ='FS (NGN)'!P13/P6 -> 10047.91853 | Q14: ='FS (NGN)'!Q13/Q6 -> 9802.847343 | R14: ='FS (NGN)'!R13/R6 -> 9563.753505 | S14: ='FS (NGN)'!S13/S6 -> 9330.491225
B16: ='FS (NGN)'!B15 -> EBIT | D16: ='FS (NGN)'!D15/D6 -> 0 | E16: ='FS (NGN)'!E15/E6 -> -13888.62418 | F16: ='FS (NGN)'!F15/F6 -> 4228.710171 | G16: ='FS (NGN)'!G15/G6 -> 6484.588309 | H16: ='FS (NGN)'!H15/H6 -> 17671.26124 | I16: ='FS (NGN)'!I15/I6 -> 21311.74132 | J16: ='FS (NGN)'!J15/J6 -> 29225.23836 | K16: ='FS (NGN)'!K15/K6 -> 32379.41906 | L16: ='FS (NGN)'!L15/L6 -> 37766.60699 | M16: ='FS (NGN)'!M15/M6 -> 43718.43702 | N16: ='FS (NGN)'!N15/N6 -> 50297.09827 | O16: ='FS (NGN)'!O15/O6 -> 57571.36457 | P16: ='FS (NGN)'!P15/P6 -> 65617.28307 | Q16: ='FS (NGN)'!Q15/Q6 -> 74518.9339 | R16: ='FS (NGN)'!R15/R6 -> 84369.26813 | S16: ='FS (NGN)'!S15/S6 -> 95271.03194
B18: ='FS (NGN)'!B17 -> Interest Expense | D18: ='FS (NGN)'!D17/D6 -> 0 | E18: ='FS (NGN)'!E17/E6 -> 0 | F18: ='FS (NGN)'!F17/F6 -> 0 | G18: ='FS (NGN)'!G17/G6 -> 0 | H18: ='FS (NGN)'!H17/H6 -> 0 | I18: ='FS (NGN)'!I17/I6 -> 0 | J18: ='FS (NGN)'!J17/J6 -> 0 | K18: ='FS (NGN)'!K17/K6 -> 0 | L18: ='FS (NGN)'!L17/L6 -> 0 | M18: ='FS (NGN)'!M17/M6 -> 0 | N18: ='FS (NGN)'!N17/N6 -> 0 | O18: ='FS (NGN)'!O17/O6 -> 0 | P18: ='FS (NGN)'!P17/P6 -> 0 | Q18: ='FS (NGN)'!Q17/Q6 -> 0 | R18: ='FS (NGN)'!R17/R6 -> 0 | S18: ='FS (NGN)'!S17/S6 -> 0
B20: ='FS (NGN)'!B19 -> EBT | D20: ='FS (NGN)'!D19/D6 -> 0 | E20: ='FS (NGN)'!E19/E6 -> -21786.41744 | F20: ='FS (NGN)'!F19/F6 -> -2377.976011 | G20: ='FS (NGN)'!G19/G6 -> 1292.913238 | H20: ='FS (NGN)'!H19/H6 -> 14037.46189 | I20: ='FS (NGN)'!I19/I6 -> 19400.29016 | J20: ='FS (NGN)'!J19/J6 -> 29225.23836 | K20: ='FS (NGN)'!K19/K6 -> 32379.41906 | L20: ='FS (NGN)'!L19/L6 -> 37766.60699 | M20: ='FS (NGN)'!M19/M6 -> 43718.43702 | N20: ='FS (NGN)'!N19/N6 -> 50297.09827 | O20: ='FS (NGN)'!O19/O6 -> 57571.36457 | P20: ='FS (NGN)'!P19/P6 -> 65617.28307 | Q20: ='FS (NGN)'!Q19/Q6 -> 74518.9339 | R20: ='FS (NGN)'!R19/R6 -> 84369.26813 | S20: ='FS (NGN)'!S19/S6 -> 95271.03194
B22: ='FS (NGN)'!B21 -> Income Tax Payable | D22: ='FS (NGN)'!D21/D6 -> 0 | E22: ='FS (NGN)'!E21/E6 -> 0 | F22: ='FS (NGN)'!F21/F6 -> 0 | G22: ='FS (NGN)'!G21/G6 -> 0 | H22: ='FS (NGN)'!H21/H6 -> 1806.845557 | I22: ='FS (NGN)'!I21/I6 -> 3474.337769 | J22: ='FS (NGN)'!J21/J6 -> 6479.035627 | K22: ='FS (NGN)'!K21/K6 -> 7481.107785 | L22: ='FS (NGN)'!L21/L6 -> 9151.720699 | M22: ='FS (NGN)'!M21/M6 -> 10990.39803 | N22: ='FS (NGN)'!N21/N6 -> 13015.82892 | O22: ='FS (NGN)'!O21/O6 -> 19903.85745 | P22: ='FS (NGN)'!P21/P6 -> 22253.42695 | Q22: ='FS (NGN)'!Q21/Q6 -> 24861.28215 | R22: ='FS (NGN)'!R21/R6 -> 27755.27017 | S22: ='FS (NGN)'!S21/S6 -> 30966.17762
B23: ='FS (NGN)'!B22 -> Regulator Tax | D23: ='FS (NGN)'!D22/D6 -> 0 | E23: ='FS (NGN)'!E22/E6 -> 0 | F23: ='FS (NGN)'!F22/F6 -> 0 | G23: ='FS (NGN)'!G22/G6 -> 0 | H23: ='FS (NGN)'!H22/H6 -> 0 | I23: ='FS (NGN)'!I22/I6 -> 0 | J23: ='FS (NGN)'!J22/J6 -> 0 | K23: ='FS (NGN)'!K22/K6 -> 0 | L23: ='FS (NGN)'!L22/L6 -> 0 | M23: ='FS (NGN)'!M22/M6 -> 0 | N23: ='FS (NGN)'!N22/N6 -> 0 | O23: ='FS (NGN)'!O22/O6 -> 0 | P23: ='FS (NGN)'!P22/P6 -> 0 | Q23: ='FS (NGN)'!Q22/Q6 -> 0 | R23: ='FS (NGN)'!R22/R6 -> 0 | S23: ='FS (NGN)'!S22/S6 -> 0
B24: ='FS (NGN)'!B23 -> Tertiary Education Trust Fund Contribution | D24: ='FS (NGN)'!D23/D6 -> 0 | E24: ='FS (NGN)'!E23/E6 -> 0 | F24: ='FS (NGN)'!F23/F6 -> 0 | G24: ='FS (NGN)'!G23/G6 -> 0 | H24: ='FS (NGN)'!H23/H6 -> 120.4563705 | I24: ='FS (NGN)'!I23/I6 -> 231.6225179 | J24: ='FS (NGN)'!J23/J6 -> 431.9357085 | K24: ='FS (NGN)'!K23/K6 -> 498.740519 | L24: ='FS (NGN)'!L23/L6 -> 610.1147132 | M24: ='FS (NGN)'!M23/M6 -> 732.6932023 | N24: ='FS (NGN)'!N23/N6 -> 867.7219283 | O24: ='FS (NGN)'!O23/O6 -> 1326.92383 | P24: ='FS (NGN)'!P23/P6 -> 1483.561797 | Q24: ='FS (NGN)'!Q23/Q6 -> 1657.41881 | R24: ='FS (NGN)'!R23/R6 -> 1850.351345 | S24: ='FS (NGN)'!S23/S6 -> 2064.411841
B25: ='FS (NGN)'!B24 -> Communal Tax | D25: ='FS (NGN)'!D24/D6 -> 0 | E25: ='FS (NGN)'!E24/E6 -> 0 | F25: ='FS (NGN)'!F24/F6 -> 0 | G25: ='FS (NGN)'!G24/G6 -> 0 | H25: ='FS (NGN)'!H24/H6 -> 0 | I25: ='FS (NGN)'!I24/I6 -> 0 | J25: ='FS (NGN)'!J24/J6 -> 0 | K25: ='FS (NGN)'!K24/K6 -> 0 | L25: ='FS (NGN)'!L24/L6 -> 0 | M25: ='FS (NGN)'!M24/M6 -> 0 | N25: ='FS (NGN)'!N24/N6 -> 0 | O25: ='FS (NGN)'!O24/O6 -> 0 | P25: ='FS (NGN)'!P24/P6 -> 0 | Q25: ='FS (NGN)'!Q24/Q6 -> 0 | R25: ='FS (NGN)'!R24/R6 -> 0 | S25: ='FS (NGN)'!S24/S6 -> 0
B26: ='FS (NGN)'!B25 -> Local Tax | D26: ='FS (NGN)'!D25/D6 -> 0 | E26: ='FS (NGN)'!E25/E6 -> 0 | F26: ='FS (NGN)'!F25/F6 -> 0 | G26: ='FS (NGN)'!G25/G6 -> 0 | H26: ='FS (NGN)'!H25/H6 -> 0 | I26: ='FS (NGN)'!I25/I6 -> 0 | J26: ='FS (NGN)'!J25/J6 -> 0 | K26: ='FS (NGN)'!K25/K6 -> 0 | L26: ='FS (NGN)'!L25/L6 -> 0 | M26: ='FS (NGN)'!M25/M6 -> 0 | N26: ='FS (NGN)'!N25/N6 -> 0 | O26: ='FS (NGN)'!O25/O6 -> 0 | P26: ='FS (NGN)'!P25/P6 -> 0 | Q26: ='FS (NGN)'!Q25/Q6 -> 0 | R26: ='FS (NGN)'!R25/R6 -> 0 | S26: ='FS (NGN)'!S25/S6 -> 0
B28: ='FS (NGN)'!B27 -> Net Income | D28: ='FS (NGN)'!D27/D6 -> 0 | E28: ='FS (NGN)'!E27/E6 -> -21786.41744 | F28: ='FS (NGN)'!F27/F6 -> -2377.976011 | G28: ='FS (NGN)'!G27/G6 -> 1292.913238 | H28: ='FS (NGN)'!H27/H6 -> 12110.15997 | I28: ='FS (NGN)'!I27/I6 -> 15694.32987 | J28: ='FS (NGN)'!J27/J6 -> 22314.26703 | K28: ='FS (NGN)'!K27/K6 -> 24399.57076 | L28: ='FS (NGN)'!L27/L6 -> 28004.77158 | M28: ='FS (NGN)'!M27/M6 -> 31995.34579 | N28: ='FS (NGN)'!N27/N6 -> 36413.54742 | O28: ='FS (NGN)'!O27/O6 -> 36340.58329 | P28: ='FS (NGN)'!P27/P6 -> 41880.29433 | Q28: ='FS (NGN)'!Q27/Q6 -> 48000.23294 | R28: ='FS (NGN)'!R27/R6 -> 54763.64661 | S28: ='FS (NGN)'!S27/S6 -> 62240.44249
A31: x | B31: ='FS (NGN)'!B29 -> Cash Flow Statement
B32: ='FS (NGN)'!B32 -> EBITDA | D32: ='FS (NGN)'!D32/D6 -> 0 | E32: ='FS (NGN)'!E32/E6 -> 1246.335174 | F32: ='FS (NGN)'!F32/F6 -> 18994.52417 | G32: ='FS (NGN)'!G32/G6 -> 20890.2605 | H32: ='FS (NGN)'!H32/H6 -> 31725.57558 | I32: ='FS (NGN)'!I32/I6 -> 35023.2675 | J32: ='FS (NGN)'!J32/J6 -> 39153.14961 | K32: ='FS (NGN)'!K32/K6 -> 43747.71661 | L32: ='FS (NGN)'!L32/L6 -> 48857.62899 | M32: ='FS (NGN)'!M32/M6 -> 54538.94628 | N32: ='FS (NGN)'!N32/N6 -> 60853.69268 | O32: ='FS (NGN)'!O32/O6 -> 67870.48106 | P32: ='FS (NGN)'!P32/P6 -> 75665.2016 | Q32: ='FS (NGN)'!Q32/Q6 -> 84321.78124 | R32: ='FS (NGN)'!R32/R6 -> 93933.02163 | S32: ='FS (NGN)'!S32/S6 -> 104601.5232
B33: ='FS (NGN)'!B33 -> Gross Profit | D33: ='FS (NGN)'!D33/D6 -> 0 | E33: ='FS (NGN)'!E33/E6 -> 1246.335174 | F33: ='FS (NGN)'!F33/F6 -> 18994.52417 | G33: ='FS (NGN)'!G33/G6 -> 20890.2605 | H33: ='FS (NGN)'!H33/H6 -> 31725.57558 | I33: ='FS (NGN)'!I33/I6 -> 35023.2675 | J33: ='FS (NGN)'!J33/J6 -> 39153.14961 | K33: ='FS (NGN)'!K33/K6 -> 43747.71661 | L33: ='FS (NGN)'!L33/L6 -> 48857.62899 | M33: ='FS (NGN)'!M33/M6 -> 54538.94628 | N33: ='FS (NGN)'!N33/N6 -> 60853.69268 | O33: ='FS (NGN)'!O33/O6 -> 67870.48106 | P33: ='FS (NGN)'!P33/P6 -> 75665.2016 | Q33: ='FS (NGN)'!Q33/Q6 -> 84321.78124 | R33: ='FS (NGN)'!R33/R6 -> 93933.02163 | S33: ='FS (NGN)'!S33/S6 -> 104601.5232
B34: ='FS (NGN)'!B34 -> Tax Paid | D34: ='FS (NGN)'!D34/D6 -> 0 | E34: ='FS (NGN)'!E34/E6 -> 0 | F34: ='FS (NGN)'!F34/F6 -> 0 | G34: ='FS (NGN)'!G34/G6 -> 0 | H34: ='FS (NGN)'!H34/H6 -> 1927.301927 | I34: ='FS (NGN)'!I34/I6 -> 3705.960287 | J34: ='FS (NGN)'!J34/J6 -> 6910.971335 | K34: ='FS (NGN)'!K34/K6 -> 7979.848304 | L34: ='FS (NGN)'!L34/L6 -> 9761.835412 | M34: ='FS (NGN)'!M34/M6 -> 11723.09124 | N34: ='FS (NGN)'!N34/N6 -> 13883.55085 | O34: ='FS (NGN)'!O34/O6 -> 21230.78128 | P34: ='FS (NGN)'!P34/P6 -> 23736.98874 | Q34: ='FS (NGN)'!Q34/Q6 -> 26518.70096 | R34: ='FS (NGN)'!R34/R6 -> 29605.62152 | S34: ='FS (NGN)'!S34/S6 -> 33030.58946
A35: x | B35: ='FS (NGN)'!B35 -> Total Operating Cash Flow | D35: ='FS (NGN)'!D35/D6 -> 0 | E35: ='FS (NGN)'!E35/E6 -> 1246.335174 | F35: ='FS (NGN)'!F35/F6 -> 18994.52417 | G35: ='FS (NGN)'!G35/G6 -> 20890.2605 | H35: ='FS (NGN)'!H35/H6 -> 29798.27365 | I35: ='FS (NGN)'!I35/I6 -> 31317.30721 | J35: ='FS (NGN)'!J35/J6 -> 32242.17828 | K35: ='FS (NGN)'!K35/K6 -> 35767.8683 | L35: ='FS (NGN)'!L35/L6 -> 39095.79357 | M35: ='FS (NGN)'!M35/M6 -> 42815.85505 | N35: ='FS (NGN)'!N35/N6 -> 46970.14182 | O35: ='FS (NGN)'!O35/O6 -> 46639.69978 | P35: ='FS (NGN)'!P35/P6 -> 51928.21285 | Q35: ='FS (NGN)'!Q35/Q6 -> 57803.08029 | R35: ='FS (NGN)'!R35/R6 -> 64327.40012 | S35: ='FS (NGN)'!S35/S6 -> 71570.93371
A37: x | B37: ='FS (NGN)'!B37 -> Investing Cash Flow
B38: ='FS (NGN)'!B38 -> Initial CAPEX | D38: ='FS (NGN)'!D38/D6 -> -223600 | E38: ='FS (NGN)'!E38/E6 -> 0 | F38: ='FS (NGN)'!F38/F6 -> 0 | G38: ='FS (NGN)'!G38/G6 -> 0 | H38: ='FS (NGN)'!H38/H6 -> 0 | I38: ='FS (NGN)'!I38/I6 -> 0 | J38: ='FS (NGN)'!J38/J6 -> 0 | K38: ='FS (NGN)'!K38/K6 -> 0 | L38: ='FS (NGN)'!L38/L6 -> 0 | M38: ='FS (NGN)'!M38/M6 -> 0 | N38: ='FS (NGN)'!N38/N6 -> 0 | O38: ='FS (NGN)'!O38/O6 -> 0 | P38: ='FS (NGN)'!P38/P6 -> 0 | Q38: ='FS (NGN)'!Q38/Q6 -> 0 | R38: ='FS (NGN)'!R38/R6 -> 0 | S38: ='FS (NGN)'!S38/S6 -> 0
B39: ='FS (NGN)'!#REF! ->  | D39: ='FS (NGN)'!#REF!/D6 ->  | E39: ='FS (NGN)'!#REF!/E6 ->  | F39: ='FS (NGN)'!#REF!/F6 ->  | G39: ='FS (NGN)'!#REF!/G6 ->  | H39: ='FS (NGN)'!#REF!/H6 ->  | I39: ='FS (NGN)'!#REF!/I6 ->  | J39: ='FS (NGN)'!#REF!/J6 ->  | K39: ='FS (NGN)'!#REF!/K6 ->  | L39: ='FS (NGN)'!#REF!/L6 ->  | M39: ='FS (NGN)'!#REF!/M6 ->  | N39: ='FS (NGN)'!#REF!/N6 ->  | O39: ='FS (NGN)'!#REF!/O6 ->  | P39: ='FS (NGN)'!#REF!/P6 ->  | Q39: ='FS (NGN)'!#REF!/Q6 ->  | R39: ='FS (NGN)'!#REF!/R6 ->  | S39: ='FS (NGN)'!#REF!/S6 -> 
B40: ='FS (NGN)'!#REF! ->  | D40: ='FS (NGN)'!#REF!/D6 ->  | E40: ='FS (NGN)'!#REF!/E6 ->  | F40: ='FS (NGN)'!#REF!/F6 ->  | G40: ='FS (NGN)'!#REF!/G6 ->  | H40: ='FS (NGN)'!#REF!/H6 ->  | I40: ='FS (NGN)'!#REF!/I6 ->  | J40: ='FS (NGN)'!#REF!/J6 ->  | K40: ='FS (NGN)'!#REF!/K6 ->  | L40: ='FS (NGN)'!#REF!/L6 ->  | M40: ='FS (NGN)'!#REF!/M6 ->  | N40: ='FS (NGN)'!#REF!/N6 ->  | O40: ='FS (NGN)'!#REF!/O6 ->  | P40: ='FS (NGN)'!#REF!/P6 ->  | Q40: ='FS (NGN)'!#REF!/Q6 ->  | R40: ='FS (NGN)'!#REF!/R6 ->  | S40: ='FS (NGN)'!#REF!/S6 -> 
B41: ='FS (NGN)'!B39 -> Ongoing CAPEX | D41: ='FS (NGN)'!D39/D6 -> 0 | E41: ='FS (NGN)'!E39/E6 -> 0 | F41: ='FS (NGN)'!F39/F6 -> 0 | G41: ='FS (NGN)'!G39/G6 -> 0 | H41: ='FS (NGN)'!H39/H6 -> 0 | I41: ='FS (NGN)'!I39/I6 -> 0 | J41: ='FS (NGN)'!J39/J6 -> -8622.96866 | K41: ='FS (NGN)'!K39/K6 -> 0 | L41: ='FS (NGN)'!L39/L6 -> 0 | M41: ='FS (NGN)'!M39/M6 -> 0 | N41: ='FS (NGN)'!N39/N6 -> 0 | O41: ='FS (NGN)'!O39/O6 -> -7621.447822 | P41: ='FS (NGN)'!P39/P6 -> 0 | Q41: ='FS (NGN)'!Q39/Q6 -> 0 | R41: ='FS (NGN)'!R39/R6 -> 0 | S41: ='FS (NGN)'!S39/S6 -> 0
B42: ='FS (NGN)'!B40 -> Total CAPEX | D42: ='FS (NGN)'!D40/D6 -> -223600 | E42: ='FS (NGN)'!E40/E6 -> 0 | F42: ='FS (NGN)'!F40/F6 -> 0 | G42: ='FS (NGN)'!G40/G6 -> 0 | H42: ='FS (NGN)'!H40/H6 -> 0 | I42: ='FS (NGN)'!I40/I6 -> 0 | J42: ='FS (NGN)'!J40/J6 -> -8622.96866 | K42: ='FS (NGN)'!K40/K6 -> 0 | L42: ='FS (NGN)'!L40/L6 -> 0 | M42: ='FS (NGN)'!M40/M6 -> 0 | N42: ='FS (NGN)'!N40/N6 -> 0 | O42: ='FS (NGN)'!O40/O6 -> -7621.447822 | P42: ='FS (NGN)'!P40/P6 -> 0 | Q42: ='FS (NGN)'!Q40/Q6 -> 0 | R42: ='FS (NGN)'!R40/R6 -> 0 | S42: ='FS (NGN)'!S40/S6 -> 0
B43: ='FS (NGN)'!B41 -> Total Investing Cashflows | D43: ='FS (NGN)'!D41/D6 -> -223600 | E43: ='FS (NGN)'!E41/E6 -> 0 | F43: ='FS (NGN)'!F41/F6 -> 0 | G43: ='FS (NGN)'!G41/G6 -> 0 | H43: ='FS (NGN)'!H41/H6 -> 0 | I43: ='FS (NGN)'!I41/I6 -> 0 | J43: ='FS (NGN)'!J41/J6 -> -8622.96866 | K43: ='FS (NGN)'!K41/K6 -> 0 | L43: ='FS (NGN)'!L41/L6 -> 0 | M43: ='FS (NGN)'!M41/M6 -> 0 | N43: ='FS (NGN)'!N41/N6 -> 0 | O43: ='FS (NGN)'!O41/O6 -> -7621.447822 | P43: ='FS (NGN)'!P41/P6 -> 0 | Q43: ='FS (NGN)'!Q41/Q6 -> 0 | R43: ='FS (NGN)'!R41/R6 -> 0 | S43: ='FS (NGN)'!S41/S6 -> 0
A45: x | B45: ='FS (NGN)'!B43 -> Financing Cash Flow
B46: ='FS (NGN)'!B44 -> Debt | D46: ='FS (NGN)'!D44/D6 -> 47619.04762 | E46: ='FS (NGN)'!E44/E6 -> 0 | F46: ='FS (NGN)'!F44/F6 -> 0 | G46: ='FS (NGN)'!G44/G6 -> 0 | H46: ='FS (NGN)'!H44/H6 -> 0 | I46: ='FS (NGN)'!I44/I6 -> 0 | J46: ='FS (NGN)'!J44/J6 -> 0 | K46: ='FS (NGN)'!K44/K6 -> 0 | L46: ='FS (NGN)'!L44/L6 -> 0 | M46: ='FS (NGN)'!M44/M6 -> 0 | N46: ='FS (NGN)'!N44/N6 -> 0 | O46: ='FS (NGN)'!O44/O6 -> 0 | P46: ='FS (NGN)'!P44/P6 -> 0 | Q46: ='FS (NGN)'!Q44/Q6 -> 0 | R46: ='FS (NGN)'!R44/R6 -> 0 | S46: ='FS (NGN)'!S44/S6 -> 0
B47: =Inputs!C209 -> Equity (USD) | D47: =Inputs!E208/D6 -> 175980.9524
B48: ='FS (NGN)'!B46 -> Grant Funding | D48: ='FS (NGN)'!D46/D6 -> 0 | E48: ='FS (NGN)'!E46/E6 -> 160320 | F48: ='FS (NGN)'!F46/F6 -> 20040 | G48: ='FS (NGN)'!G46/G6 -> 0 | H48: ='FS (NGN)'!H46/H6 -> 20040 | I48: ='FS (NGN)'!I46/I6 -> 0 | J48: ='FS (NGN)'!J46/J6 -> 0 | K48: ='FS (NGN)'!K46/K6 -> 0 | L48: ='FS (NGN)'!L46/L6 -> 0 | M48: ='FS (NGN)'!M46/M6 -> 0 | N48: ='FS (NGN)'!N46/N6 -> 0 | O48: ='FS (NGN)'!O46/O6 -> 0 | P48: ='FS (NGN)'!P46/P6 -> 0 | Q48: ='FS (NGN)'!Q46/Q6 -> 0 | R48: ='FS (NGN)'!R46/R6 -> 0 | S48: ='FS (NGN)'!S46/S6 -> 0
B49: ='FS (NGN)'!B47 -> Debt Principal Payments | D49: ='FS (NGN)'!D47/D6 -> 0 | E49: ='FS (NGN)'!E47/E6 -> -6623.176044 | F49: ='FS (NGN)'!F47/F6 -> -7560.113143 | G49: ='FS (NGN)'!G47/G6 -> -8629.592563 | H49: ='FS (NGN)'!H47/H6 -> -9850.364194 | I49: ='FS (NGN)'!I47/I6 -> -11243.83035 | J49: ='FS (NGN)'!J47/J6 -> 0 | K49: ='FS (NGN)'!K47/K6 -> 0 | L49: ='FS (NGN)'!L47/L6 -> 0 | M49: ='FS (NGN)'!M47/M6 -> 0 | N49: ='FS (NGN)'!N47/N6 -> 0 | O49: ='FS (NGN)'!O47/O6 -> 0 | P49: ='FS (NGN)'!P47/P6 -> 0 | Q49: ='FS (NGN)'!Q47/Q6 -> 0 | R49: ='FS (NGN)'!R47/R6 -> 0 | S49: ='FS (NGN)'!S47/S6 -> 0
B50: ='FS (NGN)'!B48 -> Debt Interest Payments | D50: ='FS (NGN)'!D48/D6 -> 0 | E50: ='FS (NGN)'!E48/E6 -> -7897.793264 | F50: ='FS (NGN)'!F48/F6 -> -6606.686182 | G50: ='FS (NGN)'!G48/G6 -> -5191.675071 | H50: ='FS (NGN)'!H48/H6 -> -3633.799351 | I50: ='FS (NGN)'!I48/I6 -> -1911.451159 | J50: ='FS (NGN)'!J48/J6 -> 0 | K50: ='FS (NGN)'!K48/K6 -> 0 | L50: ='FS (NGN)'!L48/L6 -> 0 | M50: ='FS (NGN)'!M48/M6 -> 0 | N50: ='FS (NGN)'!N48/N6 -> 0 | O50: ='FS (NGN)'!O48/O6 -> 0 | P50: ='FS (NGN)'!P48/P6 -> 0 | Q50: ='FS (NGN)'!Q48/Q6 -> 0 | R50: ='FS (NGN)'!R48/R6 -> 0 | S50: ='FS (NGN)'!S48/S6 -> 0
B51: ='FS (NGN)'!B49 -> Total Financing Cash Flow | D51: ='FS (NGN)'!D49/D6 -> 223600 | E51: ='FS (NGN)'!E49/E6 -> 145799.0307 | F51: ='FS (NGN)'!F49/F6 -> 5873.200676 | G51: ='FS (NGN)'!G49/G6 -> -13821.26763 | H51: ='FS (NGN)'!H49/H6 -> 6555.836455 | I51: ='FS (NGN)'!I49/I6 -> -13155.28151 | J51: ='FS (NGN)'!J49/J6 -> 0 | K51: ='FS (NGN)'!K49/K6 -> 0 | L51: ='FS (NGN)'!L49/L6 -> 0 | M51: ='FS (NGN)'!M49/M6 -> 0 | N51: ='FS (NGN)'!N49/N6 -> 0 | O51: ='FS (NGN)'!O49/O6 -> 0 | P51: ='FS (NGN)'!P49/P6 -> 0 | Q51: ='FS (NGN)'!Q49/Q6 -> 0 | R51: ='FS (NGN)'!R49/R6 -> 0 | S51: ='FS (NGN)'!S49/S6 -> 0
B53: ='FS (NGN)'!B51 -> Free Cash Flow / Net Change in Cash | D53: ='FS (NGN)'!D51/D6 -> 0 | E53: ='FS (NGN)'!E51/E6 -> 147045.3659 | F53: ='FS (NGN)'!F51/F6 -> 24867.72485 | G53: ='FS (NGN)'!G51/G6 -> 7068.99287 | H53: ='FS (NGN)'!H51/H6 -> 36354.11011 | I53: ='FS (NGN)'!I51/I6 -> 18162.02571 | J53: ='FS (NGN)'!J51/J6 -> 23619.20962 | K53: ='FS (NGN)'!K51/K6 -> 35767.8683 | L53: ='FS (NGN)'!L51/L6 -> 39095.79357 | M53: ='FS (NGN)'!M51/M6 -> 42815.85505 | N53: ='FS (NGN)'!N51/N6 -> 46970.14182 | O53: ='FS (NGN)'!O51/O6 -> 39018.25196 | P53: ='FS (NGN)'!P51/P6 -> 51928.21285 | Q53: ='FS (NGN)'!Q51/Q6 -> 57803.08029 | R53: ='FS (NGN)'!R51/R6 -> 64327.40012 | S53: ='FS (NGN)'!S51/S6 -> 71570.93371
D54: ='FS (NGN)'!#REF!/D6 ->  | E54: ='FS (NGN)'!#REF!/E6 ->  | F54: ='FS (NGN)'!#REF!/F6 ->  | G54: ='FS (NGN)'!#REF!/G6 ->  | H54: ='FS (NGN)'!#REF!/H6 ->  | I54: ='FS (NGN)'!#REF!/I6 ->  | J54: ='FS (NGN)'!#REF!/J6 ->  | K54: ='FS (NGN)'!#REF!/K6 ->  | L54: ='FS (NGN)'!#REF!/L6 ->  | M54: ='FS (NGN)'!#REF!/M6 ->  | N54: ='FS (NGN)'!#REF!/N6 ->  | O54: ='FS (NGN)'!#REF!/O6 ->  | P54: ='FS (NGN)'!#REF!/P6 ->  | Q54: ='FS (NGN)'!#REF!/Q6 ->  | R54: ='FS (NGN)'!#REF!/R6 ->  | S54: ='FS (NGN)'!#REF!/S6 -> 
B55: ='FS (NGN)'!B53 -> Cash Available for Distribution to Equity Financiers | D55: ='FS (NGN)'!D53/D6 -> 0 | E55: ='FS (NGN)'!E53/E6 -> 147045.3659 | F55: ='FS (NGN)'!F53/F6 -> 24867.72485 | G55: ='FS (NGN)'!G53/G6 -> 7068.99287 | H55: ='FS (NGN)'!H53/H6 -> 36354.11011 | I55: ='FS (NGN)'!I53/I6 -> 18162.02571 | J55: ='FS (NGN)'!J53/J6 -> 23619.20962 | K55: ='FS (NGN)'!K53/K6 -> 35767.8683 | L55: ='FS (NGN)'!L53/L6 -> 39095.79357 | M55: ='FS (NGN)'!M53/M6 -> 42815.85505 | N55: ='FS (NGN)'!N53/N6 -> 46970.14182 | O55: ='FS (NGN)'!O53/O6 -> 39018.25196 | P55: ='FS (NGN)'!P53/P6 -> 51928.21285 | Q55: ='FS (NGN)'!Q53/Q6 -> 57803.08029 | R55: ='FS (NGN)'!R53/R6 -> 64327.40012 | S55: ='FS (NGN)'!S53/S6 -> 71570.93371
B56: ='FS (NGN)'!B54 -> Cumulative Cash Flows | D56: ='FS (NGN)'!D54/D6 -> 0 | E56: ='FS (NGN)'!E54/E6 -> 147045.3659 | F56: ='FS (NGN)'!F54/F6 -> 168326.6184 | G56: ='FS (NGN)'!G54/G6 -> 171290.084 | H56: ='FS (NGN)'!H54/H6 -> 203466.3872 | I56: ='FS (NGN)'!I54/I6 -> 216665.818 | J56: ='FS (NGN)'!J54/J6 -> 235000.4955 | K56: ='FS (NGN)'!K54/K6 -> 265036.6444 | L56: ='FS (NGN)'!L54/L6 -> 297668.1296 | M56: ='FS (NGN)'!M54/M6 -> 333223.7864 | N56: ='FS (NGN)'!N54/N6 -> 372066.5188 | O56: ='FS (NGN)'!O54/O6 -> 402009.9776 | P56: ='FS (NGN)'!P54/P6 -> 444133.069 | Q56: ='FS (NGN)'!Q54/Q6 -> 491103.6354 | R56: ='FS (NGN)'!R54/R6 -> 543452.8981 | S56: ='FS (NGN)'!S54/S6 -> 601768.8831
B59: ='FS (NGN)'!B56 -> Balance Sheet
B61: ='FS (NGN)'!B58 -> Non-current Assets | D61: ='FS (NGN)'!D58/D6 -> 223600 | E61: ='FS (NGN)'!E58/E6 -> 203011.3821 | F61: ='FS (NGN)'!F58/F6 -> 183294.071 | G61: ='FS (NGN)'!G58/G6 -> 164417.8117 | H61: ='FS (NGN)'!H58/H6 -> 146353.3068 | I61: ='FS (NGN)'!I58/I6 -> 129072.1878 | J61: ='FS (NGN)'!J58/J6 -> 124619.1431 | K61: ='FS (NGN)'!K58/K6 -> 110211.3542 | L61: ='FS (NGN)'!L58/L6 -> 96432.25043 | M61: ='FS (NGN)'!M58/M6 -> 83259.73506 | N61: ='FS (NGN)'!N58/N6 -> 70672.41541 | O61: ='FS (NGN)'!O58/O6 -> 66271.02929 | P61: ='FS (NGN)'!P58/P6 -> 54606.7442 | Q61: ='FS (NGN)'!Q58/Q6 -> 43472.02505 | R61: ='FS (NGN)'!R58/R6 -> 32847.97825 | S61: ='FS (NGN)'!S58/S6 -> 22716.31682
B62: ='FS (NGN)'!B59 -> Total asset | D62: ='FS (NGN)'!D59/D6 -> 223600 | E62: ='FS (NGN)'!E59/E6 -> 203011.3821 | F62: ='FS (NGN)'!F59/F6 -> 183294.071 | G62: ='FS (NGN)'!G59/G6 -> 164417.8117 | H62: ='FS (NGN)'!H59/H6 -> 146353.3068 | I62: ='FS (NGN)'!I59/I6 -> 129072.1878 | J62: ='FS (NGN)'!J59/J6 -> 124619.1431 | K62: ='FS (NGN)'!K59/K6 -> 110211.3542 | L62: ='FS (NGN)'!L59/L6 -> 96432.25043 | M62: ='FS (NGN)'!M59/M6 -> 83259.73506 | N62: ='FS (NGN)'!N59/N6 -> 70672.41541 | O62: ='FS (NGN)'!O59/O6 -> 66271.02929 | P62: ='FS (NGN)'!P59/P6 -> 54606.7442 | Q62: ='FS (NGN)'!Q59/Q6 -> 43472.02505 | R62: ='FS (NGN)'!R59/R6 -> 32847.97825 | S62: ='FS (NGN)'!S59/S6 -> 22716.31682
B64: ='FS (NGN)'!B61 -> Debt | D64: ='FS (NGN)'!D61/D6 -> 47619.04762 | E64: ='FS (NGN)'!E61/E6 -> 39834.43139 | F64: ='FS (NGN)'!F61/F6 -> 31302.74675 | G64: ='FS (NGN)'!G61/G6 -> 21909.67256 | H64: ='FS (NGN)'!H61/H6 -> 11524.92611 | I64: ='FS (NGN)'!I61/I6 -> 0 | J64: ='FS (NGN)'!J61/J6 -> 0 | K64: ='FS (NGN)'!K61/K6 -> 0 | L64: ='FS (NGN)'!L61/L6 -> 0 | M64: ='FS (NGN)'!M61/M6 -> 0 | N64: ='FS (NGN)'!N61/N6 -> 0 | O64: ='FS (NGN)'!O61/O6 -> 0 | P64: ='FS (NGN)'!P61/P6 -> 0 | Q64: ='FS (NGN)'!Q61/Q6 -> 0 | R64: ='FS (NGN)'!R61/R6 -> 0 | S64: ='FS (NGN)'!S61/S6 -> 0
B65: ='FS (NGN)'!B62 -> Total Liabilities | D65: ='FS (NGN)'!D62/D6 -> 47619.04762 | E65: ='FS (NGN)'!E62/E6 -> 39834.43139 | F65: ='FS (NGN)'!F62/F6 -> 31302.74675 | G65: ='FS (NGN)'!G62/G6 -> 21909.67256 | H65: ='FS (NGN)'!H62/H6 -> 11524.92611 | I65: ='FS (NGN)'!I62/I6 -> 0 | J65: ='FS (NGN)'!J62/J6 -> 0 | K65: ='FS (NGN)'!K62/K6 -> 0 | L65: ='FS (NGN)'!L62/L6 -> 0 | M65: ='FS (NGN)'!M62/M6 -> 0 | N65: ='FS (NGN)'!N62/N6 -> 0 | O65: ='FS (NGN)'!O62/O6 -> 0 | P65: ='FS (NGN)'!P62/P6 -> 0 | Q65: ='FS (NGN)'!Q62/Q6 -> 0 | R65: ='FS (NGN)'!R62/R6 -> 0 | S65: ='FS (NGN)'!S62/S6 -> 0
B67: ='FS (NGN)'!B64 -> Net Assets | D67: ='FS (NGN)'!D64/D6 -> 175980.9524 | E67: ='FS (NGN)'!E64/E6 -> 163176.9507 | F67: ='FS (NGN)'!F64/F6 -> 151991.3242 | G67: ='FS (NGN)'!G64/G6 -> 142508.1391 | H67: ='FS (NGN)'!H64/H6 -> 134828.3807 | I67: ='FS (NGN)'!I64/I6 -> 129072.1878 | J67: ='FS (NGN)'!J64/J6 -> 124619.1431 | K67: ='FS (NGN)'!K64/K6 -> 110211.3542 | L67: ='FS (NGN)'!L64/L6 -> 96432.25043 | M67: ='FS (NGN)'!M64/M6 -> 83259.73506 | N67: ='FS (NGN)'!N64/N6 -> 70672.41541 | O67: ='FS (NGN)'!O64/O6 -> 66271.02929 | P67: ='FS (NGN)'!P64/P6 -> 54606.7442 | Q67: ='FS (NGN)'!Q64/Q6 -> 43472.02505 | R67: ='FS (NGN)'!R64/R6 -> 32847.97825 | S67: ='FS (NGN)'!S64/S6 -> 22716.31682
A68: x
B69: ='FS (NGN)'!B66 -> Grants | D69: ='FS (NGN)'!D66/D6 -> 0 | E69: ='FS (NGN)'!E66/E6 -> 160320 | F69: ='FS (NGN)'!F66/F6 -> 176449.7561 | G69: ='FS (NGN)'!G66/G6 -> 172146.1035 | H69: ='FS (NGN)'!H66/H6 -> 187987.4181 | I69: ='FS (NGN)'!I66/I6 -> 183402.3591 | J69: ='FS (NGN)'!J66/J6 -> 178929.1308 | K69: ='FS (NGN)'!K66/K6 -> 174565.0057 | L69: ='FS (NGN)'!L66/L6 -> 170307.3226 | M69: ='FS (NGN)'!M66/M6 -> 166153.4855 | N69: ='FS (NGN)'!N66/N6 -> 162100.9614 | O69: ='FS (NGN)'!O66/O6 -> 158147.2794 | P69: ='FS (NGN)'!P66/P6 -> 154290.0287 | Q69: ='FS (NGN)'!Q66/Q6 -> 150526.8573 | R69: ='FS (NGN)'!R66/R6 -> 146855.4705 | S69: ='FS (NGN)'!S66/S6 -> 143273.6298
B70: ='FS (NGN)'!B67 -> Retained Earnings | D70: ='FS (NGN)'!D67/D6 -> 175980.9524 | E70: ='FS (NGN)'!E67/E6 -> 149902.3166 | F70: ='FS (NGN)'!F67/F6 -> 143868.1865 | G70: ='FS (NGN)'!G67/G6 -> 141652.1196 | H70: ='FS (NGN)'!H67/H6 -> 150307.3498 | I70: ='FS (NGN)'!I67/I6 -> 162335.6468 | J70: ='FS (NGN)'!J67/J6 -> 180690.5078 | K70: ='FS (NGN)'!K67/K6 -> 200682.993 | L70: ='FS (NGN)'!L67/L6 -> 223793.0574 | M70: ='FS (NGN)'!M67/M6 -> 250330.0359 | N70: ='FS (NGN)'!N67/N6 -> 280637.9727 | O70: ='FS (NGN)'!O67/O6 -> 310133.7274 | P70: ='FS (NGN)'!P67/P6 -> 344449.7845 | Q70: ='FS (NGN)'!Q67/Q6 -> 384048.8032 | R70: ='FS (NGN)'!R67/R6 -> 429445.4058 | S70: ='FS (NGN)'!S67/S6 -> 481211.5701
B71: ='FS (NGN)'!B68 -> Cumulative Distributions | D71: ='FS (NGN)'!D68/D6 -> 0 | E71: ='FS (NGN)'!E68/E6 -> -147045.3659 | F71: ='FS (NGN)'!F68/F6 -> -168326.6184 | G71: ='FS (NGN)'!G68/G6 -> -171290.084 | H71: ='FS (NGN)'!H68/H6 -> -203466.3872 | I71: ='FS (NGN)'!I68/I6 -> -216665.818 | J71: ='FS (NGN)'!J68/J6 -> -235000.4955 | K71: ='FS (NGN)'!K68/K6 -> -265036.6444 | L71: ='FS (NGN)'!L68/L6 -> -297668.1296 | M71: ='FS (NGN)'!M68/M6 -> -333223.7864 | N71: ='FS (NGN)'!N68/N6 -> -372066.5188 | O71: ='FS (NGN)'!O68/O6 -> -402009.9776 | P71: ='FS (NGN)'!P68/P6 -> -444133.069 | Q71: ='FS (NGN)'!Q68/Q6 -> -491103.6354 | R71: ='FS (NGN)'!R68/R6 -> -543452.8981 | S71: ='FS (NGN)'!S68/S6 -> -601768.8831
B72: ='FS (NGN)'!B69 -> Equity | D72: ='FS (NGN)'!D69/D6 -> 175980.9524 | E72: ='FS (NGN)'!E69/E6 -> 163176.9507 | F72: ='FS (NGN)'!F69/F6 -> 151991.3242 | G72: ='FS (NGN)'!G69/G6 -> 142508.1391 | H72: ='FS (NGN)'!H69/H6 -> 134828.3807 | I72: ='FS (NGN)'!I69/I6 -> 129072.1878 | J72: ='FS (NGN)'!J69/J6 -> 124619.1431 | K72: ='FS (NGN)'!K69/K6 -> 110211.3542 | L72: ='FS (NGN)'!L69/L6 -> 96432.25043 | M72: ='FS (NGN)'!M69/M6 -> 83259.73506 | N72: ='FS (NGN)'!N69/N6 -> 70672.41541 | O72: ='FS (NGN)'!O69/O6 -> 66271.02929 | P72: ='FS (NGN)'!P69/P6 -> 54606.7442 | Q72: ='FS (NGN)'!Q69/Q6 -> 43472.02505 | R72: ='FS (NGN)'!R69/R6 -> 32847.97825 | S72: ='FS (NGN)'!S69/S6 -> 22716.31682
B73: ='FS (NGN)'!B70 -> Check | D73: =IF(ROUND(D67-D72,0)=0,"ok",D67-D72) -> ok | E73: ok | F73: ok | G73: ok | H73: ok | I73: ok | J73: ok | K73: ok | L73: ok | M73: ok | N73: ok | O73: ok | P73: ok | Q73: ok | R73: ok | S73: ok
A86: x
A109: x

Sheet Start
A1: Sheet intentionally left blank

Sheet Operating Model
A1: Project Operating Model
A2: =Name_Model -> 
B3: Timing | F3: =YEAR(F4) -> 2022 | G3: =F3+1 -> 2023 | H3: =G3+1 -> 2024 | I3: 2025 | J3: 2026 | K3: 2027 | L3: 2028 | M3: 2029 | N3: 2030 | O3: 2031 | P3: 2032 | Q3: 2033 | R3: 2034 | S3: 2035 | T3: 2036 | U3: 2037
B4: Start date | F4: =Inputs!E6 -> 2022-01-01 | G4: =F5+1 -> 2023-01-01 | H4: 2024-01-01 | I4: 2025-01-01 | J4: 2026-01-01 | K4: 2027-01-01 | L4: 2028-01-01 | M4: 2029-01-01 | N4: 2030-01-01 | O4: 2031-01-01 | P4: 2032-01-01 | Q4: 2033-01-01 | R4: 2034-01-01 | S4: 2035-01-01 | T4: 2036-01-01 | U4: 2037-01-01
B5: End date | F5: =EOMONTH(F4,11) -> 2022-12-31 | G5: =EOMONTH(G4,11) -> 2023-12-31 | H5: 2024-12-31 | I5: 2025-12-31 | J5: 2026-12-31 | K5: 2027-12-31 | L5: 2028-12-31 | M5: 2029-12-31 | N5: 2030-12-31 | O5: 2031-12-31 | P5: 2032-12-31 | Q5: 2033-12-31 | R5: 2034-12-31 | S5: 2035-12-31 | T5: 2036-12-31 | U5: 2037-12-31
B6: Inflation escalator | F6: 1 | G6: =F6*(1+Inputs!$E$186) -> 1.12 | H6: =G6*(1+Inputs!$E$186) -> 1.2544 | I6: =H6*(1+Inputs!$E$186) -> 1.404928 | J6: =I6*(1+Inputs!$E$186) -> 1.57351936 | K6: =J6*(1+Inputs!$E$186) -> 1.762341683 | L6: =K6*(1+Inputs!$E$186) -> 1.973822685 | M6: =L6*(1+Inputs!$E$186) -> 2.210681407 | N6: =M6*(1+Inputs!$E$186) -> 2.475963176 | O6: =N6*(1+Inputs!$E$186) -> 2.773078757 | P6: =O6*(1+Inputs!$E$186) -> 3.105848208 | Q6: =P6*(1+Inputs!$E$186) -> 3.478549993 | R6: =Q6*(1+Inputs!$E$186) -> 3.895975993 | S6: =R6*(1+Inputs!$E$186) -> 4.363493112 | T6: =S6*(1+Inputs!$E$186) -> 4.887112285 | U6: =T6*(1+Inputs!$E$186) -> 5.473565759
B7: Depreciation rate | F7: =ExRate -> 630 | G7: =F7*(1+Inputs!$E$187) -> 645.75 | H7: =G7*(1+Inputs!$E$187) -> 661.89375 | I7: =H7*(1+Inputs!$E$187) -> 678.4410937 | J7: =I7*(1+Inputs!$E$187) -> 695.4021211 | K7: =J7*(1+Inputs!$E$187) -> 712.7871741 | L7: =K7*(1+Inputs!$E$187) -> 730.6068535 | M7: =L7*(1+Inputs!$E$187) -> 748.8720248 | N7: =M7*(1+Inputs!$E$187) -> 767.5938254 | O7: =N7*(1+Inputs!$E$187) -> 786.7836711 | P7: =O7*(1+Inputs!$E$187) -> 806.4532628 | Q7: =P7*(1+Inputs!$E$187) -> 826.6145944 | R7: =Q7*(1+Inputs!$E$187) -> 847.2799593 | S7: =R7*(1+Inputs!$E$187) -> 868.4619583 | T7: =S7*(1+Inputs!$E$187) -> 890.1735072 | U7: =T7*(1+Inputs!$E$187) -> 912.4278449
B9: Construction flag | F9: =(F$5<=Inputs!$E$11)*1 -> 1 | G9: =(G$5<=Inputs!$E$11)*1 -> 0 | H9: =(H$5<=Inputs!$E$11)*1 -> 0 | I9: =(I$5<=Inputs!$E$11)*1 -> 0 | J9: =(J$5<=Inputs!$E$11)*1 -> 0 | K9: =(K$5<=Inputs!$E$11)*1 -> 0 | L9: =(L$5<=Inputs!$E$11)*1 -> 0 | M9: =(M$5<=Inputs!$E$11)*1 -> 0 | N9: =(N$5<=Inputs!$E$11)*1 -> 0 | O9: =(O$5<=Inputs!$E$11)*1 -> 0 | P9: =(P$5<=Inputs!$E$11)*1 -> 0 | Q9: =(Q$5<=Inputs!$E$11)*1 -> 0 | R9: =(R$5<=Inputs!$E$11)*1 -> 0 | S9: =(S$5<=Inputs!$E$11)*1 -> 0 | T9: =(T$5<=Inputs!$E$11)*1 -> 0 | U9: =(U$5<=Inputs!$E$11)*1 -> 0
B10: First year flag | F10: =IF(F12=1,0,1) -> 1 | G10: =IF(G12=1,0,1) -> 0 | H10: 1 | I10: 1 | J10: 1 | K10: 1 | L10: 1 | M10: 1 | N10: 1 | O10: 1 | P10: 1 | Q10: 1 | R10: 1 | S10: 1 | T10: 1 | U10: 1
B11: Operations flag | F11: =AND(F$4>=Inputs!$E$13,'Operating Model'!F$5<=Inputs!$E$16)*1 -> 0 | G11: =AND(G$4>=Inputs!$E$13,'Operating Model'!G$5<=Inputs!$E$16)*1 -> 1 | H11: =AND(H$4>=Inputs!$E$13,'Operating Model'!H$5<=Inputs!$E$16)*1 -> 1 | I11: =AND(I$4>=Inputs!$E$13,'Operating Model'!I$5<=Inputs!$E$16)*1 -> 1 | J11: =AND(J$4>=Inputs!$E$13,'Operating Model'!J$5<=Inputs!$E$16)*1 -> 1 | K11: =AND(K$4>=Inputs!$E$13,'Operating Model'!K$5<=Inputs!$E$16)*1 -> 1 | L11: =AND(L$4>=Inputs!$E$13,'Operating Model'!L$5<=Inputs!$E$16)*1 -> 1 | M11: =AND(M$4>=Inputs!$E$13,'Operating Model'!M$5<=Inputs!$E$16)*1 -> 1 | N11: =AND(N$4>=Inputs!$E$13,'Operating Model'!N$5<=Inputs!$E$16)*1 -> 1 | O11: =AND(O$4>=Inputs!$E$13,'Operating Model'!O$5<=Inputs!$E$16)*1 -> 1 | P11: =AND(P$4>=Inputs!$E$13,'Operating Model'!P$5<=Inputs!$E$16)*1 -> 1 | Q11: =AND(Q$4>=Inputs!$E$13,'Operating Model'!Q$5<=Inputs!$E$16)*1 -> 1 | R11: =AND(R$4>=Inputs!$E$13,'Operating Model'!R$5<=Inputs!$E$16)*1 -> 1 | S11: =AND(S$4>=Inputs!$E$13,'Operating Model'!S$5<=Inputs!$E$16)*1 -> 1 | T11: =AND(T$4>=Inputs!$E$13,'Operating Model'!T$5<=Inputs!$E$16)*1 -> 1 | U11: =AND(U$4>=Inputs!$E$13,'Operating Model'!U$5<=Inputs!$E$16)*1 -> 1
B12: Operations period count | F12: =SUM($F$11:F11) -> 0 | G12: =SUM($F$11:G11) -> 1 | H12: =SUM($F$11:H11) -> 2 | I12: =SUM($F$11:I11) -> 3 | J12: =SUM($F$11:J11) -> 4 | K12: =SUM($F$11:K11) -> 5 | L12: =SUM($F$11:L11) -> 6 | M12: =SUM($F$11:M11) -> 7 | N12: =SUM($F$11:N11) -> 8 | O12: =SUM($F$11:O11) -> 9 | P12: =SUM($F$11:P11) -> 10 | Q12: =SUM($F$11:Q11) -> 11 | R12: =SUM($F$11:R11) -> 12 | S12: =SUM($F$11:S11) -> 13 | T12: =SUM($F$11:T11) -> 14 | U12: =SUM($F$11:U11) -> 15
A14: x | B14: Income Statement
B16: Revenue
B17: Tariff | C17: NGN | F17: =F91+F92 -> 0 | G17: =G91+G92 -> 34065575.58 | H17: 43351851.48 | I17: 49034807.06 | J17: 61619339.24 | K17: 69683695.49 | L17: 78796178.74 | M17: 89092212.76 | N17: 100724630 | O17: 113865899.5 | P17: 128710638.9 | Q17: 145478447 | R17: 164417095.7 | S17: 185806130.5 | T17: 209960927.4 | U17: 237237267.4
B18: Connection Revenue | C18: NGN | F18: =F93 -> 0 | G18: =G93 -> 2672000 | H18: 334000 | I18: 0 | J18: 334000 | K18: 0 | L18: 0 | M18: 0 | N18: 0 | O18: 0 | P18: 0 | Q18: 0 | R18: 0 | S18: 0 | T18: 0 | U18: 0
B19: Fixed Charges | C19: NGN | F19: =F94 -> 0 | G19: =G94 -> 897792 | H19: 1131217.92 | I19: 1266964.07 | J19: 1576666.399 | K19: 1765866.367 | L19: 1977770.331 | M19: 2215102.77 | N19: 2480915.103 | O19: 2778624.915 | P19: 3112059.905 | Q19: 3485507.093 | R19: 3903767.945 | S19: 4372220.098 | T19: 4896886.51 | U19: 5484512.891
B20: Total revenue | C20: NGN | F20: =SUM(F17:F19) -> 0 | G20: =SUM(G17:G19) -> 37635367.58 | H20: =SUM(H17:H19) -> 44817069.4 | I20: =SUM(I17:I19) -> 50301771.13 | J20: 63530005.64 | K20: 71449561.85 | L20: 80773949.07 | M20: 91307315.53 | N20: 103205545.1 | O20: 116644524.4 | P20: 131822698.8 | Q20: 148963954 | R20: 168320863.6 | S20: 190178350.6 | T20: 214857813.9 | U20: 242721780.3
B21: Total revenue net VAT | C21: NGN | F21: =F20/(1+Inputs!$E$176) -> 0 | G21: =G20/(1+Inputs!$E$176) -> 35009644.26 | H21: =H20/(1+Inputs!$E$176) -> 41690297.12 | I21: =I20/(1+Inputs!$E$176) -> 46792345.24 | J21: =J20/(1+Inputs!$E$176) -> 59097679.67 | K21: =K20/(1+Inputs!$E$176) -> 66464708.7 | L21: =L20/(1+Inputs!$E$176) -> 75138557.28 | M21: =M20/(1+Inputs!$E$176) -> 84937037.71 | N21: =N20/(1+Inputs!$E$176) -> 96005158.21 | O21: =O20/(1+Inputs!$E$176) -> 108506534.3 | P21: =P20/(1+Inputs!$E$176) -> 122625766.4 | Q21: =Q20/(1+Inputs!$E$176) -> 138571120 | R21: =R20/(1+Inputs!$E$176) -> 156577547.6 | S21: =S20/(1+Inputs!$E$176) -> 176910093.6 | T21: =T20/(1+Inputs!$E$176) -> 199867733.9 | U21: =U20/(1+Inputs!$E$176) -> 225787702.6
B23: Operating costs
B24: Site Operational Costs (total)
B25: Project Development Cost | C25: NGN | F25: =IF(F12=1,Inputs!$F$71,0) -> 0 | G25: =IF(G12=1,Inputs!$F$71,0) -> 8372700 | H25: =IF(H12=1,Inputs!$F$71,0) -> 0 | I25: =IF(I12=1,Inputs!$F$71,0) -> 0 | J25: =IF(J12=1,Inputs!$F$71,0) -> 0 | K25: =IF(K12=1,Inputs!$F$71,0) -> 0 | L25: =IF(L12=1,Inputs!$F$71,0) -> 0 | M25: =IF(M12=1,Inputs!$F$71,0) -> 0 | N25: =IF(N12=1,Inputs!$F$71,0) -> 0 | O25: =IF(O12=1,Inputs!$F$71,0) -> 0 | P25: =IF(P12=1,Inputs!$F$71,0) -> 0 | Q25: =IF(Q12=1,Inputs!$F$71,0) -> 0 | R25: =IF(R12=1,Inputs!$F$71,0) -> 0 | S25: =IF(S12=1,Inputs!$F$71,0) -> 0 | T25: =IF(T12=1,Inputs!$F$71,0) -> 0 | U25: =IF(U12=1,Inputs!$F$71,0) -> 0
B26: Diesel Fuel | C26: NGN | F26: =F99*F100 -> 0 | G26: 627200 | H26: 702464 | I26: 786759.68 | J26: 881170.8416 | K26: 986911.3426 | L26: 1105340.704 | M26: 1237981.588 | N26: 1386539.379 | O26: 1552924.104 | P26: 1739274.997 | Q26: 1947987.996 | R26: 2181746.556 | S26: 2443556.143 | T26: 2736782.88 | U26: 3065196.825
B27: Generator O&M | C27: NGN | F27: =F11*F6*Inputs!$F$130 -> 0 | G27: =G11*G6*Inputs!$F$130 -> 3528000 | H27: =H11*H6*Inputs!$F$130 -> 3951360 | I27: =I11*I6*Inputs!$F$130 -> 4425523.2 | J27: =J11*J6*Inputs!$F$130 -> 4956585.984 | K27: =K11*K6*Inputs!$F$130 -> 5551376.302 | L27: =L11*L6*Inputs!$F$130 -> 6217541.458 | M27: =M11*M6*Inputs!$F$130 -> 6963646.433 | N27: =N11*N6*Inputs!$F$130 -> 7799284.005 | O27: =O11*O6*Inputs!$F$130 -> 8735198.086 | P27: =P11*P6*Inputs!$F$130 -> 9783421.856 | Q27: =Q11*Q6*Inputs!$F$130 -> 10957432.48 | R27: =R11*R6*Inputs!$F$130 -> 12272324.38 | S27: =S11*S6*Inputs!$F$130 -> 13745003.3 | T27: =T11*T6*Inputs!$F$130 -> 15394403.7 | U27: =U11*U6*Inputs!$F$130 -> 17241732.14
B28: Collection Fees | C28: NGN | F28: =F21*Inputs!$E$133*F11 -> 0 | G28: =G21*Inputs!$E$133*G11 -> 2625723.319 | H28: =H21*Inputs!$E$133*H11 -> 3126772.284 | I28: =I21*Inputs!$E$133*I11 -> 3509425.893 | J28: =J21*Inputs!$E$133*J11 -> 4432325.975 | K28: =K21*Inputs!$E$133*K11 -> 4984853.152 | L28: =L21*Inputs!$E$133*L11 -> 5635391.796 | M28: =M21*Inputs!$E$133*M11 -> 6370277.828 | N28: =N21*Inputs!$E$133*N11 -> 7200386.866 | O28: =O21*Inputs!$E$133*O11 -> 8137990.073 | P28: =P21*Inputs!$E$133*P11 -> 9196932.478 | Q28: =Q21*Inputs!$E$133*Q11 -> 10392834 | R28: =R21*Inputs!$E$133*R11 -> 11743316.07 | S28: =S21*Inputs!$E$133*S11 -> 13268257.02 | T28: =T21*Inputs!$E$133*T11 -> 14990080.04 | U28: =U21*Inputs!$E$133*U11 -> 16934077.69
B29: Other operating costs | C29: NGN | F29: =F6*F11*Inputs!$F$131 -> 0 | G29: =G6*G11*Inputs!$F$131 -> 2822400 | H29: =H6*H11*Inputs!$F$131 -> 3161088 | I29: =I6*I11*Inputs!$F$131 -> 3540418.56 | J29: =J6*J11*Inputs!$F$131 -> 3965268.787 | K29: =K6*K11*Inputs!$F$131 -> 4441101.042 | L29: =L6*L11*Inputs!$F$131 -> 4974033.167 | M29: =M6*M11*Inputs!$F$131 -> 5570917.147 | N29: =N6*N11*Inputs!$F$131 -> 6239427.204 | O29: =O6*O11*Inputs!$F$131 -> 6988158.469 | P29: =P6*P11*Inputs!$F$131 -> 7826737.485 | Q29: =Q6*Q11*Inputs!$F$131 -> 8765945.983 | R29: =R6*R11*Inputs!$F$131 -> 9817859.501 | S29: =S6*S11*Inputs!$F$131 -> 10996002.64 | T29: =T6*T11*Inputs!$F$131 -> 12315522.96 | U29: =U6*U11*Inputs!$F$131 -> 13793385.71
B30: Total | C30: NGN | F30: =SUM(F25:F29) -> 0 | G30: =SUM(G25:G29) -> 17976023.32 | H30: =SUM(H25:H29) -> 10941684.28 | I30: 12262127.33 | J30: 14235351.59 | K30: 15964241.84 | L30: 17932307.12 | M30: 20142823 | N30: 22625637.45 | O30: 25414270.73 | P30: 28546366.82 | Q30: 32064200.46 | R30: 36015246.5 | S30: 40452819.1 | T30: 45436789.58 | U30: 51034392.37
B32: Overhead Costs
B33: Salary Managing Director | C33: NGN | F33: =F6*F11*Inputs!$F$120 -> 0 | G33: =G6*G11*Inputs!$F$120 -> 10584000 | H33: =H6*H11*Inputs!$F$120 -> 11854080 | I33: =I6*I11*Inputs!$F$120 -> 13276569.6 | J33: =J6*J11*Inputs!$F$120 -> 14869757.95 | K33: =K6*K11*Inputs!$F$120 -> 16654128.91 | L33: =L6*L11*Inputs!$F$120 -> 18652624.37 | M33: =M6*M11*Inputs!$F$120 -> 20890939.3 | N33: =N6*N11*Inputs!$F$120 -> 23397852.02 | O33: =O6*O11*Inputs!$F$120 -> 26205594.26 | P33: =P6*P11*Inputs!$F$120 -> 29350265.57 | Q33: =Q6*Q11*Inputs!$F$120 -> 32872297.44 | R33: =R6*R11*Inputs!$F$120 -> 36816973.13 | S33: =S6*S11*Inputs!$F$120 -> 41235009.91 | T33: =T6*T11*Inputs!$F$120 -> 46183211.09 | U33: =U6*U11*Inputs!$F$120 -> 51725196.42
B34: Management and technical staff | C34: NGN | F34: =F6*F11*Inputs!$F$121 -> 0 | G34: =G6*G11*Inputs!$F$121 -> 2822400 | H34: =H6*H11*Inputs!$F$121 -> 3161088 | I34: =I6*I11*Inputs!$F$121 -> 3540418.56 | J34: =J6*J11*Inputs!$F$121 -> 3965268.787 | K34: =K6*K11*Inputs!$F$121 -> 4441101.042 | L34: =L6*L11*Inputs!$F$121 -> 4974033.167 | M34: =M6*M11*Inputs!$F$121 -> 5570917.147 | N34: =N6*N11*Inputs!$F$121 -> 6239427.204 | O34: =O6*O11*Inputs!$F$121 -> 6988158.469 | P34: =P6*P11*Inputs!$F$121 -> 7826737.485 | Q34: =Q6*Q11*Inputs!$F$121 -> 8765945.983 | R34: =R6*R11*Inputs!$F$121 -> 9817859.501 | S34: =S6*S11*Inputs!$F$121 -> 10996002.64 | T34: =T6*T11*Inputs!$F$121 -> 12315522.96 | U34: =U6*U11*Inputs!$F$121 -> 13793385.71
B35: Accounting | C35: NGN | F35: =F6*F11*Inputs!$F$122 -> 0 | G35: =G6*G11*Inputs!$F$122 -> 705600 | H35: =H6*H11*Inputs!$F$122 -> 790272 | I35: =I6*I11*Inputs!$F$122 -> 885104.64 | J35: =J6*J11*Inputs!$F$122 -> 991317.1968 | K35: =K6*K11*Inputs!$F$122 -> 1110275.26 | L35: =L6*L11*Inputs!$F$122 -> 1243508.292 | M35: =M6*M11*Inputs!$F$122 -> 1392729.287 | N35: =N6*N11*Inputs!$F$122 -> 1559856.801 | O35: =O6*O11*Inputs!$F$122 -> 1747039.617 | P35: =P6*P11*Inputs!$F$122 -> 1956684.371 | Q35: =Q6*Q11*Inputs!$F$122 -> 2191486.496 | R35: =R6*R11*Inputs!$F$122 -> 2454464.875 | S35: =S6*S11*Inputs!$F$122 -> 2749000.66 | T35: =T6*T11*Inputs!$F$122 -> 3078880.74 | U35: =U6*U11*Inputs!$F$122 -> 3448346.428
B36: Travel and vehicle costs | C36: NGN | F36: =F6*F11*Inputs!$F$123 -> 0 | G36: =G6*G11*Inputs!$F$123 -> 705600 | H36: =H6*H11*Inputs!$F$123 -> 790272 | I36: =I6*I11*Inputs!$F$123 -> 885104.64 | J36: =J6*J11*Inputs!$F$123 -> 991317.1968 | K36: =K6*K11*Inputs!$F$123 -> 1110275.26 | L36: =L6*L11*Inputs!$F$123 -> 1243508.292 | M36: =M6*M11*Inputs!$F$123 -> 1392729.287 | N36: =N6*N11*Inputs!$F$123 -> 1559856.801 | O36: =O6*O11*Inputs!$F$123 -> 1747039.617 | P36: =P6*P11*Inputs!$F$123 -> 1956684.371 | Q36: =Q6*Q11*Inputs!$F$123 -> 2191486.496 | R36: =R6*R11*Inputs!$F$123 -> 2454464.875 | S36: =S6*S11*Inputs!$F$123 -> 2749000.66 | T36: =T6*T11*Inputs!$F$123 -> 3078880.74 | U36: =U6*U11*Inputs!$F$123 -> 3448346.428
B37: Office costs | C37: NGN | F37: =F6*F11*Inputs!$F$124 -> 0 | G37: =G6*G11*Inputs!$F$124 -> 705600 | H37: =H6*H11*Inputs!$F$124 -> 790272 | I37: =I6*I11*Inputs!$F$124 -> 885104.64 | J37: =J6*J11*Inputs!$F$124 -> 991317.1968 | K37: =K6*K11*Inputs!$F$124 -> 1110275.26 | L37: =L6*L11*Inputs!$F$124 -> 1243508.292 | M37: =M6*M11*Inputs!$F$124 -> 1392729.287 | N37: =N6*N11*Inputs!$F$124 -> 1559856.801 | O37: =O6*O11*Inputs!$F$124 -> 1747039.617 | P37: =P6*P11*Inputs!$F$124 -> 1956684.371 | Q37: =Q6*Q11*Inputs!$F$124 -> 2191486.496 | R37: =R6*R11*Inputs!$F$124 -> 2454464.875 | S37: =S6*S11*Inputs!$F$124 -> 2749000.66 | T37: =T6*T11*Inputs!$F$124 -> 3078880.74 | U37: =U6*U11*Inputs!$F$124 -> 3448346.428
B38: Company insurance | C38: NGN | F38: =F6*F11*Inputs!$F$125 -> 0 | G38: =G6*G11*Inputs!$F$125 -> 352800 | H38: =H6*H11*Inputs!$F$125 -> 395136 | I38: =I6*I11*Inputs!$F$125 -> 442552.32 | J38: =J6*J11*Inputs!$F$125 -> 495658.5984 | K38: =K6*K11*Inputs!$F$125 -> 555137.6302 | L38: =L6*L11*Inputs!$F$125 -> 621754.1458 | M38: =M6*M11*Inputs!$F$125 -> 696364.6433 | N38: =N6*N11*Inputs!$F$125 -> 779928.4005 | O38: =O6*O11*Inputs!$F$125 -> 873519.8086 | P38: =P6*P11*Inputs!$F$125 -> 978342.1856 | Q38: =Q6*Q11*Inputs!$F$125 -> 1095743.248 | R38: =R6*R11*Inputs!$F$125 -> 1227232.438 | S38: =S6*S11*Inputs!$F$125 -> 1374500.33 | T38: =T6*T11*Inputs!$F$125 -> 1539440.37 | U38: =U6*U11*Inputs!$F$125 -> 1724173.214
B39: Other | C39: NGN | F39: =F6*F11*Inputs!$F$126 -> 0 | G39: =G6*G11*Inputs!$F$126 -> 352800 | H39: =H6*H11*Inputs!$F$126 -> 395136 | I39: =I6*I11*Inputs!$F$126 -> 442552.32 | J39: =J6*J11*Inputs!$F$126 -> 495658.5984 | K39: =K6*K11*Inputs!$F$126 -> 555137.6302 | L39: =L6*L11*Inputs!$F$126 -> 621754.1458 | M39: =M6*M11*Inputs!$F$126 -> 696364.6433 | N39: =N6*N11*Inputs!$F$126 -> 779928.4005 | O39: =O6*O11*Inputs!$F$126 -> 873519.8086 | P39: =P6*P11*Inputs!$F$126 -> 978342.1856 | Q39: =Q6*Q11*Inputs!$F$126 -> 1095743.248 | R39: =R6*R11*Inputs!$F$126 -> 1227232.438 | S39: =S6*S11*Inputs!$F$126 -> 1374500.33 | T39: =T6*T11*Inputs!$F$126 -> 1539440.37 | U39: =U6*U11*Inputs!$F$126 -> 1724173.214
B40: Total | C40: NGN | F40: =SUM(F33:F39) -> 0 | G40: =SUM(G33:G39) -> 16228800 | H40: 18176256 | I40: 20357406.72 | J40: 22800295.53 | K40: 25536330.99 | L40: 28600690.71 | M40: 32032773.59 | N40: 35876706.42 | O40: 40181911.2 | P40: 45003740.54 | Q40: 50404189.4 | R40: 56452692.13 | S40: 63227015.19 | T40: 70814257.01 | U40: 79311967.85
B42: EBITDA | C42: NGN | F42: =F21-F30-F40 -> 0 | G42: =G21-G30-G40 -> 804820.9389 | H42: =H21-H30-H40 -> 12572356.83 | I42: 14172811.18 | J42: 22062032.55 | K42: 24964135.87 | L42: 28605559.44 | M42: 32761441.12 | N42: 37502814.33 | O42: 42910352.37 | P42: 49075659.02 | Q42: 56102730.18 | R42: 64109608.93 | S42: 73230259.26 | T42: 83616687.31 | U42: 95441342.36
B44: Depreciation | C44: NGN | F44: =F157 -> 0 | G44: =G157 -> 9773400 | H44: 9773400 | I44: 9773400 | J44: 9773400 | K44: 9773400 | L44: 7253400 | M44: 8513400 | N44: 8513400 | O44: 8513400 | P44: 8513400 | Q44: 8513400 | R44: 8513400 | S44: 8513400 | T44: 8513400 | U44: 8513400
B46: EBIT | C46: NGN | F46: =F42-F44 -> 0 | G46: =G42-G44 -> -8968579.061 | H46: =H42-H44 -> 2798956.833 | I46: 4399411.185 | J46: 12288632.55 | K46: 15190735.87 | L46: 21352159.44 | M46: 24248041.12 | N46: 28989414.33 | O46: 34396952.37 | P46: 40562259.02 | Q46: 47589330.18 | R46: 55596208.93 | S46: 64716859.26 | T46: 75103287.31 | U46: 86927942.36
B48: Interest Expense | C48: NGN | F48: =-F245 -> 0 | G48: =-G245 -> 5100000 | H48: 4372924.292 | I48: 3522245.713 | J48: 2526951.776 | K48: 1362457.87 | L48: 0 | M48: 0 | N48: 0 | O48: 0 | P48: 0 | Q48: 0 | R48: 0 | S48: 0 | T48: 0 | U48: 0
B50: EBT | C50: NGN | F50: =F46-SUM(F48:F48) -> 0 | G50: -14068579.06 | H50: -1573967.459 | I50: 877165.4717 | J50: 9761680.776 | K50: 13828278 | L50: 21352159.44 | M50: 24248041.12 | N50: 28989414.33 | O50: 34396952.37 | P50: 40562259.02 | Q50: 47589330.18 | R50: 55596208.93 | S50: 64716859.26 | T50: 75103287.31 | U50: 86927942.36
B52: Income tax payable | C52: % | D52: =Inputs!$E$175 -> 0.3 | F52: =F218 -> 0 | G52: =G218 -> 0 | H52: 0 | I52: 0 | J52: 1256484.233 | K52: 2476463.4 | L52: 4733627.833 | M52: 5602392.335 | N52: 7024804.3 | O52: 8647065.712 | P52: 10496657.7 | Q52: =Q218 -> 16452819.05 | R52: 18854882.68 | S52: 21591077.78 | T52: 24707006.19 | U52: 28254402.71
B53: Regulator Tax | C53: % | D53: =Inputs!E177 -> 0 | F53: =MAX(0,F217*$D$53) -> 0 | G53: =MAX(0,G217*$D$53) -> 0 | H53: 0 | I53: 0 | J53: 0 | K53: 0 | L53: 0 | M53: 0 | N53: 0 | O53: 0 | P53: 0 | Q53: 0 | R53: 0 | S53: 0 | T53: 0 | U53: 0
B54: Tertiary education trust fund contribution | C54: % | D54: =Inputs!E178 -> 0.02 | F54: =MAX(0,F217*$D$54) -> 0 | G54: =MAX(0,G217*$D$54) -> 0 | H54: 0 | I54: 0 | J54: 83765.61551 | K54: 165097.56 | L54: 315575.1889 | M54: 373492.8223 | N54: 468320.2867 | O54: 576471.0475 | P54: 699777.1803 | Q54: 1096854.604 | R54: 1256992.179 | S54: 1439405.185 | T54: 1647133.746 | U54: 1883626.847
B55: Communal Tax | C55: % | D55: =Inputs!E179 -> 0 | F55: =MAX(0,F217*$D$55) -> 0 | G55: =MAX(0,G217*$D$55) -> 0 | H55: 0 | I55: 0 | J55: 0 | K55: 0 | L55: 0 | M55: 0 | N55: 0 | O55: 0 | P55: 0 | Q55: 0 | R55: 0 | S55: 0 | T55: 0 | U55: 0
B56: Local Tax | C56: NGN | D56: =Inputs!E180 -> 0 | F56: =$D$56*F11 -> 0 | G56: =$D$56*G11 -> 0 | H56: 0 | I56: 0 | J56: 0 | K56: 0 | L56: 0 | M56: 0 | N56: 0 | O56: 0 | P56: 0 | Q56: 0 | R56: 0 | S56: 0 | T56: 0 | U56: 0
B58: Net Income | C58: NGN | F58: =F50-SUM(F52:F56) -> 0 | G58: =G50-SUM(G52:G56) -> -14068579.06 | H58: =H50-SUM(H52:H56) -> -1573967.459 | I58: 877165.4717 | J58: 8421430.927 | K58: 11186717.04 | L58: 16302956.42 | M58: 18272155.96 | N58: 21496289.75 | O58: 25173415.61 | P58: 29365824.13 | Q58: 30039656.52 | R58: 35484334.07 | S58: 41686376.3 | T58: 48749147.37 | U58: 56789912.8
A60: x | B60: Consumption
B62: Customer penetration rate | C62: % | F62: 0 | G62: 0.8 | H62: 0.9 | I62: 0.9 | J62: 1 | K62: 1 | L62: 1 | M62: 1 | N62: 1 | O62: 1 | P62: 1 | Q62: 1 | R62: 1 | S62: 1 | T62: 1 | U62: 1
B63: Number of customers
B64: Residential | C64: # | F64: =F62*Inputs!$E$88 -> 0 | G64: =G62*Inputs!$E$88 -> 240 | H64: =H62*Inputs!$E$88 -> 270 | I64: =I62*Inputs!$E$88 -> 270 | J64: =J62*Inputs!$E$88 -> 300 | K64: =K62*Inputs!$E$88 -> 300 | L64: =L62*Inputs!$E$88 -> 300 | M64: =M62*Inputs!$E$88 -> 300 | N64: =N62*Inputs!$E$88 -> 300 | O64: =O62*Inputs!$E$88 -> 300 | P64: =P62*Inputs!$E$88 -> 300 | Q64: =Q62*Inputs!$E$88 -> 300 | R64: =R62*Inputs!$E$88 -> 300 | S64: =S62*Inputs!$E$88 -> 300 | T64: =T62*Inputs!$E$88 -> 300 | U64: =U62*Inputs!$E$88 -> 300
B65: Commercial | C65: # | F65: =F62*Inputs!$E$89 -> 0 | G65: =G62*Inputs!$E$89 -> 20 | H65: =H62*Inputs!$E$89 -> 22.5 | I65: =I62*Inputs!$E$89 -> 22.5 | J65: =J62*Inputs!$E$89 -> 25 | K65: =K62*Inputs!$E$89 -> 25 | L65: =L62*Inputs!$E$89 -> 25 | M65: =M62*Inputs!$E$89 -> 25 | N65: =N62*Inputs!$E$89 -> 25 | O65: =O62*Inputs!$E$89 -> 25 | P65: =P62*Inputs!$E$89 -> 25 | Q65: =Q62*Inputs!$E$89 -> 25 | R65: =R62*Inputs!$E$89 -> 25 | S65: =S62*Inputs!$E$89 -> 25 | T65: =T62*Inputs!$E$89 -> 25 | U65: =U62*Inputs!$E$89 -> 25
B66: Public | C66: # | F66: =F62*Inputs!$E$90 -> 0 | G66: =G62*Inputs!$E$90 -> 0 | H66: =H62*Inputs!$E$90 -> 0 | I66: =I62*Inputs!$E$90 -> 0 | J66: =J62*Inputs!$E$90 -> 0 | K66: =K62*Inputs!$E$90 -> 0 | L66: =L62*Inputs!$E$90 -> 0 | M66: =M62*Inputs!$E$90 -> 0 | N66: =N62*Inputs!$E$90 -> 0 | O66: =O62*Inputs!$E$90 -> 0 | P66: =P62*Inputs!$E$90 -> 0 | Q66: =Q62*Inputs!$E$90 -> 0 | R66: =R62*Inputs!$E$90 -> 0 | S66: =S62*Inputs!$E$90 -> 0 | T66: =T62*Inputs!$E$90 -> 0 | U66: =U62*Inputs!$E$90 -> 0
B67: Productive | C67: # | F67: =F62*Inputs!$E$91 -> 0 | G67: =G62*Inputs!$E$91 -> 6.4 | H67: =H62*Inputs!$E$91 -> 7.2 | I67: =I62*Inputs!$E$91 -> 7.2 | J67: =J62*Inputs!$E$91 -> 8 | K67: =K62*Inputs!$E$91 -> 8 | L67: =L62*Inputs!$E$91 -> 8 | M67: =M62*Inputs!$E$91 -> 8 | N67: =N62*Inputs!$E$91 -> 8 | O67: =O62*Inputs!$E$91 -> 8 | P67: =P62*Inputs!$E$91 -> 8 | Q67: =Q62*Inputs!$E$91 -> 8 | R67: =R62*Inputs!$E$91 -> 8 | S67: =S62*Inputs!$E$91 -> 8 | T67: =T62*Inputs!$E$91 -> 8 | U67: =U62*Inputs!$E$91 -> 8
B68: Anchor | C68: # | F68: =F62*Inputs!$E$92 -> 0 | G68: =G62*Inputs!$E$92 -> 0.8 | H68: =H62*Inputs!$E$92 -> 0.9 | I68: =I62*Inputs!$E$92 -> 0.9 | J68: =J62*Inputs!$E$92 -> 1 | K68: =K62*Inputs!$E$92 -> 1 | L68: =L62*Inputs!$E$92 -> 1 | M68: =M62*Inputs!$E$92 -> 1 | N68: =N62*Inputs!$E$92 -> 1 | O68: =O62*Inputs!$E$92 -> 1 | P68: =P62*Inputs!$E$92 -> 1 | Q68: =Q62*Inputs!$E$92 -> 1 | R68: =R62*Inputs!$E$92 -> 1 | S68: =S62*Inputs!$E$92 -> 1 | T68: =T62*Inputs!$E$92 -> 1 | U68: =U62*Inputs!$E$92 -> 1
B69: Total | C69: # | F69: =SUM(F64:F68) -> 0 | G69: =SUM(G64:G68) -> 267.2 | H69: 300.6 | I69: 300.6 | J69: 334 | K69: 334 | L69: 334 | M69: 334 | N69: 334 | O69: 334 | P69: 334 | Q69: 334 | R69: 334 | S69: 334 | T69: 334 | U69: 334
B71: Total new customers | C71: # | F71: =SUM(F64:F68)-SUM(E64:E68) -> 0 | G71: =SUM(G64:G68)-SUM(F64:F68) -> 267.2 | H71: 33.4 | I71: 0 | J71: 33.4 | K71: 0 | L71: 0 | M71: 0 | N71: 0 | O71: 0 | P71: 0 | Q71: 0 | R71: 0 | S71: 0 | T71: 0 | U71: 0
B73: Consumption growth rate | C73: % | F73: 0 | G73: 1 | H73: =G73+Inputs!$E$95 -> 1.01 | I73: =H73+Inputs!$E$95 -> 1.02 | J73: =I73+Inputs!$E$95 -> 1.03 | K73: =J73+Inputs!$E$95 -> 1.04 | L73: =K73+Inputs!$E$95 -> 1.05 | M73: =L73+Inputs!$E$95 -> 1.06 | N73: =M73+Inputs!$E$95 -> 1.07 | O73: =N73+Inputs!$E$95 -> 1.08 | P73: =O73+Inputs!$E$95 -> 1.09 | Q73: =P73+Inputs!$E$95 -> 1.1 | R73: =Q73+Inputs!$E$95 -> 1.11 | S73: =R73+Inputs!$E$95 -> 1.12 | T73: =S73+Inputs!$E$95 -> 1.13 | U73: =T73+Inputs!$E$95 -> 1.14
B75: Annual consumption
B76: Residential | C76: kWh/year | F76: =Inputs!$E98*'Operating Model'!F$73*F64*12 -> 0 | G76: =Inputs!$E98*'Operating Model'!G$73*G64*12 -> 57600 | H76: =Inputs!$E98*'Operating Model'!H$73*H64*12 -> 65448 | I76: =Inputs!$E98*'Operating Model'!I$73*I64*12 -> 66096 | J76: =Inputs!$E98*'Operating Model'!J$73*J64*12 -> 74160 | K76: =Inputs!$E98*'Operating Model'!K$73*K64*12 -> 74880 | L76: =Inputs!$E98*'Operating Model'!L$73*L64*12 -> 75600 | M76: =Inputs!$E98*'Operating Model'!M$73*M64*12 -> 76320 | N76: =Inputs!$E98*'Operating Model'!N$73*N64*12 -> 77040 | O76: =Inputs!$E98*'Operating Model'!O$73*O64*12 -> 77760 | P76: =Inputs!$E98*'Operating Model'!P$73*P64*12 -> 78480 | Q76: =Inputs!$E98*'Operating Model'!Q$73*Q64*12 -> 79200 | R76: =Inputs!$E98*'Operating Model'!R$73*R64*12 -> 79920 | S76: =Inputs!$E98*'Operating Model'!S$73*S64*12 -> 80640 | T76: =Inputs!$E98*'Operating Model'!T$73*T64*12 -> 81360 | U76: =Inputs!$E98*'Operating Model'!U$73*U64*12 -> 82080
B77: Commercial | C77: kWh/year | F77: =Inputs!$E99*'Operating Model'!F$73*F65*12 -> 0 | G77: =Inputs!$E99*'Operating Model'!G$73*G65*12 -> 6000 | H77: =Inputs!$E99*'Operating Model'!H$73*H65*12 -> 6817.5 | I77: =Inputs!$E99*'Operating Model'!I$73*I65*12 -> 6885 | J77: =Inputs!$E99*'Operating Model'!J$73*J65*12 -> 7725 | K77: =Inputs!$E99*'Operating Model'!K$73*K65*12 -> 7800 | L77: =Inputs!$E99*'Operating Model'!L$73*L65*12 -> 7875 | M77: =Inputs!$E99*'Operating Model'!M$73*M65*12 -> 7950 | N77: =Inputs!$E99*'Operating Model'!N$73*N65*12 -> 8025 | O77: =Inputs!$E99*'Operating Model'!O$73*O65*12 -> 8100 | P77: =Inputs!$E99*'Operating Model'!P$73*P65*12 -> 8175 | Q77: =Inputs!$E99*'Operating Model'!Q$73*Q65*12 -> 8250 | R77: =Inputs!$E99*'Operating Model'!R$73*R65*12 -> 8325 | S77: =Inputs!$E99*'Operating Model'!S$73*S65*12 -> 8400 | T77: =Inputs!$E99*'Operating Model'!T$73*T65*12 -> 8475 | U77: =Inputs!$E99*'Operating Model'!U$73*U65*12 -> 8550
B78: Public | C78: kWh/year | F78: =Inputs!$E100*'Operating Model'!F$73*F66*12 -> 0 | G78: =Inputs!$E100*'Operating Model'!G$73*G66*12 -> 0 | H78: =Inputs!$E100*'Operating Model'!H$73*H66*12 -> 0 | I78: =Inputs!$E100*'Operating Model'!I$73*I66*12 -> 0 | J78: =Inputs!$E100*'Operating Model'!J$73*J66*12 -> 0 | K78: =Inputs!$E100*'Operating Model'!K$73*K66*12 -> 0 | L78: =Inputs!$E100*'Operating Model'!L$73*L66*12 -> 0 | M78: =Inputs!$E100*'Operating Model'!M$73*M66*12 -> 0 | N78: =Inputs!$E100*'Operating Model'!N$73*N66*12 -> 0 | O78: =Inputs!$E100*'Operating Model'!O$73*O66*12 -> 0 | P78: =Inputs!$E100*'Operating Model'!P$73*P66*12 -> 0 | Q78: =Inputs!$E100*'Operating Model'!Q$73*Q66*12 -> 0 | R78: =Inputs!$E100*'Operating Model'!R$73*R66*12 -> 0 | S78: =Inputs!$E100*'Operating Model'!S$73*S66*12 -> 0 | T78: =Inputs!$E100*'Operating Model'!T$73*T66*12 -> 0 | U78: =Inputs!$E100*'Operating Model'!U$73*U66*12 -> 0
B79: Productive | C79: kWh/year | F79: =Inputs!$E101*'Operating Model'!F$73*F67*12 -> 0 | G79: =Inputs!$E101*'Operating Model'!G$73*G67*12 -> 6144 | H79: =Inputs!$E101*'Operating Model'!H$73*H67*12 -> 6981.12 | I79: =Inputs!$E101*'Operating Model'!I$73*I67*12 -> 7050.24 | J79: =Inputs!$E101*'Operating Model'!J$73*J67*12 -> 7910.4 | K79: =Inputs!$E101*'Operating Model'!K$73*K67*12 -> 7987.2 | L79: =Inputs!$E101*'Operating Model'!L$73*L67*12 -> 8064 | M79: =Inputs!$E101*'Operating Model'!M$73*M67*12 -> 8140.8 | N79: =Inputs!$E101*'Operating Model'!N$73*N67*12 -> 8217.6 | O79: =Inputs!$E101*'Operating Model'!O$73*O67*12 -> 8294.4 | P79: =Inputs!$E101*'Operating Model'!P$73*P67*12 -> 8371.2 | Q79: =Inputs!$E101*'Operating Model'!Q$73*Q67*12 -> 8448 | R79: =Inputs!$E101*'Operating Model'!R$73*R67*12 -> 8524.8 | S79: =Inputs!$E101*'Operating Model'!S$73*S67*12 -> 8601.6 | T79: =Inputs!$E101*'Operating Model'!T$73*T67*12 -> 8678.4 | U79: =Inputs!$E101*'Operating Model'!U$73*U67*12 -> 8755.2
B80: Anchor | C80: kWh/year | F80: =Inputs!$E102*'Operating Model'!F$73*F68*12 -> 0 | G80: =Inputs!$E102*'Operating Model'!G$73*G68*12 -> 51840 | H80: =Inputs!$E102*'Operating Model'!H$73*H68*12 -> 58903.2 | I80: =Inputs!$E102*'Operating Model'!I$73*I68*12 -> 59486.4 | J80: =Inputs!$E102*'Operating Model'!J$73*J68*12 -> 66744 | K80: =Inputs!$E102*'Operating Model'!K$73*K68*12 -> 67392 | L80: =Inputs!$E102*'Operating Model'!L$73*L68*12 -> 68040 | M80: =Inputs!$E102*'Operating Model'!M$73*M68*12 -> 68688 | N80: =Inputs!$E102*'Operating Model'!N$73*N68*12 -> 69336 | O80: =Inputs!$E102*'Operating Model'!O$73*O68*12 -> 69984 | P80: =Inputs!$E102*'Operating Model'!P$73*P68*12 -> 70632 | Q80: =Inputs!$E102*'Operating Model'!Q$73*Q68*12 -> 71280 | R80: =Inputs!$E102*'Operating Model'!R$73*R68*12 -> 71928 | S80: =Inputs!$E102*'Operating Model'!S$73*S68*12 -> 72576 | T80: =Inputs!$E102*'Operating Model'!T$73*T68*12 -> 73224 | U80: =Inputs!$E102*'Operating Model'!U$73*U68*12 -> 73872
B81: Total | C81: kWh/year | F81: =SUM(F76:F80) -> 0 | G81: =SUM(G76:G80) -> 121584 | H81: =SUM(H76:H80) -> 138149.82 | I81: 139517.64 | J81: 156539.4 | K81: 158059.2 | L81: 159579 | M81: 161098.8 | N81: 162618.6 | O81: 164138.4 | P81: 165658.2 | Q81: 167178 | R81: 168697.8 | S81: 170217.6 | T81: 171737.4 | U81: 173257.2
A83: x | B83: Revenue
B85: Technical and performance adjustment | C85: % | D85: =Inputs!$E$116 -> 0.9215
B86: Anchor Tariff | C86: NGN | F86: =Inputs!E108 -> 260 | G86: =$F$86*G6 -> 291.2 | H86: 326.144 | I86: 365.28128 | J86: 409.1150336 | K86: 458.2088376 | L86: 513.1938981 | M86: 574.7771659 | N86: 643.7504258 | O86: 721.0004769 | P86: 807.5205342 | Q86: 904.4229983 | R86: 1012.953758 | S86: 1134.508209 | T86: 1270.649194 | U86: 1423.127097
B87: Regular Tariff | C87: NGN | F87: =Inputs!E107 -> 280 | G87: =$F$87*G6 -> 313.6 | H87: =$F$87*H6 -> 351.232 | I87: 393.37984 | J87: 440.5854208 | K87: 493.4556713 | L87: 552.6703519 | M87: 618.9907941 | N87: 693.2696894 | O87: 776.4620521 | P87: 869.6374983 | Q87: 973.9939981 | R87: 1090.873278 | S87: 1221.778071 | T87: 1368.39144 | U87: 1532.598413
B88: Fixed Charge | C88: NGN | F88: =Inputs!E109 -> 3000 | G88: =$F$88*G6 -> 3360 | H88: 3763.2 | I88: 4214.784 | J88: 4720.55808 | K88: 5287.02505 | L88: 5921.468056 | M88: 6632.044222 | N88: 7427.889529 | O88: 8319.236272 | P88: 9317.544625 | Q88: 10435.64998 | R88: 11687.92798 | S88: 13090.47933 | T88: 14661.33686 | U88: 16420.69728
B89: Connection Fee | C89: NGN | F89: =Inputs!E106 -> 10000
B91: Anchor Tariff Revenue | C91: NGN | F91: =F80*F86*$D$85 -> 0 | G91: =G80*G86*$D$85 -> 13910787.07 | H91: 17702867.63 | I91: 20023520.77 | J91: 25162454.86 | K91: 28455560.6 | L91: 32176672.37 | M91: 36381090.9 | N91: 41131225.78 | O91: 46497505.33 | P91: 52559402.33 | Q91: 59406590.52 | R91: 67140248.48 | S91: 75874529.46 | T91: 85738218.29 | U91: 96876599.21
B92: Regular Tariff Revenue | C92: NGN | F92: =F$87*$D$85*SUM(F76+F77+F78+F79) -> 0 | G92: =G$87*$D$85*SUM(G76+G77+G78+G79) -> 20154788.51 | H92: 25648983.85 | I92: 29011286.29 | J92: 36456884.38 | K92: 41228134.88 | L92: 46619506.37 | M92: 52711121.87 | N92: 59593404.19 | O92: 67368394.12 | P92: 76151236.62 | Q92: 86071856.43 | R92: 97276847.2 | S92: 109931601 | T92: 124222709.1 | U92: 140360668.2
B93: Connection fee | C93: NGN | F93: =F71*$F$89 -> 0 | G93: =G71*$F$89 -> 2672000 | H93: 334000 | I93: 0 | J93: 334000 | K93: 0 | L93: 0 | M93: 0 | N93: 0 | O93: 0 | P93: 0 | Q93: 0 | R93: 0 | S93: 0 | T93: 0 | U93: 0
B94: Fixed charges | C94: NGN | F94: =F88*F69 -> 0 | G94: =G88*G69 -> 897792 | H94: 1131217.92 | I94: 1266964.07 | J94: 1576666.399 | K94: 1765866.367 | L94: 1977770.331 | M94: 2215102.77 | N94: 2480915.103 | O94: 2778624.915 | P94: 3112059.905 | Q94: 3485507.093 | R94: 3903767.945 | S94: 4372220.098 | T94: 4896886.51 | U94: 5484512.891
B95: Total revenue | C95: NGN | F95: =SUM(F91:F94) -> 0 | G95: =SUM(G91:G94) -> 37635367.58 | H95: =SUM(H91:H94) -> 44817069.4 | I95: 50301771.13 | J95: 63530005.64 | K95: 71449561.85 | L95: 80773949.07 | M95: 91307315.53 | N95: 103205545.1 | O95: 116644524.4 | P95: 131822698.8 | Q95: 148963954 | R95: 168320863.6 | S95: 190178350.6 | T95: 214857813.9 | U95: 242721780.3
A97: x | B97: Operating Costs
B99: Diesel consumption | C99: L/year | F99: =Inputs!$E$135*F11 -> 0 | G99: =Inputs!$E$135*G11 -> 800 | H99: =Inputs!$E$135*H11 -> 800 | I99: =Inputs!$E$135*I11 -> 800 | J99: =Inputs!$E$135*J11 -> 800 | K99: =Inputs!$E$135*K11 -> 800 | L99: =Inputs!$E$135*L11 -> 800 | M99: =Inputs!$E$135*M11 -> 800 | N99: =Inputs!$E$135*N11 -> 800 | O99: =Inputs!$E$135*O11 -> 800 | P99: =Inputs!$E$135*P11 -> 800 | Q99: =Inputs!$E$135*Q11 -> 800 | R99: =Inputs!$E$135*R11 -> 800 | S99: =Inputs!$E$135*S11 -> 800 | T99: =Inputs!$E$135*T11 -> 800 | U99: =Inputs!$E$135*U11 -> 800
B100: Diesel cost / L | C100: NGN/L | F100: =Inputs!$E$136*F6 -> 700 | G100: =Inputs!$E$136*G6 -> 784 | H100: =Inputs!$E$136*H6 -> 878.08 | I100: =Inputs!$E$136*I6 -> 983.4496 | J100: =Inputs!$E$136*J6 -> 1101.463552 | K100: =Inputs!$E$136*K6 -> 1233.639178 | L100: =Inputs!$E$136*L6 -> 1381.67588 | M100: =Inputs!$E$136*M6 -> 1547.476985 | N100: =Inputs!$E$136*N6 -> 1733.174223 | O100: =Inputs!$E$136*O6 -> 1941.15513 | P100: =Inputs!$E$136*P6 -> 2174.093746 | Q100: =Inputs!$E$136*Q6 -> 2434.984995 | R100: =Inputs!$E$136*R6 -> 2727.183195 | S100: =Inputs!$E$136*S6 -> 3054.445178 | T100: =Inputs!$E$136*T6 -> 3420.9786 | U100: =Inputs!$E$136*U6 -> 3831.496031
A102: x | B102: Book Depreciation
B104: Depreciation of assets
B105: Initial CAPEX to be depreciated | D105: % to Depreciate
B106: Solar PV | C106: NGN | D106: =Inputs!E170 -> 1 | F106: =IF(F$9=1,$D$106*Inputs!$E$48,0) -> 25200000 | G106: =IF(G$9=1,$D$106*Inputs!$E$48,0) -> 0 | H106: =IF(H$9=1,$D$106*Inputs!$E$48,0) -> 0 | I106: =IF(I$9=1,$D$106*Inputs!$E$48,0) -> 0 | J106: =IF(J$9=1,$D$106*Inputs!$E$48,0) -> 0 | K106: =IF(K$9=1,$D$106*Inputs!$E$48,0) -> 0 | L106: =IF(L$9=1,$D$106*Inputs!$E$48,0) -> 0 | M106: =IF(M$9=1,$D$106*Inputs!$E$48,0) -> 0 | N106: =IF(N$9=1,$D$106*Inputs!$E$48,0) -> 0 | O106: =IF(O$9=1,$D$106*Inputs!$E$48,0) -> 0 | P106: =IF(P$9=1,$D$106*Inputs!$E$48,0) -> 0 | Q106: =IF(Q$9=1,$D$106*Inputs!$E$48,0) -> 0 | R106: =IF(R$9=1,$D$106*Inputs!$E$48,0) -> 0 | S106: =IF(S$9=1,$D$106*Inputs!$E$48,0) -> 0 | T106: =IF(T$9=1,$D$106*Inputs!$E$48,0) -> 0 | U106: =IF(U$9=1,$D$106*Inputs!$E$48,0) -> 0
B107: Battery | C107: NGN | F107: =IF(F$9=1,$D$106*Inputs!$E$49,0) -> 12600000 | G107: =IF(G$9=1,$D$106*Inputs!$E$49,0) -> 0 | H107: =IF(H$9=1,$D$106*Inputs!$E$49,0) -> 0 | I107: =IF(I$9=1,$D$106*Inputs!$E$49,0) -> 0 | J107: =IF(J$9=1,$D$106*Inputs!$E$49,0) -> 0 | K107: =IF(K$9=1,$D$106*Inputs!$E$49,0) -> 0 | L107: =IF(L$9=1,$D$106*Inputs!$E$49,0) -> 0 | M107: =IF(M$9=1,$D$106*Inputs!$E$49,0) -> 0 | N107: =IF(N$9=1,$D$106*Inputs!$E$49,0) -> 0 | O107: =IF(O$9=1,$D$106*Inputs!$E$49,0) -> 0 | P107: =IF(P$9=1,$D$106*Inputs!$E$49,0) -> 0 | Q107: =IF(Q$9=1,$D$106*Inputs!$E$49,0) -> 0 | R107: =IF(R$9=1,$D$106*Inputs!$E$49,0) -> 0 | S107: =IF(S$9=1,$D$106*Inputs!$E$49,0) -> 0 | T107: =IF(T$9=1,$D$106*Inputs!$E$49,0) -> 0 | U107: =IF(U$9=1,$D$106*Inputs!$E$49,0) -> 0
B108: Inverters | C108: NGN | F108: =IF(F$9=1,$D$106*Inputs!$E$50,0) -> 25200000 | G108: =IF(G$9=1,$D$106*Inputs!$E$50,0) -> 0 | H108: =IF(H$9=1,$D$106*Inputs!$E$50,0) -> 0 | I108: =IF(I$9=1,$D$106*Inputs!$E$50,0) -> 0 | J108: =IF(J$9=1,$D$106*Inputs!$E$50,0) -> 0 | K108: =IF(K$9=1,$D$106*Inputs!$E$50,0) -> 0 | L108: =IF(L$9=1,$D$106*Inputs!$E$50,0) -> 0 | M108: =IF(M$9=1,$D$106*Inputs!$E$50,0) -> 0 | N108: =IF(N$9=1,$D$106*Inputs!$E$50,0) -> 0 | O108: =IF(O$9=1,$D$106*Inputs!$E$50,0) -> 0 | P108: =IF(P$9=1,$D$106*Inputs!$E$50,0) -> 0 | Q108: =IF(Q$9=1,$D$106*Inputs!$E$50,0) -> 0 | R108: =IF(R$9=1,$D$106*Inputs!$E$50,0) -> 0 | S108: =IF(S$9=1,$D$106*Inputs!$E$50,0) -> 0 | T108: =IF(T$9=1,$D$106*Inputs!$E$50,0) -> 0 | U108: =IF(U$9=1,$D$106*Inputs!$E$50,0) -> 0
B109: Diesel Genset | C109: NGN | F109: =IF(F$9=1,$D$106*Inputs!$E$51,0) -> 15750000 | G109: =IF(G$9=1,$D$106*Inputs!$E$51,0) -> 0 | H109: =IF(H$9=1,$D$106*Inputs!$E$51,0) -> 0 | I109: =IF(I$9=1,$D$106*Inputs!$E$51,0) -> 0 | J109: =IF(J$9=1,$D$106*Inputs!$E$51,0) -> 0 | K109: =IF(K$9=1,$D$106*Inputs!$E$51,0) -> 0 | L109: =IF(L$9=1,$D$106*Inputs!$E$51,0) -> 0 | M109: =IF(M$9=1,$D$106*Inputs!$E$51,0) -> 0 | N109: =IF(N$9=1,$D$106*Inputs!$E$51,0) -> 0 | O109: =IF(O$9=1,$D$106*Inputs!$E$51,0) -> 0 | P109: =IF(P$9=1,$D$106*Inputs!$E$51,0) -> 0 | Q109: =IF(Q$9=1,$D$106*Inputs!$E$51,0) -> 0 | R109: =IF(R$9=1,$D$106*Inputs!$E$51,0) -> 0 | S109: =IF(S$9=1,$D$106*Inputs!$E$51,0) -> 0 | T109: =IF(T$9=1,$D$106*Inputs!$E$51,0) -> 0 | U109: =IF(U$9=1,$D$106*Inputs!$E$51,0) -> 0
B110: CCMPPT | C110: NGN | F110: =IF(F$9=1,$D$106*Inputs!$E$52,0) -> 9450000 | G110: =IF(G$9=1,$D$106*Inputs!$E$52,0) -> 0 | H110: =IF(H$9=1,$D$106*Inputs!$E$52,0) -> 0 | I110: =IF(I$9=1,$D$106*Inputs!$E$52,0) -> 0 | J110: =IF(J$9=1,$D$106*Inputs!$E$52,0) -> 0 | K110: =IF(K$9=1,$D$106*Inputs!$E$52,0) -> 0 | L110: =IF(L$9=1,$D$106*Inputs!$E$52,0) -> 0 | M110: =IF(M$9=1,$D$106*Inputs!$E$52,0) -> 0 | N110: =IF(N$9=1,$D$106*Inputs!$E$52,0) -> 0 | O110: =IF(O$9=1,$D$106*Inputs!$E$52,0) -> 0 | P110: =IF(P$9=1,$D$106*Inputs!$E$52,0) -> 0 | Q110: =IF(Q$9=1,$D$106*Inputs!$E$52,0) -> 0 | R110: =IF(R$9=1,$D$106*Inputs!$E$52,0) -> 0 | S110: =IF(S$9=1,$D$106*Inputs!$E$52,0) -> 0 | T110: =IF(T$9=1,$D$106*Inputs!$E$52,0) -> 0 | U110: =IF(U$9=1,$D$106*Inputs!$E$52,0) -> 0
B111: Distribution box | C111: NGN | F111: =IF(F$9=1,$D$106*Inputs!$E$53,0) -> 945000 | G111: =IF(G$9=1,$D$106*Inputs!$E$53,0) -> 0 | H111: =IF(H$9=1,$D$106*Inputs!$E$53,0) -> 0 | I111: =IF(I$9=1,$D$106*Inputs!$E$53,0) -> 0 | J111: =IF(J$9=1,$D$106*Inputs!$E$53,0) -> 0 | K111: =IF(K$9=1,$D$106*Inputs!$E$53,0) -> 0 | L111: =IF(L$9=1,$D$106*Inputs!$E$53,0) -> 0 | M111: =IF(M$9=1,$D$106*Inputs!$E$53,0) -> 0 | N111: =IF(N$9=1,$D$106*Inputs!$E$53,0) -> 0 | O111: =IF(O$9=1,$D$106*Inputs!$E$53,0) -> 0 | P111: =IF(P$9=1,$D$106*Inputs!$E$53,0) -> 0 | Q111: =IF(Q$9=1,$D$106*Inputs!$E$53,0) -> 0 | R111: =IF(R$9=1,$D$106*Inputs!$E$53,0) -> 0 | S111: =IF(S$9=1,$D$106*Inputs!$E$53,0) -> 0 | T111: =IF(T$9=1,$D$106*Inputs!$E$53,0) -> 0 | U111: =IF(U$9=1,$D$106*Inputs!$E$53,0) -> 0
B112: Balance of systems | C112: NGN | F112: =IF(F$9=1,$D$106*Inputs!$E$54,0) -> 1323000 | G112: =IF(G$9=1,$D$106*Inputs!$E$54,0) -> 0 | H112: =IF(H$9=1,$D$106*Inputs!$E$54,0) -> 0 | I112: =IF(I$9=1,$D$106*Inputs!$E$54,0) -> 0 | J112: =IF(J$9=1,$D$106*Inputs!$E$54,0) -> 0 | K112: =IF(K$9=1,$D$106*Inputs!$E$54,0) -> 0 | L112: =IF(L$9=1,$D$106*Inputs!$E$54,0) -> 0 | M112: =IF(M$9=1,$D$106*Inputs!$E$54,0) -> 0 | N112: =IF(N$9=1,$D$106*Inputs!$E$54,0) -> 0 | O112: =IF(O$9=1,$D$106*Inputs!$E$54,0) -> 0 | P112: =IF(P$9=1,$D$106*Inputs!$E$54,0) -> 0 | Q112: =IF(Q$9=1,$D$106*Inputs!$E$54,0) -> 0 | R112: =IF(R$9=1,$D$106*Inputs!$E$54,0) -> 0 | S112: =IF(S$9=1,$D$106*Inputs!$E$54,0) -> 0 | T112: =IF(T$9=1,$D$106*Inputs!$E$54,0) -> 0 | U112: =IF(U$9=1,$D$106*Inputs!$E$54,0) -> 0
B113: Distribution CAPEX | C113: NGN | F113: =IF(F$9=1,$D$106*Inputs!$E$55,0) -> 15750000 | G113: =IF(G$9=1,$D$106*Inputs!$E$55,0) -> 0 | H113: =IF(H$9=1,$D$106*Inputs!$E$55,0) -> 0 | I113: =IF(I$9=1,$D$106*Inputs!$E$55,0) -> 0 | J113: =IF(J$9=1,$D$106*Inputs!$E$55,0) -> 0 | K113: =IF(K$9=1,$D$106*Inputs!$E$55,0) -> 0 | L113: =IF(L$9=1,$D$106*Inputs!$E$55,0) -> 0 | M113: =IF(M$9=1,$D$106*Inputs!$E$55,0) -> 0 | N113: =IF(N$9=1,$D$106*Inputs!$E$55,0) -> 0 | O113: =IF(O$9=1,$D$106*Inputs!$E$55,0) -> 0 | P113: =IF(P$9=1,$D$106*Inputs!$E$55,0) -> 0 | Q113: =IF(Q$9=1,$D$106*Inputs!$E$55,0) -> 0 | R113: =IF(R$9=1,$D$106*Inputs!$E$55,0) -> 0 | S113: =IF(S$9=1,$D$106*Inputs!$E$55,0) -> 0 | T113: =IF(T$9=1,$D$106*Inputs!$E$55,0) -> 0 | U113: =IF(U$9=1,$D$106*Inputs!$E$55,0) -> 0
B114: General cost CAPEX | C114: NGN | F114: =IF(F$9=1,$D$106*Inputs!$E$56,0) -> 15750000 | G114: =IF(G$9=1,$D$106*Inputs!$E$56,0) -> 0 | H114: =IF(H$9=1,$D$106*Inputs!$E$56,0) -> 0 | I114: =IF(I$9=1,$D$106*Inputs!$E$56,0) -> 0 | J114: =IF(J$9=1,$D$106*Inputs!$E$56,0) -> 0 | K114: =IF(K$9=1,$D$106*Inputs!$E$56,0) -> 0 | L114: =IF(L$9=1,$D$106*Inputs!$E$56,0) -> 0 | M114: =IF(M$9=1,$D$106*Inputs!$E$56,0) -> 0 | N114: =IF(N$9=1,$D$106*Inputs!$E$56,0) -> 0 | O114: =IF(O$9=1,$D$106*Inputs!$E$56,0) -> 0 | P114: =IF(P$9=1,$D$106*Inputs!$E$56,0) -> 0 | Q114: =IF(Q$9=1,$D$106*Inputs!$E$56,0) -> 0 | R114: =IF(R$9=1,$D$106*Inputs!$E$56,0) -> 0 | S114: =IF(S$9=1,$D$106*Inputs!$E$56,0) -> 0 | T114: =IF(T$9=1,$D$106*Inputs!$E$56,0) -> 0 | U114: =IF(U$9=1,$D$106*Inputs!$E$56,0) -> 0
B115: Customer connection cost | C115: NGN | F115: =IF(F$9=1,$D$106*Inputs!$E$57,0) -> 18900000 | G115: =IF(G$9=1,$D$106*Inputs!$E$57,0) -> 0 | H115: =IF(H$9=1,$D$106*Inputs!$E$57,0) -> 0 | I115: =IF(I$9=1,$D$106*Inputs!$E$57,0) -> 0 | J115: =IF(J$9=1,$D$106*Inputs!$E$57,0) -> 0 | K115: =IF(K$9=1,$D$106*Inputs!$E$57,0) -> 0 | L115: =IF(L$9=1,$D$106*Inputs!$E$57,0) -> 0 | M115: =IF(M$9=1,$D$106*Inputs!$E$57,0) -> 0 | N115: =IF(N$9=1,$D$106*Inputs!$E$57,0) -> 0 | O115: =IF(O$9=1,$D$106*Inputs!$E$57,0) -> 0 | P115: =IF(P$9=1,$D$106*Inputs!$E$57,0) -> 0 | Q115: =IF(Q$9=1,$D$106*Inputs!$E$57,0) -> 0 | R115: =IF(R$9=1,$D$106*Inputs!$E$57,0) -> 0 | S115: =IF(S$9=1,$D$106*Inputs!$E$57,0) -> 0 | T115: =IF(T$9=1,$D$106*Inputs!$E$57,0) -> 0 | U115: =IF(U$9=1,$D$106*Inputs!$E$57,0) -> 0
B116: Total | C116: NGN | F116: =SUM(F106:F115) -> 140868000 | G116: =SUM(G106:G115) -> 0 | H116: 0 | I116: 0 | J116: 0 | K116: 0 | L116: 0 | M116: 0 | N116: 0 | O116: 0 | P116: 0 | Q116: 0 | R116: 0 | S116: 0 | T116: 0 | U116: 0
B118: Depreciation on initial CAPEX | D118: % of SL Deprec
B119: Solar PV | C119: NGN | D119: =Inputs!G142 -> 0.05 | F119: =IF(SUM($E119:E119)<SUM($E106:E106),SUM($E106:E106)*$D119,0)*F$11 -> 0 | G119: =IF(SUM($E119:F119)<SUM($E106:F106),SUM($E106:F106)*$D119,0)*G$11 -> 1260000 | H119: =IF(SUM($E119:G119)<SUM($E106:G106),SUM($E106:G106)*$D119,0)*H$11 -> 1260000 | I119: =IF(SUM($E119:H119)<SUM($E106:H106),SUM($E106:H106)*$D119,0)*I$11 -> 1260000 | J119: =IF(SUM($E119:I119)<SUM($E106:I106),SUM($E106:I106)*$D119,0)*J$11 -> 1260000 | K119: =IF(SUM($E119:J119)<SUM($E106:J106),SUM($E106:J106)*$D119,0)*K$11 -> 1260000 | L119: =IF(SUM($E119:K119)<SUM($E106:K106),SUM($E106:K106)*$D119,0)*L$11 -> 1260000 | M119: =IF(SUM($E119:L119)<SUM($E106:L106),SUM($E106:L106)*$D119,0)*M$11 -> 1260000 | N119: =IF(SUM($E119:M119)<SUM($E106:M106),SUM($E106:M106)*$D119,0)*N$11 -> 1260000 | O119: =IF(SUM($E119:N119)<SUM($E106:N106),SUM($E106:N106)*$D119,0)*O$11 -> 1260000 | P119: =IF(SUM($E119:O119)<SUM($E106:O106),SUM($E106:O106)*$D119,0)*P$11 -> 1260000 | Q119: =IF(SUM($E119:P119)<SUM($E106:P106),SUM($E106:P106)*$D119,0)*Q$11 -> 1260000 | R119: =IF(SUM($E119:Q119)<SUM($E106:Q106),SUM($E106:Q106)*$D119,0)*R$11 -> 1260000 | S119: =IF(SUM($E119:R119)<SUM($E106:R106),SUM($E106:R106)*$D119,0)*S$11 -> 1260000 | T119: =IF(SUM($E119:S119)<SUM($E106:S106),SUM($E106:S106)*$D119,0)*T$11 -> 1260000 | U119: =IF(SUM($E119:T119)<SUM($E106:T106),SUM($E106:T106)*$D119,0)*U$11 -> 1260000
B120: Battery | C120: NGN | D120: =Inputs!G143 -> 0.2 | F120: =IF(SUM($E120:E120)<SUM($E107:E107),SUM($E107:E107)*$D120,0)*F$11 -> 0 | G120: =IF(SUM($E120:F120)<SUM($E107:F107),SUM($E107:F107)*$D120,0)*G$11 -> 2520000 | H120: =IF(SUM($E120:G120)<SUM($E107:G107),SUM($E107:G107)*$D120,0)*H$11 -> 2520000 | I120: =IF(SUM($E120:H120)<SUM($E107:H107),SUM($E107:H107)*$D120,0)*I$11 -> 2520000 | J120: =IF(SUM($E120:I120)<SUM($E107:I107),SUM($E107:I107)*$D120,0)*J$11 -> 2520000 | K120: =IF(SUM($E120:J120)<SUM($E107:J107),SUM($E107:J107)*$D120,0)*K$11 -> 2520000 | L120: =IF(SUM($E120:K120)<SUM($E107:K107),SUM($E107:K107)*$D120,0)*L$11 -> 0 | M120: =IF(SUM($E120:L120)<SUM($E107:L107),SUM($E107:L107)*$D120,0)*M$11 -> 0 | N120: =IF(SUM($E120:M120)<SUM($E107:M107),SUM($E107:M107)*$D120,0)*N$11 -> 0 | O120: =IF(SUM($E120:N120)<SUM($E107:N107),SUM($E107:N107)*$D120,0)*O$11 -> 0 | P120: =IF(SUM($E120:O120)<SUM($E107:O107),SUM($E107:O107)*$D120,0)*P$11 -> 0 | Q120: =IF(SUM($E120:P120)<SUM($E107:P107),SUM($E107:P107)*$D120,0)*Q$11 -> 0 | R120: =IF(SUM($E120:Q120)<SUM($E107:Q107),SUM($E107:Q107)*$D120,0)*R$11 -> 0 | S120: =IF(SUM($E120:R120)<SUM($E107:R107),SUM($E107:R107)*$D120,0)*S$11 -> 0 | T120: =IF(SUM($E120:S120)<SUM($E107:S107),SUM($E107:S107)*$D120,0)*T$11 -> 0 | U120: =IF(SUM($E120:T120)<SUM($E107:T107),SUM($E107:T107)*$D120,0)*U$11 -> 0
B121: Inverters | C121: NGN | D121: =Inputs!G144 -> 0.05 | F121: =IF(SUM($E121:E121)<SUM($E108:E108),SUM($E108:E108)*$D121,0)*F$11 -> 0 | G121: =IF(SUM($E121:F121)<SUM($E108:F108),SUM($E108:F108)*$D121,0)*G$11 -> 1260000 | H121: =IF(SUM($E121:G121)<SUM($E108:G108),SUM($E108:G108)*$D121,0)*H$11 -> 1260000 | I121: =IF(SUM($E121:H121)<SUM($E108:H108),SUM($E108:H108)*$D121,0)*I$11 -> 1260000 | J121: =IF(SUM($E121:I121)<SUM($E108:I108),SUM($E108:I108)*$D121,0)*J$11 -> 1260000 | K121: =IF(SUM($E121:J121)<SUM($E108:J108),SUM($E108:J108)*$D121,0)*K$11 -> 1260000 | L121: =IF(SUM($E121:K121)<SUM($E108:K108),SUM($E108:K108)*$D121,0)*L$11 -> 1260000 | M121: =IF(SUM($E121:L121)<SUM($E108:L108),SUM($E108:L108)*$D121,0)*M$11 -> 1260000 | N121: =IF(SUM($E121:M121)<SUM($E108:M108),SUM($E108:M108)*$D121,0)*N$11 -> 1260000 | O121: =IF(SUM($E121:N121)<SUM($E108:N108),SUM($E108:N108)*$D121,0)*O$11 -> 1260000 | P121: =IF(SUM($E121:O121)<SUM($E108:O108),SUM($E108:O108)*$D121,0)*P$11 -> 1260000 | Q121: =IF(SUM($E121:P121)<SUM($E108:P108),SUM($E108:P108)*$D121,0)*Q$11 -> 1260000 | R121: =IF(SUM($E121:Q121)<SUM($E108:Q108),SUM($E108:Q108)*$D121,0)*R$11 -> 1260000 | S121: =IF(SUM($E121:R121)<SUM($E108:R108),SUM($E108:R108)*$D121,0)*S$11 -> 1260000 | T121: =IF(SUM($E121:S121)<SUM($E108:S108),SUM($E108:S108)*$D121,0)*T$11 -> 1260000 | U121: =IF(SUM($E121:T121)<SUM($E108:T108),SUM($E108:T108)*$D121,0)*U$11 -> 1260000
B122: Diesel Genset | C122: NGN | D122: =Inputs!G145 -> 0.05 | F122: =IF(SUM($E122:E122)<SUM($E109:E109),SUM($E109:E109)*$D122,0)*F$11 -> 0 | G122: =IF(SUM($E122:F122)<SUM($E109:F109),SUM($E109:F109)*$D122,0)*G$11 -> 787500 | H122: =IF(SUM($E122:G122)<SUM($E109:G109),SUM($E109:G109)*$D122,0)*H$11 -> 787500 | I122: =IF(SUM($E122:H122)<SUM($E109:H109),SUM($E109:H109)*$D122,0)*I$11 -> 787500 | J122: =IF(SUM($E122:I122)<SUM($E109:I109),SUM($E109:I109)*$D122,0)*J$11 -> 787500 | K122: =IF(SUM($E122:J122)<SUM($E109:J109),SUM($E109:J109)*$D122,0)*K$11 -> 787500 | L122: =IF(SUM($E122:K122)<SUM($E109:K109),SUM($E109:K109)*$D122,0)*L$11 -> 787500 | M122: =IF(SUM($E122:L122)<SUM($E109:L109),SUM($E109:L109)*$D122,0)*M$11 -> 787500 | N122: =IF(SUM($E122:M122)<SUM($E109:M109),SUM($E109:M109)*$D122,0)*N$11 -> 787500 | O122: =IF(SUM($E122:N122)<SUM($E109:N109),SUM($E109:N109)*$D122,0)*O$11 -> 787500 | P122: =IF(SUM($E122:O122)<SUM($E109:O109),SUM($E109:O109)*$D122,0)*P$11 -> 787500 | Q122: =IF(SUM($E122:P122)<SUM($E109:P109),SUM($E109:P109)*$D122,0)*Q$11 -> 787500 | R122: =IF(SUM($E122:Q122)<SUM($E109:Q109),SUM($E109:Q109)*$D122,0)*R$11 -> 787500 | S122: =IF(SUM($E122:R122)<SUM($E109:R109),SUM($E109:R109)*$D122,0)*S$11 -> 787500 | T122: =IF(SUM($E122:S122)<SUM($E109:S109),SUM($E109:S109)*$D122,0)*T$11 -> 787500 | U122: =IF(SUM($E122:T122)<SUM($E109:T109),SUM($E109:T109)*$D122,0)*U$11 -> 787500
B123: CCMPPT | C123: NGN | D123: =Inputs!G146 -> 0.05 | F123: =IF(SUM($E123:E123)<SUM($E110:E110),SUM($E110:E110)*$D123,0)*F$11 -> 0 | G123: =IF(SUM($E123:F123)<SUM($E110:F110),SUM($E110:F110)*$D123,0)*G$11 -> 472500 | H123: =IF(SUM($E123:G123)<SUM($E110:G110),SUM($E110:G110)*$D123,0)*H$11 -> 472500 | I123: =IF(SUM($E123:H123)<SUM($E110:H110),SUM($E110:H110)*$D123,0)*I$11 -> 472500 | J123: =IF(SUM($E123:I123)<SUM($E110:I110),SUM($E110:I110)*$D123,0)*J$11 -> 472500 | K123: =IF(SUM($E123:J123)<SUM($E110:J110),SUM($E110:J110)*$D123,0)*K$11 -> 472500 | L123: =IF(SUM($E123:K123)<SUM($E110:K110),SUM($E110:K110)*$D123,0)*L$11 -> 472500 | M123: =IF(SUM($E123:L123)<SUM($E110:L110),SUM($E110:L110)*$D123,0)*M$11 -> 472500 | N123: =IF(SUM($E123:M123)<SUM($E110:M110),SUM($E110:M110)*$D123,0)*N$11 -> 472500 | O123: =IF(SUM($E123:N123)<SUM($E110:N110),SUM($E110:N110)*$D123,0)*O$11 -> 472500 | P123: =IF(SUM($E123:O123)<SUM($E110:O110),SUM($E110:O110)*$D123,0)*P$11 -> 472500 | Q123: =IF(SUM($E123:P123)<SUM($E110:P110),SUM($E110:P110)*$D123,0)*Q$11 -> 472500 | R123: =IF(SUM($E123:Q123)<SUM($E110:Q110),SUM($E110:Q110)*$D123,0)*R$11 -> 472500 | S123: =IF(SUM($E123:R123)<SUM($E110:R110),SUM($E110:R110)*$D123,0)*S$11 -> 472500 | T123: =IF(SUM($E123:S123)<SUM($E110:S110),SUM($E110:S110)*$D123,0)*T$11 -> 472500 | U123: =IF(SUM($E123:T123)<SUM($E110:T110),SUM($E110:T110)*$D123,0)*U$11 -> 472500
B124: Distribution box | C124: NGN | D124: =Inputs!G147 -> 0.05 | F124: =IF(SUM($E124:E124)<SUM($E111:E111),SUM($E111:E111)*$D124,0)*F$11 -> 0 | G124: =IF(SUM($E124:F124)<SUM($E111:F111),SUM($E111:F111)*$D124,0)*G$11 -> 47250 | H124: =IF(SUM($E124:G124)<SUM($E111:G111),SUM($E111:G111)*$D124,0)*H$11 -> 47250 | I124: =IF(SUM($E124:H124)<SUM($E111:H111),SUM($E111:H111)*$D124,0)*I$11 -> 47250 | J124: =IF(SUM($E124:I124)<SUM($E111:I111),SUM($E111:I111)*$D124,0)*J$11 -> 47250 | K124: =IF(SUM($E124:J124)<SUM($E111:J111),SUM($E111:J111)*$D124,0)*K$11 -> 47250 | L124: =IF(SUM($E124:K124)<SUM($E111:K111),SUM($E111:K111)*$D124,0)*L$11 -> 47250 | M124: =IF(SUM($E124:L124)<SUM($E111:L111),SUM($E111:L111)*$D124,0)*M$11 -> 47250 | N124: =IF(SUM($E124:M124)<SUM($E111:M111),SUM($E111:M111)*$D124,0)*N$11 -> 47250 | O124: =IF(SUM($E124:N124)<SUM($E111:N111),SUM($E111:N111)*$D124,0)*O$11 -> 47250 | P124: =IF(SUM($E124:O124)<SUM($E111:O111),SUM($E111:O111)*$D124,0)*P$11 -> 47250 | Q124: =IF(SUM($E124:P124)<SUM($E111:P111),SUM($E111:P111)*$D124,0)*Q$11 -> 47250 | R124: =IF(SUM($E124:Q124)<SUM($E111:Q111),SUM($E111:Q111)*$D124,0)*R$11 -> 47250 | S124: =IF(SUM($E124:R124)<SUM($E111:R111),SUM($E111:R111)*$D124,0)*S$11 -> 47250 | T124: =IF(SUM($E124:S124)<SUM($E111:S111),SUM($E111:S111)*$D124,0)*T$11 -> 47250 | U124: =IF(SUM($E124:T124)<SUM($E111:T111),SUM($E111:T111)*$D124,0)*U$11 -> 47250
B125: Balance of Systems | C125: NGN | D125: =Inputs!G148 -> 0.05 | F125: =IF(SUM($E125:E125)<SUM($E112:E112),SUM($E112:E112)*$D125,0)*F$11 -> 0 | G125: =IF(SUM($E125:F125)<SUM($E112:F112),SUM($E112:F112)*$D125,0)*G$11 -> 66150 | H125: =IF(SUM($E125:G125)<SUM($E112:G112),SUM($E112:G112)*$D125,0)*H$11 -> 66150 | I125: =IF(SUM($E125:H125)<SUM($E112:H112),SUM($E112:H112)*$D125,0)*I$11 -> 66150 | J125: =IF(SUM($E125:I125)<SUM($E112:I112),SUM($E112:I112)*$D125,0)*J$11 -> 66150 | K125: =IF(SUM($E125:J125)<SUM($E112:J112),SUM($E112:J112)*$D125,0)*K$11 -> 66150 | L125: =IF(SUM($E125:K125)<SUM($E112:K112),SUM($E112:K112)*$D125,0)*L$11 -> 66150 | M125: =IF(SUM($E125:L125)<SUM($E112:L112),SUM($E112:L112)*$D125,0)*M$11 -> 66150 | N125: =IF(SUM($E125:M125)<SUM($E112:M112),SUM($E112:M112)*$D125,0)*N$11 -> 66150 | O125: =IF(SUM($E125:N125)<SUM($E112:N112),SUM($E112:N112)*$D125,0)*O$11 -> 66150 | P125: =IF(SUM($E125:O125)<SUM($E112:O112),SUM($E112:O112)*$D125,0)*P$11 -> 66150 | Q125: =IF(SUM($E125:P125)<SUM($E112:P112),SUM($E112:P112)*$D125,0)*Q$11 -> 66150 | R125: =IF(SUM($E125:Q125)<SUM($E112:Q112),SUM($E112:Q112)*$D125,0)*R$11 -> 66150 | S125: =IF(SUM($E125:R125)<SUM($E112:R112),SUM($E112:R112)*$D125,0)*S$11 -> 66150 | T125: =IF(SUM($E125:S125)<SUM($E112:S112),SUM($E112:S112)*$D125,0)*T$11 -> 66150 | U125: =IF(SUM($E125:T125)<SUM($E112:T112),SUM($E112:T112)*$D125,0)*U$11 -> 66150
B126: Distribution CAPEX | C126: NGN | D126: =Inputs!G161 -> 0.06666666667 | F126: =IF(SUM($E126:E126)<SUM($E113:E113),SUM($E113:E113)*$D126,0)*F$11 -> 0 | G126: =IF(SUM($E126:F126)<SUM($E113:F113),SUM($E113:F113)*$D126,0)*G$11 -> 1050000 | H126: =IF(SUM($E126:G126)<SUM($E113:G113),SUM($E113:G113)*$D126,0)*H$11 -> 1050000 | I126: =IF(SUM($E126:H126)<SUM($E113:H113),SUM($E113:H113)*$D126,0)*I$11 -> 1050000 | J126: =IF(SUM($E126:I126)<SUM($E113:I113),SUM($E113:I113)*$D126,0)*J$11 -> 1050000 | K126: =IF(SUM($E126:J126)<SUM($E113:J113),SUM($E113:J113)*$D126,0)*K$11 -> 1050000 | L126: =IF(SUM($E126:K126)<SUM($E113:K113),SUM($E113:K113)*$D126,0)*L$11 -> 1050000 | M126: =IF(SUM($E126:L126)<SUM($E113:L113),SUM($E113:L113)*$D126,0)*M$11 -> 1050000 | N126: =IF(SUM($E126:M126)<SUM($E113:M113),SUM($E113:M113)*$D126,0)*N$11 -> 1050000 | O126: =IF(SUM($E126:N126)<SUM($E113:N113),SUM($E113:N113)*$D126,0)*O$11 -> 1050000 | P126: =IF(SUM($E126:O126)<SUM($E113:O113),SUM($E113:O113)*$D126,0)*P$11 -> 1050000 | Q126: =IF(SUM($E126:P126)<SUM($E113:P113),SUM($E113:P113)*$D126,0)*Q$11 -> 1050000 | R126: =IF(SUM($E126:Q126)<SUM($E113:Q113),SUM($E113:Q113)*$D126,0)*R$11 -> 1050000 | S126: =IF(SUM($E126:R126)<SUM($E113:R113),SUM($E113:R113)*$D126,0)*S$11 -> 1050000 | T126: =IF(SUM($E126:S126)<SUM($E113:S113),SUM($E113:S113)*$D126,0)*T$11 -> 1050000 | U126: =IF(SUM($E126:T126)<SUM($E113:T113),SUM($E113:T113)*$D126,0)*U$11 -> 1050000
B127: General cost CAPEX | C127: NGN | D127: =Inputs!G162 -> 0.06666666667 | F127: =IF(SUM($E127:E127)<SUM($E114:E114),SUM($E114:E114)*$D127,0)*F$11 -> 0 | G127: =IF(SUM($E127:F127)<SUM($E114:F114),SUM($E114:F114)*$D127,0)*G$11 -> 1050000 | H127: =IF(SUM($E127:G127)<SUM($E114:G114),SUM($E114:G114)*$D127,0)*H$11 -> 1050000 | I127: =IF(SUM($E127:H127)<SUM($E114:H114),SUM($E114:H114)*$D127,0)*I$11 -> 1050000 | J127: =IF(SUM($E127:I127)<SUM($E114:I114),SUM($E114:I114)*$D127,0)*J$11 -> 1050000 | K127: =IF(SUM($E127:J127)<SUM($E114:J114),SUM($E114:J114)*$D127,0)*K$11 -> 1050000 | L127: =IF(SUM($E127:K127)<SUM($E114:K114),SUM($E114:K114)*$D127,0)*L$11 -> 1050000 | M127: =IF(SUM($E127:L127)<SUM($E114:L114),SUM($E114:L114)*$D127,0)*M$11 -> 1050000 | N127: =IF(SUM($E127:M127)<SUM($E114:M114),SUM($E114:M114)*$D127,0)*N$11 -> 1050000 | O127: =IF(SUM($E127:N127)<SUM($E114:N114),SUM($E114:N114)*$D127,0)*O$11 -> 1050000 | P127: =IF(SUM($E127:O127)<SUM($E114:O114),SUM($E114:O114)*$D127,0)*P$11 -> 1050000 | Q127: =IF(SUM($E127:P127)<SUM($E114:P114),SUM($E114:P114)*$D127,0)*Q$11 -> 1050000 | R127: =IF(SUM($E127:Q127)<SUM($E114:Q114),SUM($E114:Q114)*$D127,0)*R$11 -> 1050000 | S127: =IF(SUM($E127:R127)<SUM($E114:R114),SUM($E114:R114)*$D127,0)*S$11 -> 1050000 | T127: =IF(SUM($E127:S127)<SUM($E114:S114),SUM($E114:S114)*$D127,0)*T$11 -> 1050000 | U127: =IF(SUM($E127:T127)<SUM($E114:T114),SUM($E114:T114)*$D127,0)*U$11 -> 1050000
B128: Customer connection cost | C128: NGN | D128: =Inputs!G163 -> 0.06666666667 | F128: =IF(SUM($E128:E128)<SUM($E115:E115),SUM($E115:E115)*$D128,0)*F$11 -> 0 | G128: =IF(SUM($E128:F128)<SUM($E115:F115),SUM($E115:F115)*$D128,0)*G$11 -> 1260000 | H128: =IF(SUM($E128:G128)<SUM($E115:G115),SUM($E115:G115)*$D128,0)*H$11 -> 1260000 | I128: =IF(SUM($E128:H128)<SUM($E115:H115),SUM($E115:H115)*$D128,0)*I$11 -> 1260000 | J128: =IF(SUM($E128:I128)<SUM($E115:I115),SUM($E115:I115)*$D128,0)*J$11 -> 1260000 | K128: =IF(SUM($E128:J128)<SUM($E115:J115),SUM($E115:J115)*$D128,0)*K$11 -> 1260000 | L128: =IF(SUM($E128:K128)<SUM($E115:K115),SUM($E115:K115)*$D128,0)*L$11 -> 1260000 | M128: =IF(SUM($E128:L128)<SUM($E115:L115),SUM($E115:L115)*$D128,0)*M$11 -> 1260000 | N128: =IF(SUM($E128:M128)<SUM($E115:M115),SUM($E115:M115)*$D128,0)*N$11 -> 1260000 | O128: =IF(SUM($E128:N128)<SUM($E115:N115),SUM($E115:N115)*$D128,0)*O$11 -> 1260000 | P128: =IF(SUM($E128:O128)<SUM($E115:O115),SUM($E115:O115)*$D128,0)*P$11 -> 1260000 | Q128: =IF(SUM($E128:P128)<SUM($E115:P115),SUM($E115:P115)*$D128,0)*Q$11 -> 1260000 | R128: =IF(SUM($E128:Q128)<SUM($E115:Q115),SUM($E115:Q115)*$D128,0)*R$11 -> 1260000 | S128: =IF(SUM($E128:R128)<SUM($E115:R115),SUM($E115:R115)*$D128,0)*S$11 -> 1260000 | T128: =IF(SUM($E128:S128)<SUM($E115:S115),SUM($E115:S115)*$D128,0)*T$11 -> 1260000 | U128: =IF(SUM($E128:T128)<SUM($E115:T115),SUM($E115:T115)*$D128,0)*U$11 -> 1260000
B129: Total | C129: NGN | F129: =SUM(F119:F128) -> 0 | G129: =SUM(G119:G128) -> 9773400 | H129: =SUM(H119:H128) -> 9773400 | I129: 9773400 | J129: 9773400 | K129: 9773400 | L129: 7253400 | M129: 7253400 | N129: 7253400 | O129: 7253400 | P129: 7253400 | Q129: 7253400 | R129: 7253400 | S129: 7253400 | T129: 7253400 | U129: 7253400
B131: Ongoing CAPEX to be depreciated
B132: Solar PV | C132: NGN | F132: =F193 -> 0 | G132: =G193 -> 0 | H132: 0 | I132: 0 | J132: 0 | K132: 0 | L132: 0 | M132: 0 | N132: 0 | O132: 0 | P132: 0 | Q132: 0 | R132: 0 | S132: 0 | T132: 0 | U132: 0
B133: Battery | C133: NGN | F133: =F194 -> 0 | G133: 0 | H133: 0 | I133: 0 | J133: 0 | K133: 0 | L133: 6300000 | M133: 0 | N133: 0 | O133: 0 | P133: 0 | Q133: 6300000 | R133: 0 | S133: 0 | T133: 0 | U133: 0
B134: Inverters | C134: NGN | F134: 0 | G134: =G195 -> 0 | H134: 0 | I134: 0 | J134: 0 | K134: 0 | L134: 0 | M134: 0 | N134: 0 | O134: 0 | P134: 0 | Q134: 0 | R134: 0 | S134: 0 | T134: 0 | U134: 0
B135: Diesel Genset | C135: NGN | F135: 0 | G135: =G196 -> 0 | H135: 0 | I135: 0 | J135: 0 | K135: 0 | L135: 0 | M135: 0 | N135: 0 | O135: 0 | P135: 0 | Q135: 0 | R135: 0 | S135: 0 | T135: 0 | U135: 0
B136: CCMPPT | C136: NGN | F136: 0 | G136: =G197 -> 0 | H136: 0 | I136: 0 | J136: 0 | K136: 0 | L136: 0 | M136: 0 | N136: 0 | O136: 0 | P136: 0 | Q136: 0 | R136: 0 | S136: 0 | T136: 0 | U136: 0
B137: Distribution Box | C137: NGN | F137: 0 | G137: =G198 -> 0 | H137: 0 | I137: 0 | J137: 0 | K137: 0 | L137: 0 | M137: 0 | N137: 0 | O137: 0 | P137: 0 | Q137: 0 | R137: 0 | S137: 0 | T137: 0 | U137: 0
B138: Balance of systems | C138: NGN | F138: =F199 -> 0 | G138: =G199 -> 0 | H138: 0 | I138: 0 | J138: 0 | K138: 0 | L138: 0 | M138: 0 | N138: 0 | O138: 0 | P138: 0 | Q138: 0 | R138: 0 | S138: 0 | T138: 0 | U138: 0
B139: Distribution CAPEX | C139: NGN | F139: =F203 -> 0 | G139: =G203 -> 0 | H139: 0 | I139: 0 | J139: 0 | K139: 0 | L139: 0 | M139: 0 | N139: 0 | O139: 0 | P139: 0 | Q139: 0 | R139: 0 | S139: 0 | T139: 0 | U139: 0
B140: General cost CAPEX | C140: NGN | F140: =F204 -> 0 | G140: 0 | H140: 0 | I140: 0 | J140: 0 | K140: 0 | L140: 0 | M140: 0 | N140: 0 | O140: 0 | P140: 0 | Q140: 0 | R140: 0 | S140: 0 | T140: 0 | U140: 0
B141: Customer connection cost | C141: NGN | F141: 0 | G141: 0 | H141: 0 | I141: 0 | J141: 0 | K141: 0 | L141: 0 | M141: 0 | N141: 0 | O141: 0 | P141: 0 | Q141: 0 | R141: 0 | S141: 0 | T141: 0 | U141: 0
B142: Total | C142: NGN | F142: =SUM(F132:F141) -> 0 | G142: =SUM(G132:G141) -> 0 | H142: 0 | I142: 0 | J142: 0 | K142: 0 | L142: 6300000 | M142: 0 | N142: 0 | O142: 0 | P142: 0 | Q142: 6300000 | R142: 0 | S142: 0 | T142: 0 | U142: 0
B144: Depreciation on ongoing CAPEX
B145: Solar PV | C145: NGN | F145: =IF(SUM($E145:E145)<SUM($E132:E132),Inputs!$F74*$D119,0) -> 0 | G145: =IF(SUM($E145:F145)<SUM($E132:F132),Inputs!$F74*$D119,0) -> 0 | H145: =IF(SUM($E145:G145)<SUM($E132:G132),Inputs!$F74*$D119,0) -> 0 | I145: =IF(SUM($E145:H145)<SUM($E132:H132),Inputs!$F74*$D119,0) -> 0 | J145: =IF(SUM($E145:I145)<SUM($E132:I132),Inputs!$F74*$D119,0) -> 0 | K145: =IF(SUM($E145:J145)<SUM($E132:J132),Inputs!$F74*$D119,0) -> 0 | L145: =IF(SUM($E145:K145)<SUM($E132:K132),Inputs!$F74*$D119,0) -> 0 | M145: =IF(SUM($E145:L145)<SUM($E132:L132),Inputs!$F74*$D119,0) -> 0 | N145: =IF(SUM($E145:M145)<SUM($E132:M132),Inputs!$F74*$D119,0) -> 0 | O145: =IF(SUM($E145:N145)<SUM($E132:N132),Inputs!$F74*$D119,0) -> 0 | P145: =IF(SUM($E145:O145)<SUM($E132:O132),Inputs!$F74*$D119,0) -> 0 | Q145: =IF(SUM($E145:P145)<SUM($E132:P132),Inputs!$F74*$D119,0) -> 0 | R145: =IF(SUM($E145:Q145)<SUM($E132:Q132),Inputs!$F74*$D119,0) -> 0 | S145: =IF(SUM($E145:R145)<SUM($E132:R132),Inputs!$F74*$D119,0) -> 0 | T145: =IF(SUM($E145:S145)<SUM($E132:S132),Inputs!$F74*$D119,0) -> 0 | U145: =IF(SUM($E145:T145)<SUM($E132:T132),Inputs!$F74*$D119,0) -> 0
B146: Battery | C146: NGN | F146: =IF(SUM($E146:E146)<SUM($E133:E133),Inputs!$F75*$D120,0) -> 0 | G146: =IF(SUM($E146:F146)<SUM($E133:F133),Inputs!$F75*$D120,0) -> 0 | H146: =IF(SUM($E146:G146)<SUM($E133:G133),Inputs!$F75*$D120,0) -> 0 | I146: =IF(SUM($E146:H146)<SUM($E133:H133),Inputs!$F75*$D120,0) -> 0 | J146: =IF(SUM($E146:I146)<SUM($E133:I133),Inputs!$F75*$D120,0) -> 0 | K146: =IF(SUM($E146:J146)<SUM($E133:J133),Inputs!$F75*$D120,0) -> 0 | L146: =IF(SUM($E146:K146)<SUM($E133:K133),Inputs!$F75*$D120,0) -> 0 | M146: =IF(SUM($E146:L146)<SUM($E133:L133),Inputs!$F75*$D120,0) -> 1260000 | N146: =IF(SUM($E146:M146)<SUM($E133:M133),Inputs!$F75*$D120,0) -> 1260000 | O146: =IF(SUM($E146:N146)<SUM($E133:N133),Inputs!$F75*$D120,0) -> 1260000 | P146: =IF(SUM($E146:O146)<SUM($E133:O133),Inputs!$F75*$D120,0) -> 1260000 | Q146: =IF(SUM($E146:P146)<SUM($E133:P133),Inputs!$F75*$D120,0) -> 1260000 | R146: =IF(SUM($E146:Q146)<SUM($E133:Q133),Inputs!$F75*$D120,0) -> 1260000 | S146: =IF(SUM($E146:R146)<SUM($E133:R133),Inputs!$F75*$D120,0) -> 1260000 | T146: =IF(SUM($E146:S146)<SUM($E133:S133),Inputs!$F75*$D120,0) -> 1260000 | U146: =IF(SUM($E146:T146)<SUM($E133:T133),Inputs!$F75*$D120,0) -> 1260000
B147: Inverters | C147: NGN | F147: =IF(SUM($E147:E147)<SUM($E134:E134),Inputs!$F76*$D121,0) -> 0 | G147: =IF(SUM($E147:F147)<SUM($E134:F134),Inputs!$F76*$D121,0) -> 0 | H147: =IF(SUM($E147:G147)<SUM($E134:G134),Inputs!$F76*$D121,0) -> 0 | I147: =IF(SUM($E147:H147)<SUM($E134:H134),Inputs!$F76*$D121,0) -> 0 | J147: =IF(SUM($E147:I147)<SUM($E134:I134),Inputs!$F76*$D121,0) -> 0 | K147: =IF(SUM($E147:J147)<SUM($E134:J134),Inputs!$F76*$D121,0) -> 0 | L147: =IF(SUM($E147:K147)<SUM($E134:K134),Inputs!$F76*$D121,0) -> 0 | M147: =IF(SUM($E147:L147)<SUM($E134:L134),Inputs!$F76*$D121,0) -> 0 | N147: =IF(SUM($E147:M147)<SUM($E134:M134),Inputs!$F76*$D121,0) -> 0 | O147: =IF(SUM($E147:N147)<SUM($E134:N134),Inputs!$F76*$D121,0) -> 0 | P147: =IF(SUM($E147:O147)<SUM($E134:O134),Inputs!$F76*$D121,0) -> 0 | Q147: =IF(SUM($E147:P147)<SUM($E134:P134),Inputs!$F76*$D121,0) -> 0 | R147: =IF(SUM($E147:Q147)<SUM($E134:Q134),Inputs!$F76*$D121,0) -> 0 | S147: =IF(SUM($E147:R147)<SUM($E134:R134),Inputs!$F76*$D121,0) -> 0 | T147: =IF(SUM($E147:S147)<SUM($E134:S134),Inputs!$F76*$D121,0) -> 0 | U147: =IF(SUM($E147:T147)<SUM($E134:T134),Inputs!$F76*$D121,0) -> 0
B148: Diesel Genset | C148: NGN | F148: =IF(SUM($E148:E148)<SUM($E135:E135),Inputs!$F77*$D122,0) -> 0 | G148: =IF(SUM($E148:F148)<SUM($E135:F135),Inputs!$F77*$D122,0) -> 0 | H148: =IF(SUM($E148:G148)<SUM($E135:G135),Inputs!$F77*$D122,0) -> 0 | I148: =IF(SUM($E148:H148)<SUM($E135:H135),Inputs!$F77*$D122,0) -> 0 | J148: =IF(SUM($E148:I148)<SUM($E135:I135),Inputs!$F77*$D122,0) -> 0 | K148: =IF(SUM($E148:J148)<SUM($E135:J135),Inputs!$F77*$D122,0) -> 0 | L148: =IF(SUM($E148:K148)<SUM($E135:K135),Inputs!$F77*$D122,0) -> 0 | M148: =IF(SUM($E148:L148)<SUM($E135:L135),Inputs!$F77*$D122,0) -> 0 | N148: =IF(SUM($E148:M148)<SUM($E135:M135),Inputs!$F77*$D122,0) -> 0 | O148: =IF(SUM($E148:N148)<SUM($E135:N135),Inputs!$F77*$D122,0) -> 0 | P148: =IF(SUM($E148:O148)<SUM($E135:O135),Inputs!$F77*$D122,0) -> 0 | Q148: =IF(SUM($E148:P148)<SUM($E135:P135),Inputs!$F77*$D122,0) -> 0 | R148: =IF(SUM($E148:Q148)<SUM($E135:Q135),Inputs!$F77*$D122,0) -> 0 | S148: =IF(SUM($E148:R148)<SUM($E135:R135),Inputs!$F77*$D122,0) -> 0 | T148: =IF(SUM($E148:S148)<SUM($E135:S135),Inputs!$F77*$D122,0) -> 0 | U148: =IF(SUM($E148:T148)<SUM($E135:T135),Inputs!$F77*$D122,0) -> 0
B149: CCMPPT | C149: NGN | F149: =IF(SUM($E149:E149)<SUM($E136:E136),Inputs!$F78*$D123,0) -> 0 | G149: =IF(SUM($E149:F149)<SUM($E136:F136),Inputs!$F78*$D123,0) -> 0 | H149: =IF(SUM($E149:G149)<SUM($E136:G136),Inputs!$F78*$D123,0) -> 0 | I149: =IF(SUM($E149:H149)<SUM($E136:H136),Inputs!$F78*$D123,0) -> 0 | J149: =IF(SUM($E149:I149)<SUM($E136:I136),Inputs!$F78*$D123,0) -> 0 | K149: =IF(SUM($E149:J149)<SUM($E136:J136),Inputs!$F78*$D123,0) -> 0 | L149: =IF(SUM($E149:K149)<SUM($E136:K136),Inputs!$F78*$D123,0) -> 0 | M149: =IF(SUM($E149:L149)<SUM($E136:L136),Inputs!$F78*$D123,0) -> 0 | N149: =IF(SUM($E149:M149)<SUM($E136:M136),Inputs!$F78*$D123,0) -> 0 | O149: =IF(SUM($E149:N149)<SUM($E136:N136),Inputs!$F78*$D123,0) -> 0 | P149: =IF(SUM($E149:O149)<SUM($E136:O136),Inputs!$F78*$D123,0) -> 0 | Q149: =IF(SUM($E149:P149)<SUM($E136:P136),Inputs!$F78*$D123,0) -> 0 | R149: =IF(SUM($E149:Q149)<SUM($E136:Q136),Inputs!$F78*$D123,0) -> 0 | S149: =IF(SUM($E149:R149)<SUM($E136:R136),Inputs!$F78*$D123,0) -> 0 | T149: =IF(SUM($E149:S149)<SUM($E136:S136),Inputs!$F78*$D123,0) -> 0 | U149: =IF(SUM($E149:T149)<SUM($E136:T136),Inputs!$F78*$D123,0) -> 0
B150: Distribution Box | C150: NGN | F150: =IF(SUM($E150:E150)<SUM($E137:E137),Inputs!$F79*$D124,0) -> 0 | G150: =IF(SUM($E150:F150)<SUM($E137:F137),Inputs!$F79*$D124,0) -> 0 | H150: =IF(SUM($E150:G150)<SUM($E137:G137),Inputs!$F79*$D124,0) -> 0 | I150: =IF(SUM($E150:H150)<SUM($E137:H137),Inputs!$F79*$D124,0) -> 0 | J150: =IF(SUM($E150:I150)<SUM($E137:I137),Inputs!$F79*$D124,0) -> 0 | K150: =IF(SUM($E150:J150)<SUM($E137:J137),Inputs!$F79*$D124,0) -> 0 | L150: =IF(SUM($E150:K150)<SUM($E137:K137),Inputs!$F79*$D124,0) -> 0 | M150: =IF(SUM($E150:L150)<SUM($E137:L137),Inputs!$F79*$D124,0) -> 0 | N150: =IF(SUM($E150:M150)<SUM($E137:M137),Inputs!$F79*$D124,0) -> 0 | O150: =IF(SUM($E150:N150)<SUM($E137:N137),Inputs!$F79*$D124,0) -> 0 | P150: =IF(SUM($E150:O150)<SUM($E137:O137),Inputs!$F79*$D124,0) -> 0 | Q150: =IF(SUM($E150:P150)<SUM($E137:P137),Inputs!$F79*$D124,0) -> 0 | R150: =IF(SUM($E150:Q150)<SUM($E137:Q137),Inputs!$F79*$D124,0) -> 0 | S150: =IF(SUM($E150:R150)<SUM($E137:R137),Inputs!$F79*$D124,0) -> 0 | T150: =IF(SUM($E150:S150)<SUM($E137:S137),Inputs!$F79*$D124,0) -> 0 | U150: =IF(SUM($E150:T150)<SUM($E137:T137),Inputs!$F79*$D124,0) -> 0
B151: Balance of systems | C151: NGN | F151: =IF(SUM($E151:E151)<SUM($E138:E138),Inputs!$F80*$D125,0) -> 0 | G151: =IF(SUM($E151:F151)<SUM($E138:F138),Inputs!$F80*$D125,0) -> 0 | H151: =IF(SUM($E151:G151)<SUM($E138:G138),Inputs!$F80*$D125,0) -> 0 | I151: =IF(SUM($E151:H151)<SUM($E138:H138),Inputs!$F80*$D125,0) -> 0 | J151: =IF(SUM($E151:I151)<SUM($E138:I138),Inputs!$F80*$D125,0) -> 0 | K151: =IF(SUM($E151:J151)<SUM($E138:J138),Inputs!$F80*$D125,0) -> 0 | L151: =IF(SUM($E151:K151)<SUM($E138:K138),Inputs!$F80*$D125,0) -> 0 | M151: =IF(SUM($E151:L151)<SUM($E138:L138),Inputs!$F80*$D125,0) -> 0 | N151: =IF(SUM($E151:M151)<SUM($E138:M138),Inputs!$F80*$D125,0) -> 0 | O151: =IF(SUM($E151:N151)<SUM($E138:N138),Inputs!$F80*$D125,0) -> 0 | P151: =IF(SUM($E151:O151)<SUM($E138:O138),Inputs!$F80*$D125,0) -> 0 | Q151: =IF(SUM($E151:P151)<SUM($E138:P138),Inputs!$F80*$D125,0) -> 0 | R151: =IF(SUM($E151:Q151)<SUM($E138:Q138),Inputs!$F80*$D125,0) -> 0 | S151: =IF(SUM($E151:R151)<SUM($E138:R138),Inputs!$F80*$D125,0) -> 0 | T151: =IF(SUM($E151:S151)<SUM($E138:S138),Inputs!$F80*$D125,0) -> 0 | U151: =IF(SUM($E151:T151)<SUM($E138:T138),Inputs!$F80*$D125,0) -> 0
B152: Distribution CAPEX | C152: NGN | F152: =IF(SUM($E152:E152)<SUM($E139:E139),Inputs!$F81*$D126,0) -> 0 | G152: =IF(SUM($E152:F152)<SUM($E139:F139),Inputs!$F81*$D126,0) -> 0 | H152: =IF(SUM($E152:G152)<SUM($E139:G139),Inputs!$F81*$D126,0) -> 0 | I152: =IF(SUM($E152:H152)<SUM($E139:H139),Inputs!$F81*$D126,0) -> 0 | J152: =IF(SUM($E152:I152)<SUM($E139:I139),Inputs!$F81*$D126,0) -> 0 | K152: =IF(SUM($E152:J152)<SUM($E139:J139),Inputs!$F81*$D126,0) -> 0 | L152: =IF(SUM($E152:K152)<SUM($E139:K139),Inputs!$F81*$D126,0) -> 0 | M152: =IF(SUM($E152:L152)<SUM($E139:L139),Inputs!$F81*$D126,0) -> 0 | N152: =IF(SUM($E152:M152)<SUM($E139:M139),Inputs!$F81*$D126,0) -> 0 | O152: =IF(SUM($E152:N152)<SUM($E139:N139),Inputs!$F81*$D126,0) -> 0 | P152: =IF(SUM($E152:O152)<SUM($E139:O139),Inputs!$F81*$D126,0) -> 0 | Q152: =IF(SUM($E152:P152)<SUM($E139:P139),Inputs!$F81*$D126,0) -> 0 | R152: =IF(SUM($E152:Q152)<SUM($E139:Q139),Inputs!$F81*$D126,0) -> 0 | S152: =IF(SUM($E152:R152)<SUM($E139:R139),Inputs!$F81*$D126,0) -> 0 | T152: =IF(SUM($E152:S152)<SUM($E139:S139),Inputs!$F81*$D126,0) -> 0 | U152: =IF(SUM($E152:T152)<SUM($E139:T139),Inputs!$F81*$D126,0) -> 0
B153: General cost CAPEX | C153: NGN | F153: =IF(SUM($E153:E153)<SUM($E140:E140),Inputs!$F82*$D127,0) -> 0 | G153: =IF(SUM($E153:F153)<SUM($E140:F140),Inputs!$F82*$D127,0) -> 0 | H153: =IF(SUM($E153:G153)<SUM($E140:G140),Inputs!$F82*$D127,0) -> 0 | I153: =IF(SUM($E153:H153)<SUM($E140:H140),Inputs!$F82*$D127,0) -> 0 | J153: =IF(SUM($E153:I153)<SUM($E140:I140),Inputs!$F82*$D127,0) -> 0 | K153: =IF(SUM($E153:J153)<SUM($E140:J140),Inputs!$F82*$D127,0) -> 0 | L153: =IF(SUM($E153:K153)<SUM($E140:K140),Inputs!$F82*$D127,0) -> 0 | M153: =IF(SUM($E153:L153)<SUM($E140:L140),Inputs!$F82*$D127,0) -> 0 | N153: =IF(SUM($E153:M153)<SUM($E140:M140),Inputs!$F82*$D127,0) -> 0 | O153: =IF(SUM($E153:N153)<SUM($E140:N140),Inputs!$F82*$D127,0) -> 0 | P153: =IF(SUM($E153:O153)<SUM($E140:O140),Inputs!$F82*$D127,0) -> 0 | Q153: =IF(SUM($E153:P153)<SUM($E140:P140),Inputs!$F82*$D127,0) -> 0 | R153: =IF(SUM($E153:Q153)<SUM($E140:Q140),Inputs!$F82*$D127,0) -> 0 | S153: =IF(SUM($E153:R153)<SUM($E140:R140),Inputs!$F82*$D127,0) -> 0 | T153: =IF(SUM($E153:S153)<SUM($E140:S140),Inputs!$F82*$D127,0) -> 0 | U153: =IF(SUM($E153:T153)<SUM($E140:T140),Inputs!$F82*$D127,0) -> 0
B154: Customer connection cost | C154: NGN | F154: =IF(SUM($E154:E154)<SUM($E141:E141),Inputs!$F83*$D128,0) -> 0 | G154: =IF(SUM($E154:F154)<SUM($E141:F141),Inputs!$F83*$D128,0) -> 0 | H154: =IF(SUM($E154:G154)<SUM($E141:G141),Inputs!$F83*$D128,0) -> 0 | I154: =IF(SUM($E154:H154)<SUM($E141:H141),Inputs!$F83*$D128,0) -> 0 | J154: =IF(SUM($E154:I154)<SUM($E141:I141),Inputs!$F83*$D128,0) -> 0 | K154: =IF(SUM($E154:J154)<SUM($E141:J141),Inputs!$F83*$D128,0) -> 0 | L154: =IF(SUM($E154:K154)<SUM($E141:K141),Inputs!$F83*$D128,0) -> 0 | M154: =IF(SUM($E154:L154)<SUM($E141:L141),Inputs!$F83*$D128,0) -> 0 | N154: =IF(SUM($E154:M154)<SUM($E141:M141),Inputs!$F83*$D128,0) -> 0 | O154: =IF(SUM($E154:N154)<SUM($E141:N141),Inputs!$F83*$D128,0) -> 0 | P154: =IF(SUM($E154:O154)<SUM($E141:O141),Inputs!$F83*$D128,0) -> 0 | Q154: =IF(SUM($E154:P154)<SUM($E141:P141),Inputs!$F83*$D128,0) -> 0 | R154: =IF(SUM($E154:Q154)<SUM($E141:Q141),Inputs!$F83*$D128,0) -> 0 | S154: =IF(SUM($E154:R154)<SUM($E141:R141),Inputs!$F83*$D128,0) -> 0 | T154: =IF(SUM($E154:S154)<SUM($E141:S141),Inputs!$F83*$D128,0) -> 0 | U154: =IF(SUM($E154:T154)<SUM($E141:T141),Inputs!$F83*$D128,0) -> 0
B155: Total | C155: NGN | F155: =SUM(F145:F154) -> 0 | G155: =SUM(G145:G154) -> 0 | H155: 0 | I155: 0 | J155: 0 | K155: 0 | L155: 0 | M155: 1260000 | N155: 1260000 | O155: 1260000 | P155: 1260000 | Q155: 1260000 | R155: 1260000 | S155: 1260000 | T155: 1260000 | U155: 1260000
B157: Total book depreciation | C157: NGN | F157: =F155+F129 -> 0 | G157: =G155+G129 -> 9773400 | H157: 9773400 | I157: 9773400 | J157: 9773400 | K157: 9773400 | L157: 7253400 | M157: 8513400 | N157: 8513400 | O157: 8513400 | P157: 8513400 | Q157: 8513400 | R157: 8513400 | S157: 8513400 | T157: 8513400 | U157: 8513400
A159: x | B159: Tax Depreciation
B161: Tax depreciation
B162: Depreciation on initial CAPEX | D162: Tax Deprec
B163: Solar PV | C163: NGN | D163: =Inputs!J142 -> 0.1 | F163: =IF(SUM($E163:E163)<SUM($E106:E106),SUM($E106:E106)*$D163,0)*F$11 -> 0 | G163: =IF(SUM($E163:F163)<SUM($E106:F106),SUM($E106:F106)*$D163,0)*G$11 -> 2520000 | H163: =IF(SUM($E163:G163)<SUM($E106:G106),SUM($E106:G106)*$D163,0)*H$11 -> 2520000 | I163: =IF(SUM($E163:H163)<SUM($E106:H106),SUM($E106:H106)*$D163,0)*I$11 -> 2520000 | J163: =IF(SUM($E163:I163)<SUM($E106:I106),SUM($E106:I106)*$D163,0)*J$11 -> 2520000 | K163: =IF(SUM($E163:J163)<SUM($E106:J106),SUM($E106:J106)*$D163,0)*K$11 -> 2520000 | L163: =IF(SUM($E163:K163)<SUM($E106:K106),SUM($E106:K106)*$D163,0)*L$11 -> 2520000 | M163: =IF(SUM($E163:L163)<SUM($E106:L106),SUM($E106:L106)*$D163,0)*M$11 -> 2520000 | N163: =IF(SUM($E163:M163)<SUM($E106:M106),SUM($E106:M106)*$D163,0)*N$11 -> 2520000 | O163: =IF(SUM($E163:N163)<SUM($E106:N106),SUM($E106:N106)*$D163,0)*O$11 -> 2520000 | P163: =IF(SUM($E163:O163)<SUM($E106:O106),SUM($E106:O106)*$D163,0)*P$11 -> 2520000 | Q163: =IF(SUM($E163:P163)<SUM($E106:P106),SUM($E106:P106)*$D163,0)*Q$11 -> 0 | R163: =IF(SUM($E163:Q163)<SUM($E106:Q106),SUM($E106:Q106)*$D163,0)*R$11 -> 0 | S163: =IF(SUM($E163:R163)<SUM($E106:R106),SUM($E106:R106)*$D163,0)*S$11 -> 0 | T163: =IF(SUM($E163:S163)<SUM($E106:S106),SUM($E106:S106)*$D163,0)*T$11 -> 0 | U163: =IF(SUM($E163:T163)<SUM($E106:T106),SUM($E106:T106)*$D163,0)*U$11 -> 0
B164: Battery | C164: NGN | D164: =Inputs!J143 -> 0.2 | F164: =IF(SUM($E164:E164)<SUM($E107:E107),SUM($E107:E107)*$D164,0)*F$11 -> 0 | G164: =IF(SUM($E164:F164)<SUM($E107:F107),SUM($E107:F107)*$D164,0)*G$11 -> 2520000 | H164: =IF(SUM($E164:G164)<SUM($E107:G107),SUM($E107:G107)*$D164,0)*H$11 -> 2520000 | I164: =IF(SUM($E164:H164)<SUM($E107:H107),SUM($E107:H107)*$D164,0)*I$11 -> 2520000 | J164: =IF(SUM($E164:I164)<SUM($E107:I107),SUM($E107:I107)*$D164,0)*J$11 -> 2520000 | K164: =IF(SUM($E164:J164)<SUM($E107:J107),SUM($E107:J107)*$D164,0)*K$11 -> 2520000 | L164: =IF(SUM($E164:K164)<SUM($E107:K107),SUM($E107:K107)*$D164,0)*L$11 -> 0 | M164: =IF(SUM($E164:L164)<SUM($E107:L107),SUM($E107:L107)*$D164,0)*M$11 -> 0 | N164: =IF(SUM($E164:M164)<SUM($E107:M107),SUM($E107:M107)*$D164,0)*N$11 -> 0 | O164: =IF(SUM($E164:N164)<SUM($E107:N107),SUM($E107:N107)*$D164,0)*O$11 -> 0 | P164: =IF(SUM($E164:O164)<SUM($E107:O107),SUM($E107:O107)*$D164,0)*P$11 -> 0 | Q164: =IF(SUM($E164:P164)<SUM($E107:P107),SUM($E107:P107)*$D164,0)*Q$11 -> 0 | R164: =IF(SUM($E164:Q164)<SUM($E107:Q107),SUM($E107:Q107)*$D164,0)*R$11 -> 0 | S164: =IF(SUM($E164:R164)<SUM($E107:R107),SUM($E107:R107)*$D164,0)*S$11 -> 0 | T164: =IF(SUM($E164:S164)<SUM($E107:S107),SUM($E107:S107)*$D164,0)*T$11 -> 0 | U164: =IF(SUM($E164:T164)<SUM($E107:T107),SUM($E107:T107)*$D164,0)*U$11 -> 0
B165: Inverters | C165: NGN | D165: =Inputs!J144 -> 0.1 | F165: =IF(SUM($E165:E165)<SUM($E108:E108),SUM($E108:E108)*$D165,0)*F$11 -> 0 | G165: =IF(SUM($E165:F165)<SUM($E108:F108),SUM($E108:F108)*$D165,0)*G$11 -> 2520000 | H165: =IF(SUM($E165:G165)<SUM($E108:G108),SUM($E108:G108)*$D165,0)*H$11 -> 2520000 | I165: =IF(SUM($E165:H165)<SUM($E108:H108),SUM($E108:H108)*$D165,0)*I$11 -> 2520000 | J165: =IF(SUM($E165:I165)<SUM($E108:I108),SUM($E108:I108)*$D165,0)*J$11 -> 2520000 | K165: =IF(SUM($E165:J165)<SUM($E108:J108),SUM($E108:J108)*$D165,0)*K$11 -> 2520000 | L165: =IF(SUM($E165:K165)<SUM($E108:K108),SUM($E108:K108)*$D165,0)*L$11 -> 2520000 | M165: =IF(SUM($E165:L165)<SUM($E108:L108),SUM($E108:L108)*$D165,0)*M$11 -> 2520000 | N165: =IF(SUM($E165:M165)<SUM($E108:M108),SUM($E108:M108)*$D165,0)*N$11 -> 2520000 | O165: =IF(SUM($E165:N165)<SUM($E108:N108),SUM($E108:N108)*$D165,0)*O$11 -> 2520000 | P165: =IF(SUM($E165:O165)<SUM($E108:O108),SUM($E108:O108)*$D165,0)*P$11 -> 2520000 | Q165: =IF(SUM($E165:P165)<SUM($E108:P108),SUM($E108:P108)*$D165,0)*Q$11 -> 0 | R165: =IF(SUM($E165:Q165)<SUM($E108:Q108),SUM($E108:Q108)*$D165,0)*R$11 -> 0 | S165: =IF(SUM($E165:R165)<SUM($E108:R108),SUM($E108:R108)*$D165,0)*S$11 -> 0 | T165: =IF(SUM($E165:S165)<SUM($E108:S108),SUM($E108:S108)*$D165,0)*T$11 -> 0 | U165: =IF(SUM($E165:T165)<SUM($E108:T108),SUM($E108:T108)*$D165,0)*U$11 -> 0
B166: Diesel Genset | C166: NGN | D166: =Inputs!J145 -> 0.1 | F166: =IF(SUM($E166:E166)<SUM($E109:E109),SUM($E109:E109)*$D166,0)*F$11 -> 0 | G166: =IF(SUM($E166:F166)<SUM($E109:F109),SUM($E109:F109)*$D166,0)*G$11 -> 1575000 | H166: =IF(SUM($E166:G166)<SUM($E109:G109),SUM($E109:G109)*$D166,0)*H$11 -> 1575000 | I166: =IF(SUM($E166:H166)<SUM($E109:H109),SUM($E109:H109)*$D166,0)*I$11 -> 1575000 | J166: =IF(SUM($E166:I166)<SUM($E109:I109),SUM($E109:I109)*$D166,0)*J$11 -> 1575000 | K166: =IF(SUM($E166:J166)<SUM($E109:J109),SUM($E109:J109)*$D166,0)*K$11 -> 1575000 | L166: =IF(SUM($E166:K166)<SUM($E109:K109),SUM($E109:K109)*$D166,0)*L$11 -> 1575000 | M166: =IF(SUM($E166:L166)<SUM($E109:L109),SUM($E109:L109)*$D166,0)*M$11 -> 1575000 | N166: =IF(SUM($E166:M166)<SUM($E109:M109),SUM($E109:M109)*$D166,0)*N$11 -> 1575000 | O166: =IF(SUM($E166:N166)<SUM($E109:N109),SUM($E109:N109)*$D166,0)*O$11 -> 1575000 | P166: =IF(SUM($E166:O166)<SUM($E109:O109),SUM($E109:O109)*$D166,0)*P$11 -> 1575000 | Q166: =IF(SUM($E166:P166)<SUM($E109:P109),SUM($E109:P109)*$D166,0)*Q$11 -> 0 | R166: =IF(SUM($E166:Q166)<SUM($E109:Q109),SUM($E109:Q109)*$D166,0)*R$11 -> 0 | S166: =IF(SUM($E166:R166)<SUM($E109:R109),SUM($E109:R109)*$D166,0)*S$11 -> 0 | T166: =IF(SUM($E166:S166)<SUM($E109:S109),SUM($E109:S109)*$D166,0)*T$11 -> 0 | U166: =IF(SUM($E166:T166)<SUM($E109:T109),SUM($E109:T109)*$D166,0)*U$11 -> 0
B167: CCMPPT | C167: NGN | D167: =Inputs!J146 -> 0.1 | F167: =IF(SUM($E167:E167)<SUM($E110:E110),SUM($E110:E110)*$D167,0)*F$11 -> 0 | G167: =IF(SUM($E167:F167)<SUM($E110:F110),SUM($E110:F110)*$D167,0)*G$11 -> 945000 | H167: =IF(SUM($E167:G167)<SUM($E110:G110),SUM($E110:G110)*$D167,0)*H$11 -> 945000 | I167: =IF(SUM($E167:H167)<SUM($E110:H110),SUM($E110:H110)*$D167,0)*I$11 -> 945000 | J167: =IF(SUM($E167:I167)<SUM($E110:I110),SUM($E110:I110)*$D167,0)*J$11 -> 945000 | K167: =IF(SUM($E167:J167)<SUM($E110:J110),SUM($E110:J110)*$D167,0)*K$11 -> 945000 | L167: =IF(SUM($E167:K167)<SUM($E110:K110),SUM($E110:K110)*$D167,0)*L$11 -> 945000 | M167: =IF(SUM($E167:L167)<SUM($E110:L110),SUM($E110:L110)*$D167,0)*M$11 -> 945000 | N167: =IF(SUM($E167:M167)<SUM($E110:M110),SUM($E110:M110)*$D167,0)*N$11 -> 945000 | O167: =IF(SUM($E167:N167)<SUM($E110:N110),SUM($E110:N110)*$D167,0)*O$11 -> 945000 | P167: =IF(SUM($E167:O167)<SUM($E110:O110),SUM($E110:O110)*$D167,0)*P$11 -> 945000 | Q167: =IF(SUM($E167:P167)<SUM($E110:P110),SUM($E110:P110)*$D167,0)*Q$11 -> 0 | R167: =IF(SUM($E167:Q167)<SUM($E110:Q110),SUM($E110:Q110)*$D167,0)*R$11 -> 0 | S167: =IF(SUM($E167:R167)<SUM($E110:R110),SUM($E110:R110)*$D167,0)*S$11 -> 0 | T167: =IF(SUM($E167:S167)<SUM($E110:S110),SUM($E110:S110)*$D167,0)*T$11 -> 0 | U167: =IF(SUM($E167:T167)<SUM($E110:T110),SUM($E110:T110)*$D167,0)*U$11 -> 0
B168: Distribution Box | C168: NGN | D168: =Inputs!J147 -> 0.1 | F168: =IF(SUM($E168:E168)<SUM($E111:E111),SUM($E111:E111)*$D168,0)*F$11 -> 0 | G168: =IF(SUM($E168:F168)<SUM($E111:F111),SUM($E111:F111)*$D168,0)*G$11 -> 94500 | H168: =IF(SUM($E168:G168)<SUM($E111:G111),SUM($E111:G111)*$D168,0)*H$11 -> 94500 | I168: =IF(SUM($E168:H168)<SUM($E111:H111),SUM($E111:H111)*$D168,0)*I$11 -> 94500 | J168: =IF(SUM($E168:I168)<SUM($E111:I111),SUM($E111:I111)*$D168,0)*J$11 -> 94500 | K168: =IF(SUM($E168:J168)<SUM($E111:J111),SUM($E111:J111)*$D168,0)*K$11 -> 94500 | L168: =IF(SUM($E168:K168)<SUM($E111:K111),SUM($E111:K111)*$D168,0)*L$11 -> 94500 | M168: =IF(SUM($E168:L168)<SUM($E111:L111),SUM($E111:L111)*$D168,0)*M$11 -> 94500 | N168: =IF(SUM($E168:M168)<SUM($E111:M111),SUM($E111:M111)*$D168,0)*N$11 -> 94500 | O168: =IF(SUM($E168:N168)<SUM($E111:N111),SUM($E111:N111)*$D168,0)*O$11 -> 94500 | P168: =IF(SUM($E168:O168)<SUM($E111:O111),SUM($E111:O111)*$D168,0)*P$11 -> 94500 | Q168: =IF(SUM($E168:P168)<SUM($E111:P111),SUM($E111:P111)*$D168,0)*Q$11 -> 0 | R168: =IF(SUM($E168:Q168)<SUM($E111:Q111),SUM($E111:Q111)*$D168,0)*R$11 -> 0 | S168: =IF(SUM($E168:R168)<SUM($E111:R111),SUM($E111:R111)*$D168,0)*S$11 -> 0 | T168: =IF(SUM($E168:S168)<SUM($E111:S111),SUM($E111:S111)*$D168,0)*T$11 -> 0 | U168: =IF(SUM($E168:T168)<SUM($E111:T111),SUM($E111:T111)*$D168,0)*U$11 -> 0
B169: Balance of systems | C169: NGN | D169: =Inputs!J148 -> 0.1 | F169: =IF(SUM($E169:E169)<SUM($E112:E112),SUM($E112:E112)*$D169,0)*F$11 -> 0 | G169: =IF(SUM($E169:F169)<SUM($E112:F112),SUM($E112:F112)*$D169,0)*G$11 -> 132300 | H169: =IF(SUM($E169:G169)<SUM($E112:G112),SUM($E112:G112)*$D169,0)*H$11 -> 132300 | I169: =IF(SUM($E169:H169)<SUM($E112:H112),SUM($E112:H112)*$D169,0)*I$11 -> 132300 | J169: =IF(SUM($E169:I169)<SUM($E112:I112),SUM($E112:I112)*$D169,0)*J$11 -> 132300 | K169: =IF(SUM($E169:J169)<SUM($E112:J112),SUM($E112:J112)*$D169,0)*K$11 -> 132300 | L169: =IF(SUM($E169:K169)<SUM($E112:K112),SUM($E112:K112)*$D169,0)*L$11 -> 132300 | M169: =IF(SUM($E169:L169)<SUM($E112:L112),SUM($E112:L112)*$D169,0)*M$11 -> 132300 | N169: =IF(SUM($E169:M169)<SUM($E112:M112),SUM($E112:M112)*$D169,0)*N$11 -> 132300 | O169: =IF(SUM($E169:N169)<SUM($E112:N112),SUM($E112:N112)*$D169,0)*O$11 -> 132300 | P169: =IF(SUM($E169:O169)<SUM($E112:O112),SUM($E112:O112)*$D169,0)*P$11 -> 132300 | Q169: =IF(SUM($E169:P169)<SUM($E112:P112),SUM($E112:P112)*$D169,0)*Q$11 -> 0 | R169: =IF(SUM($E169:Q169)<SUM($E112:Q112),SUM($E112:Q112)*$D169,0)*R$11 -> 0 | S169: =IF(SUM($E169:R169)<SUM($E112:R112),SUM($E112:R112)*$D169,0)*S$11 -> 0 | T169: =IF(SUM($E169:S169)<SUM($E112:S112),SUM($E112:S112)*$D169,0)*T$11 -> 0 | U169: =IF(SUM($E169:T169)<SUM($E112:T112),SUM($E112:T112)*$D169,0)*U$11 -> 0
B170: Distribution CAPEX | C170: NGN | D170: =Inputs!J161 -> 0.1 | F170: =IF(SUM($E170:E170)<SUM($E113:E113),SUM($E113:E113)*$D170,0)*F$11 -> 0 | G170: =IF(SUM($E170:F170)<SUM($E113:F113),SUM($E113:F113)*$D170,0)*G$11 -> 1575000 | H170: =IF(SUM($E170:G170)<SUM($E113:G113),SUM($E113:G113)*$D170,0)*H$11 -> 1575000 | I170: =IF(SUM($E170:H170)<SUM($E113:H113),SUM($E113:H113)*$D170,0)*I$11 -> 1575000 | J170: =IF(SUM($E170:I170)<SUM($E113:I113),SUM($E113:I113)*$D170,0)*J$11 -> 1575000 | K170: =IF(SUM($E170:J170)<SUM($E113:J113),SUM($E113:J113)*$D170,0)*K$11 -> 1575000 | L170: =IF(SUM($E170:K170)<SUM($E113:K113),SUM($E113:K113)*$D170,0)*L$11 -> 1575000 | M170: =IF(SUM($E170:L170)<SUM($E113:L113),SUM($E113:L113)*$D170,0)*M$11 -> 1575000 | N170: =IF(SUM($E170:M170)<SUM($E113:M113),SUM($E113:M113)*$D170,0)*N$11 -> 1575000 | O170: =IF(SUM($E170:N170)<SUM($E113:N113),SUM($E113:N113)*$D170,0)*O$11 -> 1575000 | P170: =IF(SUM($E170:O170)<SUM($E113:O113),SUM($E113:O113)*$D170,0)*P$11 -> 1575000 | Q170: =IF(SUM($E170:P170)<SUM($E113:P113),SUM($E113:P113)*$D170,0)*Q$11 -> 0 | R170: =IF(SUM($E170:Q170)<SUM($E113:Q113),SUM($E113:Q113)*$D170,0)*R$11 -> 0 | S170: =IF(SUM($E170:R170)<SUM($E113:R113),SUM($E113:R113)*$D170,0)*S$11 -> 0 | T170: =IF(SUM($E170:S170)<SUM($E113:S113),SUM($E113:S113)*$D170,0)*T$11 -> 0 | U170: =IF(SUM($E170:T170)<SUM($E113:T113),SUM($E113:T113)*$D170,0)*U$11 -> 0
B171: General cost CAPEX | C171: NGN | D171: =Inputs!J162 -> 0.1 | F171: =IF(SUM($E171:E171)<SUM($E114:E114),SUM($E114:E114)*$D171,0)*F$11 -> 0 | G171: =IF(SUM($E171:F171)<SUM($E114:F114),SUM($E114:F114)*$D171,0)*G$11 -> 1575000 | H171: =IF(SUM($E171:G171)<SUM($E114:G114),SUM($E114:G114)*$D171,0)*H$11 -> 1575000 | I171: =IF(SUM($E171:H171)<SUM($E114:H114),SUM($E114:H114)*$D171,0)*I$11 -> 1575000 | J171: =IF(SUM($E171:I171)<SUM($E114:I114),SUM($E114:I114)*$D171,0)*J$11 -> 1575000 | K171: =IF(SUM($E171:J171)<SUM($E114:J114),SUM($E114:J114)*$D171,0)*K$11 -> 1575000 | L171: =IF(SUM($E171:K171)<SUM($E114:K114),SUM($E114:K114)*$D171,0)*L$11 -> 1575000 | M171: =IF(SUM($E171:L171)<SUM($E114:L114),SUM($E114:L114)*$D171,0)*M$11 -> 1575000 | N171: =IF(SUM($E171:M171)<SUM($E114:M114),SUM($E114:M114)*$D171,0)*N$11 -> 1575000 | O171: =IF(SUM($E171:N171)<SUM($E114:N114),SUM($E114:N114)*$D171,0)*O$11 -> 1575000 | P171: =IF(SUM($E171:O171)<SUM($E114:O114),SUM($E114:O114)*$D171,0)*P$11 -> 1575000 | Q171: =IF(SUM($E171:P171)<SUM($E114:P114),SUM($E114:P114)*$D171,0)*Q$11 -> 0 | R171: =IF(SUM($E171:Q171)<SUM($E114:Q114),SUM($E114:Q114)*$D171,0)*R$11 -> 0 | S171: =IF(SUM($E171:R171)<SUM($E114:R114),SUM($E114:R114)*$D171,0)*S$11 -> 0 | T171: =IF(SUM($E171:S171)<SUM($E114:S114),SUM($E114:S114)*$D171,0)*T$11 -> 0 | U171: =IF(SUM($E171:T171)<SUM($E114:T114),SUM($E114:T114)*$D171,0)*U$11 -> 0
B172: Customer connection cost | C172: NGN | D172: =Inputs!J163 -> 0.1 | F172: =IF(SUM($E172:E172)<SUM($E115:E115),SUM($E115:E115)*$D172,0)*F$11 -> 0 | G172: =IF(SUM($E172:F172)<SUM($E115:F115),SUM($E115:F115)*$D172,0)*G$11 -> 1890000 | H172: =IF(SUM($E172:G172)<SUM($E115:G115),SUM($E115:G115)*$D172,0)*H$11 -> 1890000 | I172: =IF(SUM($E172:H172)<SUM($E115:H115),SUM($E115:H115)*$D172,0)*I$11 -> 1890000 | J172: =IF(SUM($E172:I172)<SUM($E115:I115),SUM($E115:I115)*$D172,0)*J$11 -> 1890000 | K172: =IF(SUM($E172:J172)<SUM($E115:J115),SUM($E115:J115)*$D172,0)*K$11 -> 1890000 | L172: =IF(SUM($E172:K172)<SUM($E115:K115),SUM($E115:K115)*$D172,0)*L$11 -> 1890000 | M172: =IF(SUM($E172:L172)<SUM($E115:L115),SUM($E115:L115)*$D172,0)*M$11 -> 1890000 | N172: =IF(SUM($E172:M172)<SUM($E115:M115),SUM($E115:M115)*$D172,0)*N$11 -> 1890000 | O172: =IF(SUM($E172:N172)<SUM($E115:N115),SUM($E115:N115)*$D172,0)*O$11 -> 1890000 | P172: =IF(SUM($E172:O172)<SUM($E115:O115),SUM($E115:O115)*$D172,0)*P$11 -> 1890000 | Q172: =IF(SUM($E172:P172)<SUM($E115:P115),SUM($E115:P115)*$D172,0)*Q$11 -> 0 | R172: =IF(SUM($E172:Q172)<SUM($E115:Q115),SUM($E115:Q115)*$D172,0)*R$11 -> 0 | S172: =IF(SUM($E172:R172)<SUM($E115:R115),SUM($E115:R115)*$D172,0)*S$11 -> 0 | T172: =IF(SUM($E172:S172)<SUM($E115:S115),SUM($E115:S115)*$D172,0)*T$11 -> 0 | U172: =IF(SUM($E172:T172)<SUM($E115:T115),SUM($E115:T115)*$D172,0)*U$11 -> 0
B173: Total | C173: NGN | F173: =SUM(F163:F169) -> 0 | G173: =SUM(G163:G172) -> 15346800 | H173: 15346800 | I173: 15346800 | J173: 15346800 | K173: 15346800 | L173: 12826800 | M173: 12826800 | N173: 12826800 | O173: 12826800 | P173: 12826800 | Q173: 0 | R173: 0 | S173: 0 | T173: 0 | U173: 0
B175: Depreciation on ongoing CAPEX
B176: Solar PV | C176: NGN | F176: =IF(SUM($E176:E176)<SUM($E132:E132),Inputs!$F74*$D163,0) -> 0 | G176: =IF(SUM($E176:F176)<SUM($E132:F132),Inputs!$F74*$D163,0) -> 0 | H176: =IF(SUM($E176:G176)<SUM($E132:G132),Inputs!$F74*$D163,0) -> 0 | I176: =IF(SUM($E176:H176)<SUM($E132:H132),Inputs!$F74*$D163,0) -> 0 | J176: =IF(SUM($E176:I176)<SUM($E132:I132),Inputs!$F74*$D163,0) -> 0 | K176: =IF(SUM($E176:J176)<SUM($E132:J132),Inputs!$F74*$D163,0) -> 0 | L176: =IF(SUM($E176:K176)<SUM($E132:K132),Inputs!$F74*$D163,0) -> 0 | M176: =IF(SUM($E176:L176)<SUM($E132:L132),Inputs!$F74*$D163,0) -> 0 | N176: =IF(SUM($E176:M176)<SUM($E132:M132),Inputs!$F74*$D163,0) -> 0 | O176: =IF(SUM($E176:N176)<SUM($E132:N132),Inputs!$F74*$D163,0) -> 0 | P176: =IF(SUM($E176:O176)<SUM($E132:O132),Inputs!$F74*$D163,0) -> 0 | Q176: =IF(SUM($E176:P176)<SUM($E132:P132),Inputs!$F74*$D163,0) -> 0 | R176: =IF(SUM($E176:Q176)<SUM($E132:Q132),Inputs!$F74*$D163,0) -> 0 | S176: =IF(SUM($E176:R176)<SUM($E132:R132),Inputs!$F74*$D163,0) -> 0 | T176: =IF(SUM($E176:S176)<SUM($E132:S132),Inputs!$F74*$D163,0) -> 0 | U176: =IF(SUM($E176:T176)<SUM($E132:T132),Inputs!$F74*$D163,0) -> 0
B177: Battery | C177: NGN | F177: =IF(SUM($E177:E177)<SUM($E133:E133),Inputs!$F75*$D164,0) -> 0 | G177: =IF(SUM($E177:F177)<SUM($E133:F133),Inputs!$F75*$D164,0) -> 0 | H177: =IF(SUM($E177:G177)<SUM($E133:G133),Inputs!$F75*$D164,0) -> 0 | I177: =IF(SUM($E177:H177)<SUM($E133:H133),Inputs!$F75*$D164,0) -> 0 | J177: =IF(SUM($E177:I177)<SUM($E133:I133),Inputs!$F75*$D164,0) -> 0 | K177: =IF(SUM($E177:J177)<SUM($E133:J133),Inputs!$F75*$D164,0) -> 0 | L177: =IF(SUM($E177:K177)<SUM($E133:K133),Inputs!$F75*$D164,0) -> 0 | M177: =IF(SUM($E177:L177)<SUM($E133:L133),Inputs!$F75*$D164,0) -> 1260000 | N177: =IF(SUM($E177:M177)<SUM($E133:M133),Inputs!$F75*$D164,0) -> 1260000 | O177: =IF(SUM($E177:N177)<SUM($E133:N133),Inputs!$F75*$D164,0) -> 1260000 | P177: =IF(SUM($E177:O177)<SUM($E133:O133),Inputs!$F75*$D164,0) -> 1260000 | Q177: =IF(SUM($E177:P177)<SUM($E133:P133),Inputs!$F75*$D164,0) -> 1260000 | R177: =IF(SUM($E177:Q177)<SUM($E133:Q133),Inputs!$F75*$D164,0) -> 1260000 | S177: =IF(SUM($E177:R177)<SUM($E133:R133),Inputs!$F75*$D164,0) -> 1260000 | T177: =IF(SUM($E177:S177)<SUM($E133:S133),Inputs!$F75*$D164,0) -> 1260000 | U177: =IF(SUM($E177:T177)<SUM($E133:T133),Inputs!$F75*$D164,0) -> 1260000
B178: Inverters | C178: NGN | F178: =IF(SUM($E178:E178)<SUM($E134:E134),Inputs!$F76*$D165,0) -> 0 | G178: =IF(SUM($E178:F178)<SUM($E134:F134),Inputs!$F76*$D165,0) -> 0 | H178: =IF(SUM($E178:G178)<SUM($E134:G134),Inputs!$F76*$D165,0) -> 0 | I178: =IF(SUM($E178:H178)<SUM($E134:H134),Inputs!$F76*$D165,0) -> 0 | J178: =IF(SUM($E178:I178)<SUM($E134:I134),Inputs!$F76*$D165,0) -> 0 | K178: =IF(SUM($E178:J178)<SUM($E134:J134),Inputs!$F76*$D165,0) -> 0 | L178: =IF(SUM($E178:K178)<SUM($E134:K134),Inputs!$F76*$D165,0) -> 0 | M178: =IF(SUM($E178:L178)<SUM($E134:L134),Inputs!$F76*$D165,0) -> 0 | N178: =IF(SUM($E178:M178)<SUM($E134:M134),Inputs!$F76*$D165,0) -> 0 | O178: =IF(SUM($E178:N178)<SUM($E134:N134),Inputs!$F76*$D165,0) -> 0 | P178: =IF(SUM($E178:O178)<SUM($E134:O134),Inputs!$F76*$D165,0) -> 0 | Q178: =IF(SUM($E178:P178)<SUM($E134:P134),Inputs!$F76*$D165,0) -> 0 | R178: =IF(SUM($E178:Q178)<SUM($E134:Q134),Inputs!$F76*$D165,0) -> 0 | S178: =IF(SUM($E178:R178)<SUM($E134:R134),Inputs!$F76*$D165,0) -> 0 | T178: =IF(SUM($E178:S178)<SUM($E134:S134),Inputs!$F76*$D165,0) -> 0 | U178: =IF(SUM($E178:T178)<SUM($E134:T134),Inputs!$F76*$D165,0) -> 0
B179: Diesel Genset | C179: NGN | F179: =IF(SUM($E179:E179)<SUM($E135:E135),Inputs!$F77*$D166,0) -> 0 | G179: =IF(SUM($E179:F179)<SUM($E135:F135),Inputs!$F77*$D166,0) -> 0 | H179: =IF(SUM($E179:G179)<SUM($E135:G135),Inputs!$F77*$D166,0) -> 0 | I179: =IF(SUM($E179:H179)<SUM($E135:H135),Inputs!$F77*$D166,0) -> 0 | J179: =IF(SUM($E179:I179)<SUM($E135:I135),Inputs!$F77*$D166,0) -> 0 | K179: =IF(SUM($E179:J179)<SUM($E135:J135),Inputs!$F77*$D166,0) -> 0 | L179: =IF(SUM($E179:K179)<SUM($E135:K135),Inputs!$F77*$D166,0) -> 0 | M179: =IF(SUM($E179:L179)<SUM($E135:L135),Inputs!$F77*$D166,0) -> 0 | N179: =IF(SUM($E179:M179)<SUM($E135:M135),Inputs!$F77*$D166,0) -> 0 | O179: =IF(SUM($E179:N179)<SUM($E135:N135),Inputs!$F77*$D166,0) -> 0 | P179: =IF(SUM($E179:O179)<SUM($E135:O135),Inputs!$F77*$D166,0) -> 0 | Q179: =IF(SUM($E179:P179)<SUM($E135:P135),Inputs!$F77*$D166,0) -> 0 | R179: =IF(SUM($E179:Q179)<SUM($E135:Q135),Inputs!$F77*$D166,0) -> 0 | S179: =IF(SUM($E179:R179)<SUM($E135:R135),Inputs!$F77*$D166,0) -> 0 | T179: =IF(SUM($E179:S179)<SUM($E135:S135),Inputs!$F77*$D166,0) -> 0 | U179: =IF(SUM($E179:T179)<SUM($E135:T135),Inputs!$F77*$D166,0) -> 0
B180: CCMPPT | C180: NGN | F180: =IF(SUM($E180:E180)<SUM($E136:E136),Inputs!$F78*$D167,0) -> 0 | G180: =IF(SUM($E180:F180)<SUM($E136:F136),Inputs!$F78*$D167,0) -> 0 | H180: =IF(SUM($E180:G180)<SUM($E136:G136),Inputs!$F78*$D167,0) -> 0 | I180: =IF(SUM($E180:H180)<SUM($E136:H136),Inputs!$F78*$D167,0) -> 0 | J180: =IF(SUM($E180:I180)<SUM($E136:I136),Inputs!$F78*$D167,0) -> 0 | K180: =IF(SUM($E180:J180)<SUM($E136:J136),Inputs!$F78*$D167,0) -> 0 | L180: =IF(SUM($E180:K180)<SUM($E136:K136),Inputs!$F78*$D167,0) -> 0 | M180: =IF(SUM($E180:L180)<SUM($E136:L136),Inputs!$F78*$D167,0) -> 0 | N180: =IF(SUM($E180:M180)<SUM($E136:M136),Inputs!$F78*$D167,0) -> 0 | O180: =IF(SUM($E180:N180)<SUM($E136:N136),Inputs!$F78*$D167,0) -> 0 | P180: =IF(SUM($E180:O180)<SUM($E136:O136),Inputs!$F78*$D167,0) -> 0 | Q180: =IF(SUM($E180:P180)<SUM($E136:P136),Inputs!$F78*$D167,0) -> 0 | R180: =IF(SUM($E180:Q180)<SUM($E136:Q136),Inputs!$F78*$D167,0) -> 0 | S180: =IF(SUM($E180:R180)<SUM($E136:R136),Inputs!$F78*$D167,0) -> 0 | T180: =IF(SUM($E180:S180)<SUM($E136:S136),Inputs!$F78*$D167,0) -> 0 | U180: =IF(SUM($E180:T180)<SUM($E136:T136),Inputs!$F78*$D167,0) -> 0
B181: Distribution Box | C181: NGN | F181: =IF(SUM($E181:E181)<SUM($E137:E137),Inputs!$F79*$D168,0) -> 0 | G181: =IF(SUM($E181:F181)<SUM($E137:F137),Inputs!$F79*$D168,0) -> 0 | H181: =IF(SUM($E181:G181)<SUM($E137:G137),Inputs!$F79*$D168,0) -> 0 | I181: =IF(SUM($E181:H181)<SUM($E137:H137),Inputs!$F79*$D168,0) -> 0 | J181: =IF(SUM($E181:I181)<SUM($E137:I137),Inputs!$F79*$D168,0) -> 0 | K181: =IF(SUM($E181:J181)<SUM($E137:J137),Inputs!$F79*$D168,0) -> 0 | L181: =IF(SUM($E181:K181)<SUM($E137:K137),Inputs!$F79*$D168,0) -> 0 | M181: =IF(SUM($E181:L181)<SUM($E137:L137),Inputs!$F79*$D168,0) -> 0 | N181: =IF(SUM($E181:M181)<SUM($E137:M137),Inputs!$F79*$D168,0) -> 0 | O181: =IF(SUM($E181:N181)<SUM($E137:N137),Inputs!$F79*$D168,0) -> 0 | P181: =IF(SUM($E181:O181)<SUM($E137:O137),Inputs!$F79*$D168,0) -> 0 | Q181: =IF(SUM($E181:P181)<SUM($E137:P137),Inputs!$F79*$D168,0) -> 0 | R181: =IF(SUM($E181:Q181)<SUM($E137:Q137),Inputs!$F79*$D168,0) -> 0 | S181: =IF(SUM($E181:R181)<SUM($E137:R137),Inputs!$F79*$D168,0) -> 0 | T181: =IF(SUM($E181:S181)<SUM($E137:S137),Inputs!$F79*$D168,0) -> 0 | U181: =IF(SUM($E181:T181)<SUM($E137:T137),Inputs!$F79*$D168,0) -> 0
B182: Balance of systems | C182: NGN | F182: =IF(SUM($E182:E182)<SUM($E138:E138),Inputs!$F80*$D169,0) -> 0 | G182: =IF(SUM($E182:F182)<SUM($E138:F138),Inputs!$F80*$D169,0) -> 0 | H182: =IF(SUM($E182:G182)<SUM($E138:G138),Inputs!$F80*$D169,0) -> 0 | I182: =IF(SUM($E182:H182)<SUM($E138:H138),Inputs!$F80*$D169,0) -> 0 | J182: =IF(SUM($E182:I182)<SUM($E138:I138),Inputs!$F80*$D169,0) -> 0 | K182: =IF(SUM($E182:J182)<SUM($E138:J138),Inputs!$F80*$D169,0) -> 0 | L182: =IF(SUM($E182:K182)<SUM($E138:K138),Inputs!$F80*$D169,0) -> 0 | M182: =IF(SUM($E182:L182)<SUM($E138:L138),Inputs!$F80*$D169,0) -> 0 | N182: =IF(SUM($E182:M182)<SUM($E138:M138),Inputs!$F80*$D169,0) -> 0 | O182: =IF(SUM($E182:N182)<SUM($E138:N138),Inputs!$F80*$D169,0) -> 0 | P182: =IF(SUM($E182:O182)<SUM($E138:O138),Inputs!$F80*$D169,0) -> 0 | Q182: =IF(SUM($E182:P182)<SUM($E138:P138),Inputs!$F80*$D169,0) -> 0 | R182: =IF(SUM($E182:Q182)<SUM($E138:Q138),Inputs!$F80*$D169,0) -> 0 | S182: =IF(SUM($E182:R182)<SUM($E138:R138),Inputs!$F80*$D169,0) -> 0 | T182: =IF(SUM($E182:S182)<SUM($E138:S138),Inputs!$F80*$D169,0) -> 0 | U182: =IF(SUM($E182:T182)<SUM($E138:T138),Inputs!$F80*$D169,0) -> 0
B183: Distribution CAPEX | C183: NGN | F183: =IF(SUM($E183:E183)<SUM($E139:E139),Inputs!$F81*$D170,0) -> 0 | G183: =IF(SUM($E183:F183)<SUM($E139:F139),Inputs!$F81*$D170,0) -> 0 | H183: =IF(SUM($E183:G183)<SUM($E139:G139),Inputs!$F81*$D170,0) -> 0 | I183: =IF(SUM($E183:H183)<SUM($E139:H139),Inputs!$F81*$D170,0) -> 0 | J183: =IF(SUM($E183:I183)<SUM($E139:I139),Inputs!$F81*$D170,0) -> 0 | K183: =IF(SUM($E183:J183)<SUM($E139:J139),Inputs!$F81*$D170,0) -> 0 | L183: =IF(SUM($E183:K183)<SUM($E139:K139),Inputs!$F81*$D170,0) -> 0 | M183: =IF(SUM($E183:L183)<SUM($E139:L139),Inputs!$F81*$D170,0) -> 0 | N183: =IF(SUM($E183:M183)<SUM($E139:M139),Inputs!$F81*$D170,0) -> 0 | O183: =IF(SUM($E183:N183)<SUM($E139:N139),Inputs!$F81*$D170,0) -> 0 | P183: =IF(SUM($E183:O183)<SUM($E139:O139),Inputs!$F81*$D170,0) -> 0 | Q183: =IF(SUM($E183:P183)<SUM($E139:P139),Inputs!$F81*$D170,0) -> 0 | R183: =IF(SUM($E183:Q183)<SUM($E139:Q139),Inputs!$F81*$D170,0) -> 0 | S183: =IF(SUM($E183:R183)<SUM($E139:R139),Inputs!$F81*$D170,0) -> 0 | T183: =IF(SUM($E183:S183)<SUM($E139:S139),Inputs!$F81*$D170,0) -> 0 | U183: =IF(SUM($E183:T183)<SUM($E139:T139),Inputs!$F81*$D170,0) -> 0
B184: General cost CAPEX | C184: NGN | F184: =IF(SUM($E184:E184)<SUM($E140:E140),Inputs!$F82*$D171,0) -> 0 | G184: =IF(SUM($E184:F184)<SUM($E140:F140),Inputs!$F82*$D171,0) -> 0 | H184: =IF(SUM($E184:G184)<SUM($E140:G140),Inputs!$F82*$D171,0) -> 0 | I184: =IF(SUM($E184:H184)<SUM($E140:H140),Inputs!$F82*$D171,0) -> 0 | J184: =IF(SUM($E184:I184)<SUM($E140:I140),Inputs!$F82*$D171,0) -> 0 | K184: =IF(SUM($E184:J184)<SUM($E140:J140),Inputs!$F82*$D171,0) -> 0 | L184: =IF(SUM($E184:K184)<SUM($E140:K140),Inputs!$F82*$D171,0) -> 0 | M184: =IF(SUM($E184:L184)<SUM($E140:L140),Inputs!$F82*$D171,0) -> 0 | N184: =IF(SUM($E184:M184)<SUM($E140:M140),Inputs!$F82*$D171,0) -> 0 | O184: =IF(SUM($E184:N184)<SUM($E140:N140),Inputs!$F82*$D171,0) -> 0 | P184: =IF(SUM($E184:O184)<SUM($E140:O140),Inputs!$F82*$D171,0) -> 0 | Q184: =IF(SUM($E184:P184)<SUM($E140:P140),Inputs!$F82*$D171,0) -> 0 | R184: =IF(SUM($E184:Q184)<SUM($E140:Q140),Inputs!$F82*$D171,0) -> 0 | S184: =IF(SUM($E184:R184)<SUM($E140:R140),Inputs!$F82*$D171,0) -> 0 | T184: =IF(SUM($E184:S184)<SUM($E140:S140),Inputs!$F82*$D171,0) -> 0 | U184: =IF(SUM($E184:T184)<SUM($E140:T140),Inputs!$F82*$D171,0) -> 0
B185: Customer connection cost | C185: NGN | F185: =IF(SUM($E185:E185)<SUM($E141:E141),Inputs!$F83*$D172,0) -> 0 | G185: =IF(SUM($E185:F185)<SUM($E141:F141),Inputs!$F83*$D172,0) -> 0 | H185: =IF(SUM($E185:G185)<SUM($E141:G141),Inputs!$F83*$D172,0) -> 0 | I185: =IF(SUM($E185:H185)<SUM($E141:H141),Inputs!$F83*$D172,0) -> 0 | J185: =IF(SUM($E185:I185)<SUM($E141:I141),Inputs!$F83*$D172,0) -> 0 | K185: =IF(SUM($E185:J185)<SUM($E141:J141),Inputs!$F83*$D172,0) -> 0 | L185: =IF(SUM($E185:K185)<SUM($E141:K141),Inputs!$F83*$D172,0) -> 0 | M185: =IF(SUM($E185:L185)<SUM($E141:L141),Inputs!$F83*$D172,0) -> 0 | N185: =IF(SUM($E185:M185)<SUM($E141:M141),Inputs!$F83*$D172,0) -> 0 | O185: =IF(SUM($E185:N185)<SUM($E141:N141),Inputs!$F83*$D172,0) -> 0 | P185: =IF(SUM($E185:O185)<SUM($E141:O141),Inputs!$F83*$D172,0) -> 0 | Q185: =IF(SUM($E185:P185)<SUM($E141:P141),Inputs!$F83*$D172,0) -> 0 | R185: =IF(SUM($E185:Q185)<SUM($E141:Q141),Inputs!$F83*$D172,0) -> 0 | S185: =IF(SUM($E185:R185)<SUM($E141:R141),Inputs!$F83*$D172,0) -> 0 | T185: =IF(SUM($E185:S185)<SUM($E141:S141),Inputs!$F83*$D172,0) -> 0 | U185: =IF(SUM($E185:T185)<SUM($E141:T141),Inputs!$F83*$D172,0) -> 0
B186: Total | C186: NGN | F186: =SUM(F176:F185) -> 0 | G186: =SUM(G176:G185) -> 0 | H186: 0 | I186: 0 | J186: 0 | K186: 0 | L186: 0 | M186: 1260000 | N186: 1260000 | O186: 1260000 | P186: 1260000 | Q186: 1260000 | R186: 1260000 | S186: 1260000 | T186: 1260000 | U186: 1260000
B188: Total tax depreciation | C188: NGN | F188: =F186+F173 -> 0 | G188: =G186+G173 -> 15346800 | H188: 15346800 | I188: 15346800 | J188: 15346800 | K188: 15346800 | L188: 12826800 | M188: 14086800 | N188: 14086800 | O188: 14086800 | P188: 14086800 | Q188: 1260000 | R188: 1260000 | S188: 1260000 | T188: 1260000 | U188: 1260000
A190: x | B190: Ongoing CAPEX
B192: Generation CAPEX | D192: Asset Life
B193: Solar PV | C193: NGN | D193: =Inputs!G151 -> 20 | F193: =IF(MOD(F$12-1,$D193)=0,Inputs!$F74,0)*F$10 -> 0 | G193: =IF(MOD(G$12-1,$D193)=0,Inputs!$F74,0)*G$10 -> 0 | H193: =IF(MOD(H$12-1,$D193)=0,Inputs!$F74,0)*H$10 -> 0 | I193: =IF(MOD(I$12-1,$D193)=0,Inputs!$F74,0)*I$10 -> 0 | J193: =IF(MOD(J$12-1,$D193)=0,Inputs!$F74,0)*J$10 -> 0 | K193: =IF(MOD(K$12-1,$D193)=0,Inputs!$F74,0)*K$10 -> 0 | L193: =IF(MOD(L$12-1,$D193)=0,Inputs!$F74,0)*L$10 -> 0 | M193: =IF(MOD(M$12-1,$D193)=0,Inputs!$F74,0)*M$10 -> 0 | N193: =IF(MOD(N$12-1,$D193)=0,Inputs!$F74,0)*N$10 -> 0 | O193: =IF(MOD(O$12-1,$D193)=0,Inputs!$F74,0)*O$10 -> 0 | P193: =IF(MOD(P$12-1,$D193)=0,Inputs!$F74,0)*P$10 -> 0 | Q193: =IF(MOD(Q$12-1,$D193)=0,Inputs!$F74,0)*Q$10 -> 0 | R193: =IF(MOD(R$12-1,$D193)=0,Inputs!$F74,0)*R$10 -> 0 | S193: =IF(MOD(S$12-1,$D193)=0,Inputs!$F74,0)*S$10 -> 0 | T193: =IF(MOD(T$12-1,$D193)=0,Inputs!$F74,0)*T$10 -> 0 | U193: =IF(MOD(U$12-1,$D193)=0,Inputs!$F74,0)*U$10 -> 0
B194: Battery | C194: NGN | D194: =Inputs!G152 -> 5 | F194: =IF(MOD(F$12-1,$D194)=0,Inputs!$F75,0)*F$10 -> 0 | G194: =IF(MOD(G$12-1,$D194)=0,Inputs!$F75,0)*G$10 -> 0 | H194: =IF(MOD(H$12-1,$D194)=0,Inputs!$F75,0)*H$10 -> 0 | I194: =IF(MOD(I$12-1,$D194)=0,Inputs!$F75,0)*I$10 -> 0 | J194: =IF(MOD(J$12-1,$D194)=0,Inputs!$F75,0)*J$10 -> 0 | K194: =IF(MOD(K$12-1,$D194)=0,Inputs!$F75,0)*K$10 -> 0 | L194: =IF(MOD(L$12-1,$D194)=0,Inputs!$F75,0)*L$10 -> 6300000 | M194: =IF(MOD(M$12-1,$D194)=0,Inputs!$F75,0)*M$10 -> 0 | N194: =IF(MOD(N$12-1,$D194)=0,Inputs!$F75,0)*N$10 -> 0 | O194: =IF(MOD(O$12-1,$D194)=0,Inputs!$F75,0)*O$10 -> 0 | P194: =IF(MOD(P$12-1,$D194)=0,Inputs!$F75,0)*P$10 -> 0 | Q194: =IF(MOD(Q$12-1,$D194)=0,Inputs!$F75,0)*Q$10 -> 6300000 | R194: =IF(MOD(R$12-1,$D194)=0,Inputs!$F75,0)*R$10 -> 0 | S194: =IF(MOD(S$12-1,$D194)=0,Inputs!$F75,0)*S$10 -> 0 | T194: =IF(MOD(T$12-1,$D194)=0,Inputs!$F75,0)*T$10 -> 0 | U194: =IF(MOD(U$12-1,$D194)=0,Inputs!$F75,0)*U$10 -> 0
B195: Inverters | C195: NGN | D195: =Inputs!G153 -> 20 | F195: =IF(MOD(F$12-1,$D195)=0,Inputs!$F76,0)*F$10 -> 0 | G195: =IF(MOD(G$12-1,$D195)=0,Inputs!$F76,0)*G$10 -> 0 | H195: =IF(MOD(H$12-1,$D195)=0,Inputs!$F76,0)*H$10 -> 0 | I195: =IF(MOD(I$12-1,$D195)=0,Inputs!$F76,0)*I$10 -> 0 | J195: =IF(MOD(J$12-1,$D195)=0,Inputs!$F76,0)*J$10 -> 0 | K195: =IF(MOD(K$12-1,$D195)=0,Inputs!$F76,0)*K$10 -> 0 | L195: =IF(MOD(L$12-1,$D195)=0,Inputs!$F76,0)*L$10 -> 0 | M195: =IF(MOD(M$12-1,$D195)=0,Inputs!$F76,0)*M$10 -> 0 | N195: =IF(MOD(N$12-1,$D195)=0,Inputs!$F76,0)*N$10 -> 0 | O195: =IF(MOD(O$12-1,$D195)=0,Inputs!$F76,0)*O$10 -> 0 | P195: =IF(MOD(P$12-1,$D195)=0,Inputs!$F76,0)*P$10 -> 0 | Q195: =IF(MOD(Q$12-1,$D195)=0,Inputs!$F76,0)*Q$10 -> 0 | R195: =IF(MOD(R$12-1,$D195)=0,Inputs!$F76,0)*R$10 -> 0 | S195: =IF(MOD(S$12-1,$D195)=0,Inputs!$F76,0)*S$10 -> 0 | T195: =IF(MOD(T$12-1,$D195)=0,Inputs!$F76,0)*T$10 -> 0 | U195: =IF(MOD(U$12-1,$D195)=0,Inputs!$F76,0)*U$10 -> 0
B196: Diesel Genset | C196: NGN | D196: =Inputs!G154 -> 20 | F196: =IF(MOD(F$12-1,$D196)=0,Inputs!$F77,0)*F$10 -> 0 | G196: =IF(MOD(G$12-1,$D196)=0,Inputs!$F77,0)*G$10 -> 0 | H196: =IF(MOD(H$12-1,$D196)=0,Inputs!$F77,0)*H$10 -> 0 | I196: =IF(MOD(I$12-1,$D196)=0,Inputs!$F77,0)*I$10 -> 0 | J196: =IF(MOD(J$12-1,$D196)=0,Inputs!$F77,0)*J$10 -> 0 | K196: =IF(MOD(K$12-1,$D196)=0,Inputs!$F77,0)*K$10 -> 0 | L196: =IF(MOD(L$12-1,$D196)=0,Inputs!$F77,0)*L$10 -> 0 | M196: =IF(MOD(M$12-1,$D196)=0,Inputs!$F77,0)*M$10 -> 0 | N196: =IF(MOD(N$12-1,$D196)=0,Inputs!$F77,0)*N$10 -> 0 | O196: =IF(MOD(O$12-1,$D196)=0,Inputs!$F77,0)*O$10 -> 0 | P196: =IF(MOD(P$12-1,$D196)=0,Inputs!$F77,0)*P$10 -> 0 | Q196: =IF(MOD(Q$12-1,$D196)=0,Inputs!$F77,0)*Q$10 -> 0 | R196: =IF(MOD(R$12-1,$D196)=0,Inputs!$F77,0)*R$10 -> 0 | S196: =IF(MOD(S$12-1,$D196)=0,Inputs!$F77,0)*S$10 -> 0 | T196: =IF(MOD(T$12-1,$D196)=0,Inputs!$F77,0)*T$10 -> 0 | U196: =IF(MOD(U$12-1,$D196)=0,Inputs!$F77,0)*U$10 -> 0
B197: CCMPPT | C197: NGN | D197: =Inputs!G155 -> 20 | F197: =IF(MOD(F$12-1,$D197)=0,Inputs!$F78,0)*F$10 -> 0 | G197: =IF(MOD(G$12-1,$D197)=0,Inputs!$F78,0)*G$10 -> 0 | H197: =IF(MOD(H$12-1,$D197)=0,Inputs!$F78,0)*H$10 -> 0 | I197: =IF(MOD(I$12-1,$D197)=0,Inputs!$F78,0)*I$10 -> 0 | J197: =IF(MOD(J$12-1,$D197)=0,Inputs!$F78,0)*J$10 -> 0 | K197: =IF(MOD(K$12-1,$D197)=0,Inputs!$F78,0)*K$10 -> 0 | L197: =IF(MOD(L$12-1,$D197)=0,Inputs!$F78,0)*L$10 -> 0 | M197: =IF(MOD(M$12-1,$D197)=0,Inputs!$F78,0)*M$10 -> 0 | N197: =IF(MOD(N$12-1,$D197)=0,Inputs!$F78,0)*N$10 -> 0 | O197: =IF(MOD(O$12-1,$D197)=0,Inputs!$F78,0)*O$10 -> 0 | P197: =IF(MOD(P$12-1,$D197)=0,Inputs!$F78,0)*P$10 -> 0 | Q197: =IF(MOD(Q$12-1,$D197)=0,Inputs!$F78,0)*Q$10 -> 0 | R197: =IF(MOD(R$12-1,$D197)=0,Inputs!$F78,0)*R$10 -> 0 | S197: =IF(MOD(S$12-1,$D197)=0,Inputs!$F78,0)*S$10 -> 0 | T197: =IF(MOD(T$12-1,$D197)=0,Inputs!$F78,0)*T$10 -> 0 | U197: =IF(MOD(U$12-1,$D197)=0,Inputs!$F78,0)*U$10 -> 0
B198: Distribution Box | C198: NGN | D198: =Inputs!G156 -> 20 | F198: =IF(MOD(F$12-1,$D198)=0,Inputs!$F79,0)*F$10 -> 0 | G198: =IF(MOD(G$12-1,$D198)=0,Inputs!$F79,0)*G$10 -> 0 | H198: =IF(MOD(H$12-1,$D198)=0,Inputs!$F79,0)*H$10 -> 0 | I198: =IF(MOD(I$12-1,$D198)=0,Inputs!$F79,0)*I$10 -> 0 | J198: =IF(MOD(J$12-1,$D198)=0,Inputs!$F79,0)*J$10 -> 0 | K198: =IF(MOD(K$12-1,$D198)=0,Inputs!$F79,0)*K$10 -> 0 | L198: =IF(MOD(L$12-1,$D198)=0,Inputs!$F79,0)*L$10 -> 0 | M198: =IF(MOD(M$12-1,$D198)=0,Inputs!$F79,0)*M$10 -> 0 | N198: =IF(MOD(N$12-1,$D198)=0,Inputs!$F79,0)*N$10 -> 0 | O198: =IF(MOD(O$12-1,$D198)=0,Inputs!$F79,0)*O$10 -> 0 | P198: =IF(MOD(P$12-1,$D198)=0,Inputs!$F79,0)*P$10 -> 0 | Q198: =IF(MOD(Q$12-1,$D198)=0,Inputs!$F79,0)*Q$10 -> 0 | R198: =IF(MOD(R$12-1,$D198)=0,Inputs!$F79,0)*R$10 -> 0 | S198: =IF(MOD(S$12-1,$D198)=0,Inputs!$F79,0)*S$10 -> 0 | T198: =IF(MOD(T$12-1,$D198)=0,Inputs!$F79,0)*T$10 -> 0 | U198: =IF(MOD(U$12-1,$D198)=0,Inputs!$F79,0)*U$10 -> 0
B199: Balance of systems | C199: NGN | D199: =Inputs!G157 -> 20 | F199: =IF(MOD(F$12-1,$D199)=0,Inputs!$F80,0)*F$10 -> 0 | G199: =IF(MOD(G$12-1,$D199)=0,Inputs!$F80,0)*G$10 -> 0 | H199: =IF(MOD(H$12-1,$D199)=0,Inputs!$F80,0)*H$10 -> 0 | I199: =IF(MOD(I$12-1,$D199)=0,Inputs!$F80,0)*I$10 -> 0 | J199: =IF(MOD(J$12-1,$D199)=0,Inputs!$F80,0)*J$10 -> 0 | K199: =IF(MOD(K$12-1,$D199)=0,Inputs!$F80,0)*K$10 -> 0 | L199: =IF(MOD(L$12-1,$D199)=0,Inputs!$F80,0)*L$10 -> 0 | M199: =IF(MOD(M$12-1,$D199)=0,Inputs!$F80,0)*M$10 -> 0 | N199: =IF(MOD(N$12-1,$D199)=0,Inputs!$F80,0)*N$10 -> 0 | O199: =IF(MOD(O$12-1,$D199)=0,Inputs!$F80,0)*O$10 -> 0 | P199: =IF(MOD(P$12-1,$D199)=0,Inputs!$F80,0)*P$10 -> 0 | Q199: =IF(MOD(Q$12-1,$D199)=0,Inputs!$F80,0)*Q$10 -> 0 | R199: =IF(MOD(R$12-1,$D199)=0,Inputs!$F80,0)*R$10 -> 0 | S199: =IF(MOD(S$12-1,$D199)=0,Inputs!$F80,0)*S$10 -> 0 | T199: =IF(MOD(T$12-1,$D199)=0,Inputs!$F80,0)*T$10 -> 0 | U199: =IF(MOD(U$12-1,$D199)=0,Inputs!$F80,0)*U$10 -> 0
B200: Total | C200: NGN | F200: =SUM(F193:F199) -> 0 | G200: =SUM(G193:G199) -> 0 | H200: 0 | I200: 0 | J200: 0 | K200: 0 | L200: 6300000 | M200: 0 | N200: 0 | O200: 0 | P200: 0 | Q200: 6300000 | R200: 0 | S200: 0 | T200: 0 | U200: 0
B202: Distribution CAPEX | D202: Asset Life
B203: Distribution CAPEX | C203: NGN | D203: =Inputs!G166 -> 15 | F203: =IF(MOD(F$12-1,$D203)=0,Inputs!$F81,0)*F$10 -> 0 | G203: =IF(MOD(G$12-1,$D203)=0,Inputs!$F81,0)*G$10 -> 0 | H203: =IF(MOD(H$12-1,$D203)=0,Inputs!$F81,0)*H$10 -> 0 | I203: =IF(MOD(I$12-1,$D203)=0,Inputs!$F81,0)*I$10 -> 0 | J203: =IF(MOD(J$12-1,$D203)=0,Inputs!$F81,0)*J$10 -> 0 | K203: =IF(MOD(K$12-1,$D203)=0,Inputs!$F81,0)*K$10 -> 0 | L203: =IF(MOD(L$12-1,$D203)=0,Inputs!$F81,0)*L$10 -> 0 | M203: =IF(MOD(M$12-1,$D203)=0,Inputs!$F81,0)*M$10 -> 0 | N203: =IF(MOD(N$12-1,$D203)=0,Inputs!$F81,0)*N$10 -> 0 | O203: =IF(MOD(O$12-1,$D203)=0,Inputs!$F81,0)*O$10 -> 0 | P203: =IF(MOD(P$12-1,$D203)=0,Inputs!$F81,0)*P$10 -> 0 | Q203: =IF(MOD(Q$12-1,$D203)=0,Inputs!$F81,0)*Q$10 -> 0 | R203: =IF(MOD(R$12-1,$D203)=0,Inputs!$F81,0)*R$10 -> 0 | S203: =IF(MOD(S$12-1,$D203)=0,Inputs!$F81,0)*S$10 -> 0 | T203: =IF(MOD(T$12-1,$D203)=0,Inputs!$F81,0)*T$10 -> 0 | U203: =IF(MOD(U$12-1,$D203)=0,Inputs!$F81,0)*U$10 -> 0
B204: General cost CAPEX | C204: NGN | D204: =Inputs!G167 -> 15 | F204: =IF(MOD(F$12-1,$D204)=0,Inputs!$F82,0)*F$10 -> 0 | G204: =IF(MOD(G$12-1,$D204)=0,Inputs!$F82,0)*G$10 -> 0 | H204: =IF(MOD(H$12-1,$D204)=0,Inputs!$F82,0)*H$10 -> 0 | I204: =IF(MOD(I$12-1,$D204)=0,Inputs!$F82,0)*I$10 -> 0 | J204: =IF(MOD(J$12-1,$D204)=0,Inputs!$F82,0)*J$10 -> 0 | K204: =IF(MOD(K$12-1,$D204)=0,Inputs!$F82,0)*K$10 -> 0 | L204: =IF(MOD(L$12-1,$D204)=0,Inputs!$F82,0)*L$10 -> 0 | M204: =IF(MOD(M$12-1,$D204)=0,Inputs!$F82,0)*M$10 -> 0 | N204: =IF(MOD(N$12-1,$D204)=0,Inputs!$F82,0)*N$10 -> 0 | O204: =IF(MOD(O$12-1,$D204)=0,Inputs!$F82,0)*O$10 -> 0 | P204: =IF(MOD(P$12-1,$D204)=0,Inputs!$F82,0)*P$10 -> 0 | Q204: =IF(MOD(Q$12-1,$D204)=0,Inputs!$F82,0)*Q$10 -> 0 | R204: =IF(MOD(R$12-1,$D204)=0,Inputs!$F82,0)*R$10 -> 0 | S204: =IF(MOD(S$12-1,$D204)=0,Inputs!$F82,0)*S$10 -> 0 | T204: =IF(MOD(T$12-1,$D204)=0,Inputs!$F82,0)*T$10 -> 0 | U204: =IF(MOD(U$12-1,$D204)=0,Inputs!$F82,0)*U$10 -> 0
B205: Customer connection CAPEX | C205: NGN | D205: =Inputs!G168 -> 15 | F205: =IF(MOD(F$12-1,$D205)=0,Inputs!$F83,0)*F$10 -> 0 | G205: =IF(MOD(G$12-1,$D205)=0,Inputs!$F83,0)*G$10 -> 0 | H205: =IF(MOD(H$12-1,$D205)=0,Inputs!$F83,0)*H$10 -> 0 | I205: =IF(MOD(I$12-1,$D205)=0,Inputs!$F83,0)*I$10 -> 0 | J205: =IF(MOD(J$12-1,$D205)=0,Inputs!$F83,0)*J$10 -> 0 | K205: =IF(MOD(K$12-1,$D205)=0,Inputs!$F83,0)*K$10 -> 0 | L205: =IF(MOD(L$12-1,$D205)=0,Inputs!$F83,0)*L$10 -> 0 | M205: =IF(MOD(M$12-1,$D205)=0,Inputs!$F83,0)*M$10 -> 0 | N205: =IF(MOD(N$12-1,$D205)=0,Inputs!$F83,0)*N$10 -> 0 | O205: =IF(MOD(O$12-1,$D205)=0,Inputs!$F83,0)*O$10 -> 0 | P205: =IF(MOD(P$12-1,$D205)=0,Inputs!$F83,0)*P$10 -> 0 | Q205: =IF(MOD(Q$12-1,$D205)=0,Inputs!$F83,0)*Q$10 -> 0 | R205: =IF(MOD(R$12-1,$D205)=0,Inputs!$F83,0)*R$10 -> 0 | S205: =IF(MOD(S$12-1,$D205)=0,Inputs!$F83,0)*S$10 -> 0 | T205: =IF(MOD(T$12-1,$D205)=0,Inputs!$F83,0)*T$10 -> 0 | U205: =IF(MOD(U$12-1,$D205)=0,Inputs!$F83,0)*U$10 -> 0
B206: Total | C206: NGN | F206: =SUM(F203:F205) -> 0 | G206: =SUM(G203:G205) -> 0 | H206: 0 | I206: 0 | J206: 0 | K206: 0 | L206: 0 | M206: 0 | N206: 0 | O206: 0 | P206: 0 | Q206: 0 | R206: 0 | S206: 0 | T206: 0 | U206: 0
A208: x | B208: Tax
B210: Tax calculations
B211: Taxable income
B212: EBT | C212: NGN | D212: Tax Depreciation | F212: =F50 -> 0 | G212: -14068579.06 | H212: -1573967.459 | I212: 877165.4717 | J212: 9761680.776 | K212: 13828278 | L212: 21352159.44 | M212: 24248041.12 | N212: 28989414.33 | O212: 34396952.37 | P212: 40562259.02 | Q212: 47589330.18 | R212: 55596208.93 | S212: 64716859.26 | T212: 75103287.31 | U212: 86927942.36
B213: Add back: accounting depreciation | C213: NGN | D213: =Inputs!E182 -> 1 | F213: =IF($D$213=1,F44,0) -> 0 | G213: =IF($D$213=1,G44,0) -> 9773400 | H213: 9773400 | I213: 9773400 | J213: 9773400 | K213: 9773400 | L213: 7253400 | M213: 8513400 | N213: 8513400 | O213: 8513400 | P213: 8513400 | Q213: 8513400 | R213: 8513400 | S213: 8513400 | T213: 8513400 | U213: 8513400
B214: Deduct: tax depreciation | C214: NGN | F214: =IF($D$213=1,-F188,0) -> 0 | G214: =IF($D$213=1,-G188,0) -> -15346800 | H214: -15346800 | I214: -15346800 | J214: -15346800 | K214: -15346800 | L214: -12826800 | M214: -14086800 | N214: -14086800 | O214: -14086800 | P214: -14086800 | Q214: -1260000 | R214: -1260000 | S214: -1260000 | T214: -1260000 | U214: -1260000
B215: Taxable income | C215: NGN | F215: =SUM(F212:F214) -> 0 | G215: =SUM(G212:G214) -> -19641979.06 | H215: -7147367.459 | I215: -4696234.528 | J215: 4188280.776 | K215: 8254878.001 | L215: 15778759.44 | M215: 18674641.12 | N215: 23416014.33 | O215: 28823552.37 | P215: 34988859.02 | Q215: 54842730.18 | R215: 62849608.93 | S215: 71970259.26 | T215: 82356687.31 | U215: 94181342.36
B217: Net taxable income | C217: NGN | D217: Income Tax Rate | F217: =F215 -> 0 | G217: =G215 -> -19641979.06 | H217: -7147367.459 | I217: -4696234.528 | J217: 4188280.776 | K217: 8254878.001 | L217: 15778759.44 | M217: 18674641.12 | N217: 23416014.33 | O217: 28823552.37 | P217: 34988859.02 | Q217: =Q215 -> 54842730.18 | R217: 62849608.93 | S217: 71970259.26 | T217: 82356687.31 | U217: 94181342.36
B218: Income tax paid | C218: NGN | D218: =Inputs!E175 -> 0.3 | F218: =MAX(0,F217*$D$218) -> 0 | G218: =MAX(0,G217*$D$218) -> 0 | H218: 0 | I218: 0 | J218: 1256484.233 | K218: 2476463.4 | L218: 4733627.833 | M218: 5602392.335 | N218: 7024804.3 | O218: 8647065.712 | P218: 10496657.7 | Q218: 16452819.05 | R218: 18854882.68 | S218: 21591077.78 | T218: 24707006.19 | U218: 28254402.71
A220: x | B220: Financing
B222: NEP Performance Based Grant | D222: USD/connection
B223: Grant per connection | C223: NGN/connection | D223: =Inputs!E197 -> 600 | F223: =$D$223*F7 -> 378000 | G223: =$D$223*G7 -> 387450 | H223: 397136.25 | I223: 407064.6562 | J223: 417241.2727 | K223: 427672.3045 | L223: 438364.1121 | M223: 449323.2149 | N223: 460556.2953 | O223: 472070.2026 | P223: 483871.9577 | Q223: 495968.7566 | R223: 508367.9756 | S223: 521077.175 | T223: 534104.1043 | U223: 547456.7069
B224: Total NEP Grant | C224: NGN | F224: =F223*F71 -> 0 | G224: =G223*G71 -> 103526640 | H224: =H223*H71 -> 13264350.75 | I224: 0 | J224: 13935858.51 | K224: 0 | L224: 0 | M224: 0 | N224: 0 | O224: 0 | P224: 0 | Q224: 0 | R224: 0 | S224: 0 | T224: 0 | U224: 0
B226: Cash Available for Debt Service
B227: EBITDA | C227: NGN | F227: =F42 -> 0 | G227: 804820.9389 | H227: 12572356.83 | I227: 14172811.18 | J227: 22062032.55 | K227: 24964135.87 | L227: 28605559.44 | M227: 32761441.12 | N227: 37502814.33 | O227: 42910352.37 | P227: 49075659.02 | Q227: 56102730.18 | R227: 64109608.93 | S227: 73230259.26 | T227: 83616687.31 | U227: 95441342.36
B228: Tax Payable | C228: NGN | F228: =-SUM(F52:F56) -> 0 | G228: =-SUM(G52:G56) -> 0 | H228: 0 | I228: 0 | J228: -1340249.848 | K228: -2641560.96 | L228: -5049203.022 | M228: -5975885.157 | N228: -7493124.587 | O228: -9223536.759 | P228: -11196434.88 | Q228: -17549673.66 | R228: -20111874.86 | S228: -23030482.96 | T228: -26354139.94 | U228: -30138029.55
B229: NEP Grant Revenue | C229: NGN | F229: =F224 -> 0 | G229: 103526640 | H229: 13264350.75 | I229: 0 | J229: 13935858.51 | K229: 0 | L229: 0 | M229: 0 | N229: 0 | O229: 0 | P229: 0 | Q229: 0 | R229: 0 | S229: 0 | T229: 0 | U229: 0
B230: Ongoing CAPEX | C230: NGN | F230: =-SUM(F200+F206) -> 0 | G230: =-SUM(G200+G206) -> 0 | H230: 0 | I230: 0 | J230: 0 | K230: 0 | L230: -6300000 | M230: 0 | N230: 0 | O230: 0 | P230: 0 | Q230: -6300000 | R230: 0 | S230: 0 | T230: 0 | U230: 0
B231: Cash Available for Debt Service | C231: NGN | D231: Unlevered IRR | F231: =-CapEx -> -140868000 | G231: =SUM(G227:G230) -> 104331460.9 | H231: =SUM(H227:H230) -> 25836707.58 | I231: 14172811.18 | J231: 34657641.21 | K231: 22322574.91 | L231: 17256356.42 | M231: 26785555.96 | N231: 30009689.75 | O231: 33686815.61 | P231: 37879224.13 | Q231: 32253056.52 | R231: 43997734.07 | S231: 50199776.3 | T231: 57262547.37 | U231: 65303312.8
D232: =IRR(F231:U231) -> 0.3144732068
B234: Interest Rate | C234: % | D234: =Inputs!E203 -> 0.17
B235: Tenor | C235: years | D235: =Inputs!E202 -> 5
B236: Debt Facility Size | C236: NGN | D236: =Inputs!E201 -> 30000000
B237: Leverage (as % of Project Cost) | C237: % | D237: =Inputs!E201/Inputs!E193 -> 0.2129653292
B239: Loan Year Flag | F239: =IF(F12<$D$235+1,1,0)*F11 -> 0 | G239: =IF(G12<$D$235+1,1,0)*G11 -> 1 | H239: 1 | I239: 1 | J239: 1 | K239: 1 | L239: 0 | M239: 0 | N239: 0 | O239: 0 | P239: 0 | Q239: 0 | R239: 0 | S239: 0 | T239: 0 | U239: 0
B241: Loan Balance (beginning of year) | C241: NGN | F241: =IF(F239=1,E243,0) -> 0 | G241: =IF(G239=1,F243,0) -> -30000000 | H241: -25723084.07 | I241: -20719092.43 | J241: -14864422.21 | K241: -8014458.06 | L241: 0 | M241: 0 | N241: 0 | O241: 0 | P241: 0 | Q241: 0 | R241: 0 | S241: 0 | T241: 0 | U241: 0
B242: Principal Amortization | C242: NGN | G242: =IF(G239=1,PPMT($D$234,G12,$D$235,-$D$236),0) -> 4276915.93 | H242: =IF(H239=1,PPMT($D$234,H12,$D$235,-$D$236),0) -> 5003991.639 | I242: =IF(I239=1,PPMT($D$234,I12,$D$235,-$D$236),0) -> 5854670.217 | J242: 6849964.154 | K242: 8014458.06 | L242: 0 | M242: 0 | N242: 0 | O242: 0 | P242: 0 | Q242: 0 | R242: 0 | S242: 0 | T242: 0 | U242: 0
B243: Loan Balance (end of year) | C243: NGN | F243: =-D236 -> -30000000 | G243: =SUM(G241:G242) -> -25723084.07 | H243: =SUM(H241:H242) -> -20719092.43 | I243: -14864422.21 | J243: -8014458.06 | K243: 0 | L243: 0 | M243: 0 | N243: 0 | O243: 0 | P243: 0 | Q243: 0 | R243: 0 | S243: 0 | T243: 0 | U243: 0
B245: Interest Expense | C245: NGN | F245: =IF(F239=1,IPMT($D$234,F12,$D$235,$D$236),0) -> 0 | G245: -5100000 | H245: -4372924.292 | I245: -3522245.713 | J245: -2526951.776 | K245: -1362457.87 | L245: 0 | M245: 0 | N245: 0 | O245: 0 | P245: 0 | Q245: 0 | R245: 0 | S245: 0 | T245: 0 | U245: 0
... 3 more rows

Sheet End
A1: Sheet intentionally left blank

Sheet Graph calc
A1: Graph Calculations
A2: =Name_Model -> 
B3: Timing | F3: ='Operating Model'!F3 -> 2022 | G3: ='Operating Model'!G3 -> 2023 | H3: ='Operating Model'!H3 -> 2024 | I3: ='Operating Model'!I3 -> 2025 | J3: ='Operating Model'!J3 -> 2026 | K3: ='Operating Model'!K3 -> 2027 | L3: ='Operating Model'!L3 -> 2028 | M3: ='Operating Model'!M3 -> 2029 | N3: ='Operating Model'!N3 -> 2030 | O3: ='Operating Model'!O3 -> 2031 | P3: ='Operating Model'!P3 -> 2032 | Q3: ='Operating Model'!Q3 -> 2033 | R3: ='Operating Model'!R3 -> 2034 | S3: ='Operating Model'!S3 -> 2035 | T3: ='Operating Model'!T3 -> 2036 | U3: ='Operating Model'!U3 -> 2037 | V3: ='Operating Model'!V3 -> 0
B4: Start date | F4: ='Operating Model'!F4 -> 2022-01-01 | G4: ='Operating Model'!G4 -> 2023-01-01 | H4: ='Operating Model'!H4 -> 2024-01-01 | I4: ='Operating Model'!I4 -> 2025-01-01 | J4: ='Operating Model'!J4 -> 2026-01-01 | K4: ='Operating Model'!K4 -> 2027-01-01 | L4: ='Operating Model'!L4 -> 2028-01-01 | M4: ='Operating Model'!M4 -> 2029-01-01 | N4: ='Operating Model'!N4 -> 2030-01-01 | O4: ='Operating Model'!O4 -> 2031-01-01 | P4: ='Operating Model'!P4 -> 2032-01-01 | Q4: ='Operating Model'!Q4 -> 2033-01-01 | R4: ='Operating Model'!R4 -> 2034-01-01 | S4: ='Operating Model'!S4 -> 2035-01-01 | T4: ='Operating Model'!T4 -> 2036-01-01 | U4: ='Operating Model'!U4 -> 2037-01-01 | V4: ='Operating Model'!V4 -> 00:00:00
B5: End date | F5: ='Operating Model'!F5 -> 2022-12-31 | G5: ='Operating Model'!G5 -> 2023-12-31 | H5: ='Operating Model'!H5 -> 2024-12-31 | I5: ='Operating Model'!I5 -> 2025-12-31 | J5: ='Operating Model'!J5 -> 2026-12-31 | K5: ='Operating Model'!K5 -> 2027-12-31 | L5: ='Operating Model'!L5 -> 2028-12-31 | M5: ='Operating Model'!M5 -> 2029-12-31 | N5: ='Operating Model'!N5 -> 2030-12-31 | O5: ='Operating Model'!O5 -> 2031-12-31 | P5: ='Operating Model'!P5 -> 2032-12-31 | Q5: ='Operating Model'!Q5 -> 2033-12-31 | R5: ='Operating Model'!R5 -> 2034-12-31 | S5: ='Operating Model'!S5 -> 2035-12-31 | T5: ='Operating Model'!T5 -> 2036-12-31 | U5: ='Operating Model'!U5 -> 2037-12-31 | V5: ='Operating Model'!V5 -> 00:00:00
B6: Inflation escalator | F6: ='Operating Model'!F6 -> 1 | G6: ='Operating Model'!G6 -> 1.12 | H6: ='Operating Model'!H6 -> 1.2544 | I6: ='Operating Model'!I6 -> 1.404928 | J6: ='Operating Model'!J6 -> 1.57351936 | K6: ='Operating Model'!K6 -> 1.762341683 | L6: ='Operating Model'!L6 -> 1.973822685 | M6: ='Operating Model'!M6 -> 2.210681407 | N6: ='Operating Model'!N6 -> 2.475963176 | O6: ='Operating Model'!O6 -> 2.773078757 | P6: ='Operating Model'!P6 -> 3.105848208 | Q6: ='Operating Model'!Q6 -> 3.478549993 | R6: ='Operating Model'!R6 -> 3.895975993 | S6: ='Operating Model'!S6 -> 4.363493112 | T6: ='Operating Model'!T6 -> 4.887112285 | U6: ='Operating Model'!U6 -> 5.473565759 | V6: ='Operating Model'!V6 -> 0
B7: Depreciation rate | F7: =ExRate -> 630 | G7: =F7*(1+Inputs!$E$187) -> 645.75 | H7: =G7*(1+Inputs!$E$187) -> 661.89375 | I7: =H7*(1+Inputs!$E$187) -> 678.4410937 | J7: =I7*(1+Inputs!$E$187) -> 695.4021211 | K7: =J7*(1+Inputs!$E$187) -> 712.7871741 | L7: =K7*(1+Inputs!$E$187) -> 730.6068535 | M7: =L7*(1+Inputs!$E$187) -> 748.8720248 | N7: =M7*(1+Inputs!$E$187) -> 767.5938254 | O7: =N7*(1+Inputs!$E$187) -> 786.7836711 | P7: =O7*(1+Inputs!$E$187) -> 806.4532628 | Q7: =P7*(1+Inputs!$E$187) -> 826.6145944 | R7: =Q7*(1+Inputs!$E$187) -> 847.2799593 | S7: =R7*(1+Inputs!$E$187) -> 868.4619583 | T7: =S7*(1+Inputs!$E$187) -> 890.1735072 | U7: =T7*(1+Inputs!$E$187) -> 912.4278449
B9: Construction flag | F9: ='Operating Model'!F9 -> 1 | G9: ='Operating Model'!G9 -> 0 | H9: ='Operating Model'!H9 -> 0 | I9: ='Operating Model'!I9 -> 0 | J9: ='Operating Model'!J9 -> 0 | K9: ='Operating Model'!K9 -> 0 | L9: ='Operating Model'!L9 -> 0 | M9: ='Operating Model'!M9 -> 0 | N9: ='Operating Model'!N9 -> 0 | O9: ='Operating Model'!O9 -> 0 | P9: ='Operating Model'!P9 -> 0 | Q9: ='Operating Model'!Q9 -> 0 | R9: ='Operating Model'!R9 -> 0 | S9: ='Operating Model'!S9 -> 0 | T9: ='Operating Model'!T9 -> 0 | U9: ='Operating Model'!U9 -> 0
B10: First year flag | F10: ='Operating Model'!F10 -> 1 | G10: ='Operating Model'!G10 -> 0 | H10: ='Operating Model'!H10 -> 1 | I10: ='Operating Model'!I10 -> 1 | J10: ='Operating Model'!J10 -> 1 | K10: ='Operating Model'!K10 -> 1 | L10: ='Operating Model'!L10 -> 1 | M10: ='Operating Model'!M10 -> 1 | N10: ='Operating Model'!N10 -> 1 | O10: ='Operating Model'!O10 -> 1 | P10: ='Operating Model'!P10 -> 1 | Q10: ='Operating Model'!Q10 -> 1 | R10: ='Operating Model'!R10 -> 1 | S10: ='Operating Model'!S10 -> 1 | T10: ='Operating Model'!T10 -> 1 | U10: ='Operating Model'!U10 -> 1
B11: Operations flag | F11: ='Operating Model'!F11 -> 0 | G11: ='Operating Model'!G11 -> 1 | H11: ='Operating Model'!H11 -> 1 | I11: ='Operating Model'!I11 -> 1 | J11: ='Operating Model'!J11 -> 1 | K11: ='Operating Model'!K11 -> 1 | L11: ='Operating Model'!L11 -> 1 | M11: ='Operating Model'!M11 -> 1 | N11: ='Operating Model'!N11 -> 1 | O11: ='Operating Model'!O11 -> 1 | P11: ='Operating Model'!P11 -> 1 | Q11: ='Operating Model'!Q11 -> 1 | R11: ='Operating Model'!R11 -> 1 | S11: ='Operating Model'!S11 -> 1 | T11: ='Operating Model'!T11 -> 1 | U11: ='Operating Model'!U11 -> 1
B12: Operations period count | F12: ='Operating Model'!F12 -> 0 | G12: ='Operating Model'!G12 -> 1 | H12: ='Operating Model'!H12 -> 2 | I12: ='Operating Model'!I12 -> 3 | J12: ='Operating Model'!J12 -> 4 | K12: ='Operating Model'!K12 -> 5 | L12: ='Operating Model'!L12 -> 6 | M12: ='Operating Model'!M12 -> 7 | N12: ='Operating Model'!N12 -> 8 | O12: ='Operating Model'!O12 -> 9 | P12: ='Operating Model'!P12 -> 10 | Q12: ='Operating Model'!Q12 -> 11 | R12: ='Operating Model'!R12 -> 12 | S12: ='Operating Model'!S12 -> 13 | T12: ='Operating Model'!T12 -> 14 | U12: ='Operating Model'!U12 -> 15
B14: Graphs
B16: Cash Flow Graphs
B17: Revenue | C17: NGN | F17: ='FS (NGN)'!D8 -> 0 | G17: ='FS (NGN)'!E8 -> 35009644.26 | H17: ='FS (NGN)'!F8 -> 41690297.12 | I17: ='FS (NGN)'!G8 -> 46792345.24 | J17: ='FS (NGN)'!H8 -> 59097679.67 | K17: ='FS (NGN)'!I8 -> 66464708.7 | L17: ='FS (NGN)'!J8 -> 75138557.28 | M17: ='FS (NGN)'!K8 -> 84937037.71 | N17: ='FS (NGN)'!L8 -> 96005158.21 | O17: ='FS (NGN)'!M8 -> 108506534.3 | P17: ='FS (NGN)'!N8 -> 122625766.4 | Q17: ='FS (NGN)'!O8 -> 138571120 | R17: ='FS (NGN)'!P8 -> 156577547.6 | S17: ='FS (NGN)'!Q8 -> 176910093.6 | T17: ='FS (NGN)'!R8 -> 199867733.9 | U17: ='FS (NGN)'!S8 -> 225787702.6
B18: OPEX | C18: NGN | F18: ='FS (NGN)'!D9+'FS (NGN)'!D10 -> 0 | G18: ='FS (NGN)'!E9+'FS (NGN)'!E10 -> 34204823.32 | H18: ='FS (NGN)'!F9+'FS (NGN)'!F10 -> 29117940.28 | I18: ='FS (NGN)'!G9+'FS (NGN)'!G10 -> 32619534.05 | J18: ='FS (NGN)'!H9+'FS (NGN)'!H10 -> 37035647.11 | K18: ='FS (NGN)'!I9+'FS (NGN)'!I10 -> 41500572.83 | L18: ='FS (NGN)'!J9+'FS (NGN)'!J10 -> 46532997.83 | M18: ='FS (NGN)'!K9+'FS (NGN)'!K10 -> 52175596.59 | N18: ='FS (NGN)'!L9+'FS (NGN)'!L10 -> 58502343.88 | O18: ='FS (NGN)'!M9+'FS (NGN)'!M10 -> 65596181.93 | P18: ='FS (NGN)'!N9+'FS (NGN)'!N10 -> 73550107.35 | Q18: ='FS (NGN)'!O9+'FS (NGN)'!O10 -> 82468389.87 | R18: ='FS (NGN)'!P9+'FS (NGN)'!P10 -> 92467938.63 | S18: ='FS (NGN)'!Q9+'FS (NGN)'!Q10 -> 103679834.3 | T18: ='FS (NGN)'!R9+'FS (NGN)'!R10 -> 116251046.6 | U18: ='FS (NGN)'!S9+'FS (NGN)'!S10 -> 130346360.2
B19: Ongoing CAPEX | C19: NGN | F19: =-'FS (NGN)'!D39 -> 0 | G19: =-'FS (NGN)'!E39 -> 0 | H19: =-'FS (NGN)'!F39 -> 0 | I19: =-'FS (NGN)'!G39 -> 0 | J19: =-'FS (NGN)'!H39 -> 0 | K19: =-'FS (NGN)'!I39 -> 0 | L19: =-'FS (NGN)'!J39 -> 6300000 | M19: =-'FS (NGN)'!K39 -> 0 | N19: =-'FS (NGN)'!L39 -> 0 | O19: =-'FS (NGN)'!M39 -> 0 | P19: =-'FS (NGN)'!N39 -> 0 | Q19: =-'FS (NGN)'!O39 -> 6300000 | R19: =-'FS (NGN)'!P39 -> 0 | S19: =-'FS (NGN)'!Q39 -> 0 | T19: =-'FS (NGN)'!R39 -> 0 | U19: =-'FS (NGN)'!S39 -> 0
B20: Tax | C20: NGN | F20: ='FS (NGN)'!D34 -> 0 | G20: ='FS (NGN)'!E34 -> 0 | H20: ='FS (NGN)'!F34 -> 0 | I20: ='FS (NGN)'!G34 -> 0 | J20: ='FS (NGN)'!H34 -> 1340249.848 | K20: ='FS (NGN)'!I34 -> 2641560.96 | L20: ='FS (NGN)'!J34 -> 5049203.022 | M20: ='FS (NGN)'!K34 -> 5975885.157 | N20: ='FS (NGN)'!L34 -> 7493124.587 | O20: ='FS (NGN)'!M34 -> 9223536.759 | P20: ='FS (NGN)'!N34 -> 11196434.88 | Q20: ='FS (NGN)'!O34 -> 17549673.66 | R20: ='FS (NGN)'!P34 -> 20111874.86 | S20: ='FS (NGN)'!Q34 -> 23030482.96 | T20: ='FS (NGN)'!R34 -> 26354139.94 | U20: ='FS (NGN)'!S34 -> 30138029.55
B21: Debt Service | C21: NGN | F21: =-('FS (NGN)'!D47+'FS (NGN)'!D48) -> 0 | G21: =-('FS (NGN)'!E47+'FS (NGN)'!E48) -> 9376915.93 | H21: =-('FS (NGN)'!F47+'FS (NGN)'!F48) -> 9376915.93 | I21: =-('FS (NGN)'!G47+'FS (NGN)'!G48) -> 9376915.93 | J21: =-('FS (NGN)'!H47+'FS (NGN)'!H48) -> 9376915.93 | K21: =-('FS (NGN)'!I47+'FS (NGN)'!I48) -> 9376915.93 | L21: =-('FS (NGN)'!J47+'FS (NGN)'!J48) -> 0 | M21: =-('FS (NGN)'!K47+'FS (NGN)'!K48) -> 0 | N21: =-('FS (NGN)'!L47+'FS (NGN)'!L48) -> 0 | O21: =-('FS (NGN)'!M47+'FS (NGN)'!M48) -> 0 | P21: =-('FS (NGN)'!N47+'FS (NGN)'!N48) -> 0 | Q21: =-('FS (NGN)'!O47+'FS (NGN)'!O48) -> 0 | R21: =-('FS (NGN)'!P47+'FS (NGN)'!P48) -> 0 | S21: =-('FS (NGN)'!Q47+'FS (NGN)'!Q48) -> 0 | T21: =-('FS (NGN)'!R47+'FS (NGN)'!R48) -> 0 | U21: =-('FS (NGN)'!S47+'FS (NGN)'!S48) -> 0
B22: Distributions | C22: NGN | F22: ='FS (NGN)'!D53 -> 0 | G22: ='FS (NGN)'!E53 -> 94954545.01 | H22: ='FS (NGN)'!F53 -> 16459791.65 | I22: ='FS (NGN)'!G53 -> 4795895.255 | J22: ='FS (NGN)'!H53 -> 25280725.28 | K22: ='FS (NGN)'!I53 -> 12945658.98 | L22: ='FS (NGN)'!J53 -> 17256356.42 | M22: ='FS (NGN)'!K53 -> 26785555.96 | N22: ='FS (NGN)'!L53 -> 30009689.75 | O22: ='FS (NGN)'!M53 -> 33686815.61 | P22: ='FS (NGN)'!N53 -> 37879224.13 | Q22: ='FS (NGN)'!O53 -> 32253056.52 | R22: ='FS (NGN)'!P53 -> 43997734.07 | S22: ='FS (NGN)'!Q53 -> 50199776.3 | T22: ='FS (NGN)'!R53 -> 57262547.37 | U22: ='FS (NGN)'!S53 -> 65303312.8
B24: Inflation adjusted
B25: Revenue | C25: NGN | F25: =F17/F$6 -> 0 | G25: =G17/G$6 -> 31258610.94 | H25: 33235249.61 | I25: 33305867.09 | J25: 37557643.82 | K25: 37713860.67 | L25: 38067531.52 | M25: 38421202.36 | N25: 38774873.2 | O25: 39128544.04 | P25: 39482214.89 | Q25: 39835885.73 | R25: 40189556.57 | S25: 40543227.42 | T25: 40896898.26 | U25: 41250569.1
B26: OPEX | C26: NGN | F26: =F18/F$6 -> 0 | G26: =G18/G$6 -> 30540020.82 | H26: 23212643.72 | I26: 23217940.03 | J26: 23536823.29 | K26: 23548539.55 | L26: 23575064.86 | M26: 23601590.18 | N26: 23628115.49 | O26: 23654640.8 | P26: 23681166.12 | Q26: 23707691.43 | R26: 23734216.74 | S26: 23760742.06 | T26: 23787267.37 | U26: 23813792.68
B27: Ongoing CAPEX | C27: NGN | F27: =F19/F$6 -> 0 | G27: =G19/G$6 -> 0 | H27: 0 | I27: 0 | J27: 0 | K27: 0 | L27: 3191776.063 | M27: 0 | N27: 0 | O27: 0 | P27: 0 | Q27: 1811099.456 | R27: 0 | S27: 0 | T27: 0 | U27: 0
B28: Tax | C28: NGN | F28: =-(F20/F$6) -> 0 | G28: =G20/G$6 -> 0 | H28: =H20/H$6 -> 0 | I28: 0 | J28: 851753.0081 | K28: 1498892.63 | L28: 2558083.388 | M28: 2703186.962 | N28: 3026347.346 | O28: 3326099.821 | P28: 3604952.378 | Q28: 5045111.811 | R28: 5162217.348 | S28: 5277992.282 | T28: 5392579.176 | U28: 5506105.321
B29: Debt Service | C29: NGN | F29: =F21/F$6 -> 0 | G29: 8372246.366 | H29: 7475219.97 | I29: 6674303.545 | J29: 5959199.593 | K29: 5320713.923 | L29: 0 | M29: 0 | N29: 0 | O29: 0 | P29: 0 | Q29: 0 | R29: 0 | S29: 0 | T29: 0 | U29: 0
B30: Distributions | C30: NGN | F30: =F22/F$6 -> 0 | G30: 84780843.76 | H30: 13121645.13 | I30: 3413623.513 | J30: 16066357.95 | K30: 7345714.57 | L30: 8742607.201 | M30: 12116425.22 | N30: 12120410.37 | O30: 12147803.42 | P30: 12196096.39 | Q30: 9271983.034 | R30: 11293122.48 | S30: 11504493.08 | T30: 11717051.71 | U30: 11930671.1
B32: Equity Distribution Graph
B33: Cumulative distributions to equity | C33: NGN | F33: ='FS (NGN)'!D54 -> 0 | G33: ='FS (NGN)'!E54 -> 94954545.01 | H33: ='FS (NGN)'!F54 -> 111414336.7 | I33: ='FS (NGN)'!G54 -> 116210231.9 | J33: ='FS (NGN)'!H54 -> 141490957.2 | K33: ='FS (NGN)'!I54 -> 154436616.2 | L33: ='FS (NGN)'!J54 -> 171692972.6 | M33: ='FS (NGN)'!K54 -> 198478528.6 | N33: ='FS (NGN)'!L54 -> 228488218.3 | O33: ='FS (NGN)'!M54 -> 262175033.9 | P33: ='FS (NGN)'!N54 -> 300054258 | Q33: ='FS (NGN)'!O54 -> 332307314.6 | R33: ='FS (NGN)'!P54 -> 376305048.6 | S33: ='FS (NGN)'!Q54 -> 426504824.9 | T33: ='FS (NGN)'!R54 -> 483767372.3 | U33: ='FS (NGN)'!S54 -> 549070685.1
B34: Equity invested | C34: NGN | F34: ='FS (NGN)'!D45 -> 110868000 | G34: =$F$34 -> 110868000 | H34: 110868000 | I34: 110868000 | J34: 110868000 | K34: 110868000 | L34: 110868000 | M34: 110868000 | N34: 110868000 | O34: 110868000 | P34: 110868000 | Q34: 110868000 | R34: 110868000 | S34: 110868000 | T34: 110868000 | U34: 110868000
B36: DSCR Graph
B37: DSCR | G37: ='FS (NGN)'!E98 -> 11.12641531 | H37: ='FS (NGN)'!F98 -> 2.755352375 | I37: ='FS (NGN)'!G98 -> 1.511457636 | J37: ='FS (NGN)'!H98 -> 3.696059714 | K37: ='FS (NGN)'!I98 -> 2.380588146 | L37: ='FS (NGN)'!J98 ->  | M37: ='FS (NGN)'!K98 ->  | N37: ='FS (NGN)'!L98 ->  | O37: ='FS (NGN)'!M98 ->  | P37: ='FS (NGN)'!N98 ->  | Q37: ='FS (NGN)'!O98 ->  | R37: ='FS (NGN)'!P98 ->  | S37: ='FS (NGN)'!Q98 ->  | T37: ='FS (NGN)'!R98 ->  | U37: ='FS (NGN)'!S98 -> 
B38: Target min DSCR | C38: % | D38: 1.5 | F38: =$D$38 -> 1.5 | G38: 1.5 | H38: 1.5 | I38: 1.5 | J38: 1.5 | K38: 1.5 | L38: 1.5 | M38: 1.5 | N38: 1.5 | O38: 1.5 | P38: 1.5 | Q38: 1.5 | R38: 1.5 | S38: 1.5 | T38: 1.5 | U38: 1.5
B41: Average Revenue/Cost per User
B43: Connections | C43: # | F43: ='Operating Model'!F69 -> 0 | G43: ='Operating Model'!G69 -> 267.2 | H43: ='Operating Model'!H69 -> 300.6 | I43: ='Operating Model'!I69 -> 300.6 | J43: ='Operating Model'!J69 -> 334 | K43: ='Operating Model'!K69 -> 334 | L43: ='Operating Model'!L69 -> 334 | M43: ='Operating Model'!M69 -> 334 | N43: ='Operating Model'!N69 -> 334 | O43: ='Operating Model'!O69 -> 334 | P43: ='Operating Model'!P69 -> 334 | Q43: ='Operating Model'!Q69 -> 334 | R43: ='Operating Model'!R69 -> 334 | S43: ='Operating Model'!S69 -> 334 | T43: ='Operating Model'!T69 -> 334 | U43: ='Operating Model'!U69 -> 334
B45: Revenue net VAT (NGN) | C45: NGN | F45: ='Operating Model'!F21 -> 0 | G45: ='Operating Model'!G21 -> 35009644.26 | H45: ='Operating Model'!H21 -> 41690297.12 | I45: ='Operating Model'!I21 -> 46792345.24 | J45: ='Operating Model'!J21 -> 59097679.67 | K45: ='Operating Model'!K21 -> 66464708.7 | L45: ='Operating Model'!L21 -> 75138557.28 | M45: ='Operating Model'!M21 -> 84937037.71 | N45: ='Operating Model'!N21 -> 96005158.21 | O45: ='Operating Model'!O21 -> 108506534.3 | P45: ='Operating Model'!P21 -> 122625766.4 | Q45: ='Operating Model'!Q21 -> 138571120 | R45: ='Operating Model'!R21 -> 156577547.6 | S45: ='Operating Model'!S21 -> 176910093.6 | T45: ='Operating Model'!T21 -> 199867733.9 | U45: ='Operating Model'!U21 -> 225787702.6
B46: Revenue net VAT (USD) | C46: USD | F46: =F45/F7 -> 0 | G46: 54215.47698 | H46: 62986.38885 | I46: 68970.38766 | J46: 84983.4619 | K46: 93246.21866 | L46: 102844.0356 | M46: 113419.9635 | N46: 125072.8641 | O46: 137911.5229 | P46: 152055.6392 | Q46: 167636.9144 | R46: 184800.2491 | S46: 203705.058 | T46: 224526.7156 | U46: 247458.1457
B48: Monthly ARPU - NGN | C48: NGN | F48: =IFERROR(F45/F43/Inputs!$E$18,0) -> 0 | G48: =IFERROR(G45/G43/Inputs!$E$18,0) -> 10918.67648 | H48: =IFERROR(H45/H43/Inputs!$E$18,0) -> 11557.52304 | I48: =IFERROR(I45/I43/Inputs!$E$18,0) -> 12971.92982 | J48: =IFERROR(J45/J43/Inputs!$E$18,0) -> 14744.93006 | K48: =IFERROR(K45/K43/Inputs!$E$18,0) -> 16583.01115 | L48: =IFERROR(L45/L43/Inputs!$E$18,0) -> 18747.14503 | M48: =IFERROR(M45/M43/Inputs!$E$18,0) -> 21191.87567 | N48: =IFERROR(N45/N43/Inputs!$E$18,0) -> 23953.38279 | O48: =IFERROR(O45/O43/Inputs!$E$18,0) -> 27072.4886 | P48: =IFERROR(P45/P43/Inputs!$E$18,0) -> 30595.25109 | Q48: =IFERROR(Q45/Q43/Inputs!$E$18,0) -> 34573.63274 | R48: =IFERROR(R45/R43/Inputs!$E$18,0) -> 39066.25438 | S48: =IFERROR(S45/S43/Inputs!$E$18,0) -> 44139.2449 | T48: =IFERROR(T45/T43/Inputs!$E$18,0) -> 49867.19908 | U48: =IFERROR(U45/U43/Inputs!$E$18,0) -> 56334.25713
B49: Monthly ARPU - NGN, inflation adjusted | C49: NGN | F49: =IFERROR(F48/F6,0) -> 0 | G49: =IFERROR(G48/G6,0) -> 9748.818284 | H49: =IFERROR(H48/H6,0) -> 9213.586609 | I49: 9233.16342 | J49: 9370.669616 | K49: 9409.645877 | L49: 9497.887105 | M49: 9586.128333 | N49: 9674.369561 | O49: 9762.61079 | P49: 9850.852018 | Q49: 9939.093246 | R49: 10027.33447 | S49: 10115.5757 | T49: 10203.81693 | U49: 10292.05816
B50: Monthly ARPU - USD | C50: USD | F50: =F48/F7 -> 0 | G50: 16.90851952 | H50: 17.46129653 | I50: 19.12020061 | J50: 21.20345856 | K50: 23.26502462 | L50: 25.65968953 | M50: 28.29839408 | N50: 31.20580442 | O50: 34.40906261 | P50: 37.93803373 | Q50: 41.82557746 | R50: 46.10784659 | S50: 50.82461526 | T50: 56.01963962 | U50: 61.74105432
B51: Monthly ARPU - USD, inflation adjusted | C51: USD | F51: =F49/F7 -> 0 | G51: 15.09689243 | H51: 13.92003869 | I51: 13.60938113 | J51: 13.47518124 | K51: 13.20119977 | L51: 12.99999728 | M51: 12.80075636 | N51: 12.60350102 | O51: 12.40825293 | P51: 12.21503151 | Q51: 12.02385406 | R51: 11.83473581 | S51: 11.64769004 | T51: 11.46272816 | U51: 11.27985979
B53: Monthly ACPU - NGN | C53: NGN | F53: =IFERROR(F67/F43/Inputs!$E$18,0) -> 0 | G53: =IFERROR(G67/G43/Inputs!$E$18,0) -> 10667.67194 | H53: =IFERROR(H67/H43/Inputs!$E$18,0) -> 8072.172401 | I53: =IFERROR(I67/I43/Inputs!$E$18,0) -> 9042.89589 | J53: =IFERROR(J67/J43/Inputs!$E$18,0) -> 9240.430917 | K53: =IFERROR(K67/K43/Inputs!$E$18,0) -> 10354.43434 | L53: =IFERROR(L67/L43/Inputs!$E$18,0) -> 11610.0294 | M53: =IFERROR(M67/M43/Inputs!$E$18,0) -> 13017.86342 | N53: =IFERROR(N67/N43/Inputs!$E$18,0) -> 14596.39318 | O53: =IFERROR(O67/O43/Inputs!$E$18,0) -> 16366.31286 | P53: =IFERROR(P67/P43/Inputs!$E$18,0) -> 18350.82519 | Q53: =IFERROR(Q67/Q43/Inputs!$E$18,0) -> 20575.94558 | R53: =IFERROR(R67/R43/Inputs!$E$18,0) -> 23070.84297 | S53: =IFERROR(S67/S43/Inputs!$E$18,0) -> 25868.22213 | T53: =IFERROR(T67/T43/Inputs!$E$18,0) -> 29004.75214 | U53: =IFERROR(U67/U43/Inputs!$E$18,0) -> 32521.54696
B54: Monthly ACPU - NGN, inflation adjusted | C54: NGN | F54: =F53/F6 -> 0 | G54: =G53/G6 -> 9524.707092 | H54: 6435.086416 | I54: 6436.554677 | J54: 5872.4609 | K54: 5875.384119 | L54: 5882.002212 | M54: 5888.620304 | N54: 5895.238396 | O54: 5901.856488 | P54: 5908.47458 | Q54: 5915.092672 | R54: 5921.710764 | S54: 5928.328856 | T54: 5934.946948 | U54: 5941.565041
B55: Monthly ACPU - USD | C55: USD | F55: =F53/F7 -> 0 | G55: =G53/G7 -> 16.51981718 | H55: 12.19557127 | I55: 13.32893301 | J55: 13.28789579 | K55: 14.52668442 | L55: 15.89093963 | M55: 17.38329513 | N55: 19.01577722 | O55: 20.80154108 | P55: 22.75497668 | Q55: 24.8918247 | R55: 27.22930328 | S55: 29.78624669 | T55: 32.58325698 | U55: 35.64286989
B56: Monthly ACPU - USD, inflation adjusted | C56: USD | F56: =F54/F7 -> 0 | G56: =G54/G7 -> 14.74983677 | H56: 9.722234749 | I56: 9.487271241 | J56: 8.444697998 | K56: 8.242830866 | L56: 8.05084456 | M56: 7.863319911 | N56: 7.680153488 | O56: 7.501244249 | P56: 7.32649349 | Q56: 7.155804787 | R56: 6.98908395 | S56: 6.826238962 | T56: 6.667179938 | U56: 6.51181907
B58: Consumption, Revenue, and Cost Summaries
B60: Average monthly consumption | C60: kWh/month | F60: ='Operating Model'!F81/Inputs!$E$18 -> 0 | G60: ='Operating Model'!G81/Inputs!$E$18 -> 10132 | H60: ='Operating Model'!H81/Inputs!$E$18 -> 11512.485 | I60: ='Operating Model'!I81/Inputs!$E$18 -> 11626.47 | J60: ='Operating Model'!J81/Inputs!$E$18 -> 13044.95 | K60: ='Operating Model'!K81/Inputs!$E$18 -> 13171.6 | L60: ='Operating Model'!L81/Inputs!$E$18 -> 13298.25 | M60: ='Operating Model'!M81/Inputs!$E$18 -> 13424.9 | N60: ='Operating Model'!N81/Inputs!$E$18 -> 13551.55 | O60: ='Operating Model'!O81/Inputs!$E$18 -> 13678.2 | P60: ='Operating Model'!P81/Inputs!$E$18 -> 13804.85 | Q60: ='Operating Model'!Q81/Inputs!$E$18 -> 13931.5 | R60: ='Operating Model'!R81/Inputs!$E$18 -> 14058.15 | S60: ='Operating Model'!S81/Inputs!$E$18 -> 14184.8 | T60: ='Operating Model'!T81/Inputs!$E$18 -> 14311.45 | U60: ='Operating Model'!U81/Inputs!$E$18 -> 14438.1
B61: Average monthly consumption per user | C61: kWh/month | F61: =IFERROR(F60/F43,0) -> 0 | G61: 37.91916168 | H61: 38.29835329 | I61: 38.67754491 | J61: 39.05673653 | K61: 39.43592814 | L61: 39.81511976 | M61: 40.19431138 | N61: 40.57350299 | O61: 40.95269461 | P61: 41.33188623 | Q61: 41.71107784 | R61: 42.09026946 | S61: 42.46946108 | T61: 42.84865269 | U61: 43.22784431
B63: Total consumption | C63: kWh/year | F63: ='Operating Model'!F81 -> 0 | G63: ='Operating Model'!G81 -> 121584 | H63: ='Operating Model'!H81 -> 138149.82 | I63: ='Operating Model'!I81 -> 139517.64 | J63: ='Operating Model'!J81 -> 156539.4 | K63: ='Operating Model'!K81 -> 158059.2 | L63: ='Operating Model'!L81 -> 159579 | M63: ='Operating Model'!M81 -> 161098.8 | N63: ='Operating Model'!N81 -> 162618.6 | O63: ='Operating Model'!O81 -> 164138.4 | P63: ='Operating Model'!P81 -> 165658.2 | Q63: ='Operating Model'!Q81 -> 167178 | R63: ='Operating Model'!R81 -> 168697.8 | S63: ='Operating Model'!S81 -> 170217.6 | T63: ='Operating Model'!T81 -> 171737.4 | U63: ='Operating Model'!U81 -> 173257.2
B64: Average revenue per kWh (NGN) | C64: NGN | F64: =IFERROR('Operating Model'!F21/'Graph calc'!F63,0) -> 0 | G64: =IFERROR('Operating Model'!G21/'Graph calc'!G63,0) -> 287.9461464 | H64: =IFERROR('Operating Model'!H21/'Graph calc'!H63,0) -> 301.7759785 | I64: =IFERROR('Operating Model'!I21/'Graph calc'!I63,0) -> 335.3865879 | J64: =IFERROR('Operating Model'!J21/'Graph calc'!J63,0) -> 377.5259115 | K64: =IFERROR('Operating Model'!K21/'Graph calc'!K63,0) -> 420.5051569 | L64: =IFERROR('Operating Model'!L21/'Graph calc'!L63,0) -> 470.85492 | M64: =IFERROR('Operating Model'!M21/'Graph calc'!M63,0) -> 527.2356945 | N64: =IFERROR('Operating Model'!N21/'Graph calc'!N63,0) -> 590.3700943 | O64: =IFERROR('Operating Model'!O21/'Graph calc'!O63,0) -> 661.0673328 | P64: =IFERROR('Operating Model'!P21/'Graph calc'!P63,0) -> 740.2336037 | Q64: =IFERROR('Operating Model'!Q21/'Graph calc'!Q63,0) -> 828.883705 | R64: =IFERROR('Operating Model'!R21/'Graph calc'!R63,0) -> 928.1540575 | S64: =IFERROR('Operating Model'!S21/'Graph calc'!S63,0) -> 1039.317283 | T64: =IFERROR('Operating Model'!T21/'Graph calc'!T63,0) -> 1163.798531 | U64: =IFERROR('Operating Model'!U21/'Graph calc'!U63,0) -> 1303.193764
B65: Average revenue per kWh (USD) | C65: USD | F65: =F64/F7 -> 0 | G65: 0.4459096343 | H65: 0.4559281283 | I65: 0.4943488698 | J65: 0.5428886396 | K65: 0.5899448983 | L65: 0.644470987 | M65: 0.7040397786 | N65: 0.769117826 | O65: 0.840214861 | P65: 0.9178877907 | Q65: 1.002745065 | R65: 1.095451447 | S65: 1.196733228 | T65: 1.307383922 | U65: 1.428270489
B67: Total operating costs | C67: NGN | F67: ='Operating Model'!F30+'Operating Model'!F40 -> 0 | G67: ='Operating Model'!G30+'Operating Model'!G40 -> 34204823.32 | H67: ='Operating Model'!H30+'Operating Model'!H40 -> 29117940.28 | I67: ='Operating Model'!I30+'Operating Model'!I40 -> 32619534.05 | J67: ='Operating Model'!J30+'Operating Model'!J40 -> 37035647.11 | K67: ='Operating Model'!K30+'Operating Model'!K40 -> 41500572.83 | L67: ='Operating Model'!L30+'Operating Model'!L40 -> 46532997.83 | M67: ='Operating Model'!M30+'Operating Model'!M40 -> 52175596.59 | N67: ='Operating Model'!N30+'Operating Model'!N40 -> 58502343.88 | O67: ='Operating Model'!O30+'Operating Model'!O40 -> 65596181.93 | P67: ='Operating Model'!P30+'Operating Model'!P40 -> 73550107.35 | Q67: ='Operating Model'!Q30+'Operating Model'!Q40 -> 82468389.87 | R67: ='Operating Model'!R30+'Operating Model'!R40 -> 92467938.63 | S67: ='Operating Model'!S30+'Operating Model'!S40 -> 103679834.3 | T67: ='Operating Model'!T30+'Operating Model'!T40 -> 116251046.6 | U67: ='Operating Model'!U30+'Operating Model'!U40 -> 130346360.2 | V67: ='Operating Model'!V30+'Operating Model'!V40 -> 0
B68: Average operating costs per kWh (NGN) | C68: NGN | F68: =IFERROR(F67/F63,0) -> 0 | G68: =G67/G63 -> 281.3266821 | H68: =H67/H63 -> 210.7707436 | I68: =I67/I63 -> 233.8022207 | J68: 236.5899391 | K68: 262.5634751 | L68: 291.598505 | M68: 323.8732789 | N68: 359.7518604 | O68: 399.6394623 | P68: 443.9871214 | Q68: 493.2969043 | R68: 548.127709 | S68: 609.101728 | T68: 676.9116488 | U68: 752.328678
B69: Average operating costs per kWh (USD) | C69: USD | F69: =F68/F7 -> 0 | G69: 0.4356588186 | H69: 0.3184359175 | I69: 0.3446168323 | J69: 0.34022033 | K69: 0.3683616718 | L69: 0.3991182175 | M69: 0.4324814764 | N69: 0.468674771 | O69: 0.5079407174 | P69: 0.5505429042 | Q69: 0.5967677169 | R69: 0.6469263235 | S69: 0.7013568322 | T69: 0.7604266396 | U69: 0.8245349834
